{"text_format":"1","workbook":"xlsx","n_sheets":12,"sheets":["Préambule","Lisez moi","Indicateurs régionaux de conci","SAISIE","RECUEIL DES DONNEES","formules","Synthèse 2018","Synthèse 2019","Synthèse 2020","Synthèse 2021","Synthèse 2022","Synthèse générale"],"not_rendered":{"charts":5,"images":5,"macros":1,"external_links":0,"defined_names":7,"comments":0,"pivot_tables":0},"unopened":[],"bounds":{"document_bytes":16777216,"sheet_cells":100000,"rows_first":2000,"rows_last":500,"rows_between":2000,"halvings":0,"cell_chars":16384,"cell_head_chars":4096},"cells_cut":0,"cells_raw":0,"read":"part_too_large","date_system":"1900"}

{"sheet":"Préambule","index":0,"n_rows":36,"n_cols":2,"rows_kept":36,"cut":false,"hidden":false,"merged":[]}
[]
[]
[]
[]
[]
[]
[]
[]
[]
[]
[]
[]
[]
[]
[]
[]
[]
[]
[]
[]
[]
[]
[]
[]
[]
[]
[]
[]
[]
[]
[]
[]
[]
[]
[]
[null,"Pour toutes questions, n'hésitez pas à nous contacter :"]

{"sheet":"Lisez moi","index":1,"n_rows":0,"n_cols":0,"rows_kept":0,"cut":false,"hidden":false,"merged":[]}

{"sheet":"Indicateurs régionaux de conci","index":2,"n_rows":0,"n_cols":0,"rows_kept":0,"cut":false,"hidden":false,"merged":[]}

{"sheet":"SAISIE","index":3,"n_rows":0,"n_cols":0,"rows_kept":0,"cut":false,"hidden":false,"merged":[]}

{"sheet":"RECUEIL DES DONNEES","index":4,"n_rows":3,"n_cols":122,"rows_kept":3,"cut":false,"hidden":false,"merged":[[1,108,1,121],[0,76,0,79],[1,66,1,79],[0,38,0,43],[1,38,1,51],[0,52,0,57],[1,52,1,65],[0,66,0,71],[0,80,0,85],[1,80,1,93],[0,94,0,99],[1,94,1,107],[0,116,0,117],[0,118,0,121],[0,44,0,45],[0,72,0,73],[0,74,0,75],[0,58,0,59],[0,60,0,61],[0,62,0,65],[0,114,0,115],[0,100,0,101],[0,102,0,103],[0,104,0,107],[0,86,0,87],[0,88,0,89],[0,90,0,93],[0,108,0,113],[0,46,0,47],[0,48,0,51],[0,30,0,31],[0,32,0,33],[0,34,0,37],[1,10,1,23],[0,10,0,15],[0,24,0,29],[1,24,1,37],[0,16,0,17],[0,18,0,19],[0,20,0,23],[0,1,0,9]]}
[null,"INFORMATIONS GENERALES",null,null,null,null,null,null,null,null,"CONCILIATION",null,null,null,null,null,"INDICATEURS DU CAQES",null,"INDICATEURS D'ACTIVITE",null,"INDICATEURS CLINIQUES",null,null,null,"CONCILIATION",null,null,null,null,null,"INDICATEURS DU CAQES",null,"INDICATEURS D'ACTIVITE",null,"INDICATEURS CLINIQUES",null,null,null,"CONCILIATION",null,null,null,null,null,"INDICATEURS DU CAQES",null,"INDICATEURS D'ACTIVITE",null,"INDICATEURS CLINIQUES",null,null,null,"CONCILIATION",null,null,null,null,null,"INDICATEURS DU CAQES",null,"INDICATEURS D'ACTIVITE",null,"INDICATEURS CLINIQUES",null,null,null,"CONCILIATION",null,null,null,null,null,"INDICATEURS DU CAQES",null,"INDICATEURS D'ACTIVITE",null,"INDICATEURS CLINIQUES",null,null,null,"CONCILIATION",null,null,null,null,null,"INDICATEURS DU CAQES",null,"INDICATEURS D'ACTIVITE",null,"INDICATEURS CLINIQUES",null,null,null,"CONCILIATION",null,null,null,null,null,"INDICATEURS DU CAQES",null,"INDICATEURS D'ACTIVITE",null,"INDICATEURS CLINIQUES",null,null,null,"CONCILIATION",null,null,null,null,null,"INDICATEURS DU CAQES",null,"INDICATEURS D'ACTIVITE",null,"INDICATEURS CLINIQUES"]
[null,null,null,null,null,null,null,null,null,null,"Secteur 1",null,null,null,null,null,null,null,null,null,null,null,null,null,"Secteur 2",null,null,null,null,null,null,null,null,null,null,null,null,null,"Secteur 3",null,null,null,null,null,null,null,null,null,null,null,null,null,"Secteur 4",null,null,null,null,null,null,null,null,null,null,null,null,null,"Secteur 5",null,null,null,null,null,null,null,null,null,null,null,null,null,"Secteur 6",null,null,null,null,null,null,null,null,null,null,null,null,null,"Secteur 7",null,null,null,null,null,null,null,null,null,null,null,null,null,"Secteur 8"]
["Date de saisie","Etablissement","Médecine","Chirurgie","Obstétrique","Santé Mentale","HAD","SSR","SLD","EHPAD","Proactive","Rétroactive","Entrée","Sortie","Début du recueil","Fin du recueil","Nombre de patients priorisés conciliés en entrée et/ou sortie","Nombre de patients priorisés hospitalisés","Nombre de patients entrants","Nombre d'ETP pharmaceutiques dédiés","Nombre de patients conciliés avec au moins une divergence non documentée:","Dont nb de patient avec au moins une divergence non intentionnelle","Nombre d'interventions pharmaceutiques ayant entraîné des modifications de prescription:","Nombre de patients ayant bénéficié d'une activité de pharmacie clinique de niveau 3:","Proactive","Rétroactive","Entrée","Sortie","Début du recueil","Fin du recueil","Nombre de patients priorisés conciliés en entrée et/ou sortie","Nombre de patients priorisés hospitalisés","Nombre de patients entrants","Nombre d'ETP pharmaceutiques dédiés","Nombre de patients conciliés avec au moins une divergence non documentée:","Dont nb de patient avec au moins une divergence non intentionnelle","Nombre d'interventions pharmaceutiques ayant entraîné des modifications de prescription:","Nombre de patients ayant bénéficié d'une activité de pharmacie clinique de niveau 3:","Proactive","Rétroactive","Entrée","Sortie","Début du recueil","Fin du recueil","Nombre de patients priorisés conciliés en entrée et/ou sortie","Nombre de patients priorisés hospitalisés","Nombre de patients entrants","Nombre d'ETP pharmaceutiques dédiés","Nombre de patients conciliés avec au moins une divergence non documentée:","Dont nb de patient avec au moins une divergence non intentionnelle","Nombre d'interventions pharmaceutiques ayant entraîné des modifications de prescription:","Nombre de patients ayant bénéficié d'une activité de pharmacie clinique de niveau 3:","Proactive","Rétroactive","Entrée","Sortie","Début du recueil","Fin du recueil","Nombre de patients priorisés conciliés en entrée et/ou sortie","Nombre de patients priorisés hospitalisés","Nombre de patients entrants","Nombre d'ETP pharmaceutiques dédiés","Nombre de patients conciliés avec au moins une divergence non documentée:","Dont nb de patient avec au moins une divergence non intentionnelle","Nombre d'interventions pharmaceutiques ayant entraîné des modifications de prescription:","Nombre de patients ayant bénéficié d'une activité de pharmacie clinique de niveau 3:","Proactive","Rétroactive","Entrée","Sortie","Début du recueil","Fin du recueil","Nombre de patients priorisés conciliés en entrée et/ou sortie","Nombre de patients priorisés hospitalisés","Nombre de patients entrants","Nombre d'ETP pharmaceutiques dédiés","Nombre de patients conciliés avec au moins une divergence non documentée:","Dont nb de patient avec au moins une divergence non intentionnelle","Nombre d'interventions pharmaceutiques ayant entraîné des modifications de prescription:","Nombre de patients ayant bénéficié d'une activité de pharmacie clinique de niveau 3:","Proactive","Rétroactive","Entrée","Sortie","Début du recueil","Fin du recueil","Nombre de patients priorisés conciliés en entrée et/ou sortie","Nombre de patients priorisés hospitalisés","Nombre de patients entrants","Nombre d'ETP pharmaceutiques dédiés","Nombre de patients conciliés avec au moins une divergence non documentée:","Nombre d'interventions pharmaceutiques ayant entraîné des modifications de prescription:","Nombre d'interventions pharmaceutiques ayant entraîné des modifications de prescription:","Nombre de patients ayant bénéficié d'une activité de pharmacie clinique de niveau 3:","Proactive","Rétroactive","Entrée","Sortie","Début du recueil","Fin du recueil","Nombre de patients priorisés conciliés en entrée et/ou sortie","Nombre de patients priorisés hospitalisés","Nombre de patients entrants","Nombre d'ETP pharmaceutiques dédiés","Nombre de patients conciliés avec au moins une divergence non documentée:","Dont nb de patient avec au moins une divergence non intentionnelle","Nombre d'interventions pharmaceutiques ayant entraîné des modifications de prescription:","Nombre de patients ayant bénéficié d'une activité de pharmacie clinique de niveau 3:","Proactive","Rétroactive","Entrée","Sortie","Début du recueil","Fin du recueil","Nombre de patients priorisés conciliés en entrée et/ou sortie","Nombre de patients priorisés hospitalisés","Nombre de patients entrants","Nombre d'ETP pharmaceutiques dédiés","Nombre de patients conciliés avec au moins une divergence non documentée:","Dont nb de patient avec au moins une divergence non intentionnelle","Nombre d'interventions pharmaceutiques ayant entraîné des modifications de prescription:","Nombre de patients ayant bénéficié d'une activité de pharmacie clinique de niveau 3:"]

{"sheet":"formules","index":5,"n_rows":235,"n_cols":11,"rows_kept":235,"cut":false,"hidden":true,"merged":[[103,1,103,2],[103,3,103,4],[19,1,19,2],[28,1,28,2],[29,1,29,2],[30,1,30,2],[37,1,37,2],[38,1,38,2],[4,3,4,4],[5,3,5,4],[6,3,6,4],[42,1,42,2],[85,3,85,4],[84,3,84,4],[84,1,84,2],[85,1,85,2],[86,1,86,2],[86,3,86,4],[73,1,73,2],[75,1,75,2],[70,3,70,4],[71,3,71,4],[72,3,72,4],[73,3,73,4],[5,1,5,2],[6,1,6,2],[7,1,7,2],[8,1,8,2],[9,1,9,2],[10,1,10,2],[47,3,47,4],[37,3,37,4],[38,3,38,4],[101,1,101,2],[98,3,98,4],[99,3,99,4],[100,3,100,4],[101,3,101,4],[14,1,14,2],[15,1,15,2],[16,1,16,2],[17,1,17,2],[44,1,44,2],[45,1,45,2],[47,1,47,2],[42,3,42,4],[43,3,43,4],[44,3,44,4],[45,3,45,4],[0,3,0,4],[19,3,19,4],[28,3,28,4],[29,3,29,4],[30,3,30,4],[24,3,24,4],[13,0,13,10],[2,0,2,10],[14,3,14,4],[15,3,15,4],[16,3,16,4],[17,3,17,4],[7,3,7,4],[8,3,8,4],[9,3,9,4],[10,3,10,4],[0,1,0,2],[19,5,19,6],[24,5,24,6],[28,5,28,6],[29,5,29,6],[3,3,3,4],[3,1,3,2],[4,1,4,2],[37,5,37,6],[38,5,38,6],[42,5,42,6],[65,1,65,2],[66,1,66,2],[65,3,65,4],[66,3,66,4],[52,3,52,4],[52,1,52,2],[57,1,57,2],[58,1,58,2],[56,1,56,2],[56,3,56,4],[57,3,57,4],[58,3,58,4],[66,5,66,6],[43,5,43,6],[44,5,44,6],[45,5,45,6],[47,5,47,6],[52,5,52,6],[101,5,101,6],[103,5,103,6],[98,7,98,8],[99,7,99,8],[100,7,100,8],[101,7,101,8],[75,3,75,4],[70,1,70,2],[71,1,71,2],[72,1,72,2],[93,1,93,2],[94,1,94,2],[93,3,93,4],[94,3,94,4],[93,5,93,6],[94,5,94,6],[80,3,80,4],[80,1,80,2],[70,5,70,6],[71,5,71,6],[72,5,72,6],[98,1,98,2],[99,1,99,2],[100,1,100,2],[121,1,121,2],[122,1,122,2],[121,3,121,4],[122,3,122,4],[122,5,122,6],[122,7,122,8],[108,1,108,2],[108,3,108,4],[112,1,112,2],[113,1,113,2],[114,1,114,2],[112,3,112,4],[113,3,113,4],[114,3,114,4],[126,1,126,2],[127,1,127,2],[128,1,128,2],[129,1,129,2],[126,3,126,4],[127,3,127,4],[128,3,128,4],[129,3,129,4],[126,5,126,6],[127,5,127,6],[128,5,128,6],[129,5,129,6],[141,1,141,2],[142,1,142,2],[140,3,140,4],[141,3,141,4],[142,3,142,4],[131,1,131,2],[131,3,131,4],[136,1,136,2],[136,3,136,4],[140,1,140,2],[154,5,154,6],[155,5,155,6],[156,5,156,6],[157,5,157,6],[154,7,154,8],[155,7,155,8],[156,7,156,8],[149,1,149,2],[150,1,150,2],[149,3,149,4],[150,3,150,4],[152,0,152,10],[149,5,149,6],[150,5,150,6],[150,7,150,8],[149,9,149,10],[150,9,150,10],[154,9,154,10],[155,9,155,10],[156,9,156,10],[157,9,157,10],[168,3,168,4],[169,3,169,4],[170,3,170,4],[159,3,159,4],[159,1,159,2],[164,1,164,2],[164,3,164,4],[168,1,168,2],[154,1,154,2],[155,1,155,2],[156,1,156,2],[157,1,157,2],[154,3,154,4],[155,3,155,4],[156,3,156,4],[157,3,157,4],[177,1,177,2],[178,1,178,2],[177,3,177,4],[178,3,178,4],[177,5,177,6],[178,5,178,6],[178,9,178,10],[169,1,169,2],[170,1,170,2],[196,3,196,4],[197,3,197,4],[198,3,198,4],[187,1,187,2],[187,3,187,4],[192,1,192,2],[192,3,192,4],[196,1,196,2],[182,1,182,2],[183,1,183,2],[184,1,184,2],[185,1,185,2],[182,3,182,4],[183,3,183,4],[184,3,184,4],[185,3,185,4],[205,1,205,2],[206,1,206,2],[205,3,205,4],[206,3,206,4],[205,5,205,6],[206,5,206,6],[205,7,205,8],[206,7,206,8],[197,1,197,2],[198,1,198,2],[233,1,233,2],[209,3,209,4],[220,1,220,2],[220,3,220,4],[224,1,224,2],[225,1,225,2],[210,3,210,4],[211,3,211,4],[212,3,212,4],[213,3,213,4],[215,1,215,2],[215,3,215,4],[210,1,210,2],[211,1,211,2],[212,1,212,2],[213,1,213,2],[234,1,234,2],[233,3,233,4],[234,3,234,4],[0,5,0,6],[3,5,3,6],[4,5,4,6],[5,5,5,6],[6,5,6,6],[7,5,7,6],[8,5,8,6],[9,5,9,6],[10,5,10,6],[14,5,14,6],[15,5,15,6],[16,5,16,6],[17,5,17,6],[226,1,226,2],[224,3,224,4],[225,3,225,4],[56,5,56,6],[57,5,57,6],[58,5,58,6],[65,5,65,6],[226,3,226,4],[98,5,98,6],[99,5,99,6],[100,5,100,6],[73,5,73,6],[75,5,75,6],[84,5,84,6],[85,5,85,6],[86,5,86,6],[80,5,80,6],[131,5,131,6],[136,5,136,6],[140,5,140,6],[141,5,141,6],[142,5,142,6],[108,5,108,6],[112,5,112,6],[113,5,113,6],[114,5,114,6],[121,5,121,6],[212,5,212,6],[213,5,213,6],[187,5,187,6],[192,5,192,6],[196,5,196,6],[197,5,197,6],[198,5,198,6],[159,5,159,6],[164,5,164,6],[168,5,168,6],[169,5,169,6],[170,5,170,6],[182,5,182,6],[183,5,183,6],[184,5,184,6],[185,5,185,6],[233,5,233,6],[234,5,234,6],[0,7,0,8],[3,7,3,8],[4,7,4,8],[5,7,5,8],[6,7,6,8],[7,7,7,8],[8,7,8,8],[9,7,9,8],[10,7,10,8],[14,7,14,8],[15,7,15,8],[16,7,16,8],[17,7,17,8],[19,7,19,8],[215,5,215,6],[220,5,220,6],[224,5,224,6],[225,5,225,6],[226,5,226,6],[209,5,209,6],[210,5,210,6],[211,5,211,6],[65,7,65,8],[66,7,66,8],[70,7,70,8],[71,7,71,8],[72,7,72,8],[47,7,47,8],[52,7,52,8],[56,7,56,8],[57,7,57,8],[58,7,58,8],[103,7,103,8],[73,7,73,8],[75,7,75,8],[84,7,84,8],[85,7,85,8],[86,7,86,8],[126,7,126,8],[127,7,127,8],[128,7,128,8],[80,7,80,8],[93,7,93,8],[94,7,94,8],[129,7,129,8],[131,7,131,8],[108,7,108,8],[112,7,112,8],[113,7,113,8],[114,7,114,8],[121,7,121,8],[157,7,157,8],[159,7,159,8],[164,7,164,8],[168,7,168,8],[169,7,169,8],[136,7,136,8],[140,7,140,8],[141,7,141,8],[142,7,142,8],[149,7,149,8],[212,7,212,8],[213,7,213,8],[187,7,187,8],[192,7,192,8],[196,7,196,8],[197,7,197,8],[198,7,198,8],[170,7,170,8],[177,7,177,8],[178,7,178,8],[182,7,182,8],[183,7,183,8],[184,7,184,8],[185,7,185,8],[233,7,233,8],[234,7,234,8],[0,9,0,10],[3,9,3,10],[4,9,4,10],[5,9,5,10],[6,9,6,10],[7,9,7,10],[8,9,8,10],[9,9,9,10],[10,9,10,10],[14,9,14,10],[15,9,15,10],[16,9,16,10],[17,9,17,10],[19,9,19,10],[215,7,215,8],[220,7,220,8],[224,7,224,8],[225,7,225,8],[226,7,226,8],[209,7,209,8],[210,7,210,8],[211,7,211,8],[38,9,38,10],[42,9,42,10],[43,9,43,10],[44,9,44,10],[45,9,45,10],[41,0,41,10],[24,9,24,10],[28,9,28,10],[29,9,29,10],[30,9,30,10],[37,9,37,10],[38,7,38,8],[42,7,42,8],[43,7,43,8],[44,7,44,8],[45,7,45,8],[24,7,24,8],[28,7,28,8],[29,7,29,8],[30,7,30,8],[37,7,37,8],[30,5,30,6],[24,1,24,2],[43,1,43,2],[65,9,65,10],[66,9,66,10],[70,9,70,10],[71,9,71,10],[72,9,72,10],[47,9,47,10],[52,9,52,10],[56,9,56,10],[57,9,57,10],[58,9,58,10],[98,9,98,10],[99,9,99,10],[100,9,100,10],[101,9,101,10],[103,9,103,10],[73,9,73,10],[75,9,75,10],[84,9,84,10],[85,9,85,10],[86,9,86,10],[80,9,80,10],[93,9,93,10],[94,9,94,10],[122,9,122,10],[126,9,126,10],[127,9,127,10],[128,9,128,10],[129,9,129,10],[108,9,108,10],[112,9,112,10],[113,9,113,10],[114,9,114,10],[121,9,121,10],[159,9,159,10],[131,9,131,10],[136,9,136,10],[140,9,140,10],[141,9,141,10],[142,9,142,10],[182,9,182,10],[183,9,183,10],[184,9,184,10],[169,9,169,10],[170,9,170,10],[177,9,177,10],[225,9,225,10],[206,9,206,10],[209,9,209,10],[210,9,210,10],[211,9,211,10],[212,9,212,10],[192,9,192,10],[196,9,196,10],[197,9,197,10],[198,9,198,10],[205,9,205,10],[226,9,226,10],[233,9,233,10],[234,9,234,10],[1,0,1,10],[12,0,12,10],[40,0,40,10],[68,0,68,10],[96,0,96,10],[124,0,124,10],[153,0,153,10],[180,0,180,10],[181,0,181,10],[208,0,208,10],[125,0,125,10],[97,0,97,10],[69,0,69,10],[213,9,213,10],[215,9,215,10],[220,9,220,10],[224,9,224,10],[185,9,185,10],[187,9,187,10],[164,9,164,10],[168,9,168,10]]}
["ANNEE",2018,null,2019,null,2020,null,2021,null,2022]
["INFORMATIONS GENERALES"]
["Secteurs d'activité conciliés"]
["Médecine",{"$f":"IF(SUMPRODUCT(('RECUEIL DES DONNEES'!C$4:C$1996=TRUE)*(YEAR('RECUEIL DES DONNEES'!O$4:O$1996)=2018))>0,\"OUI\",\"NON\")","v":"NON"},null,{"$f":"IF(SUMPRODUCT(('RECUEIL DES DONNEES'!C$4:C$1996=TRUE)*(YEAR('RECUEIL DES DONNEES'!O$4:O$1996)=2019))>0,\"OUI\",\"NON\")","v":"NON"},null,{"$f":"IF(SUMPRODUCT(('RECUEIL DES DONNEES'!C$4:C$1996=TRUE)*(YEAR('RECUEIL DES DONNEES'!O$4:O$1996)=2020))>0,\"OUI\",\"NON\")","v":"NON"},null,{"$f":"IF(SUMPRODUCT(('RECUEIL DES DONNEES'!C$4:C$1996=TRUE)*(YEAR('RECUEIL DES DONNEES'!O$4:O$1996)=2021))>0,\"OUI\",\"NON\")","v":"NON"},null,{"$f":"IF(SUMPRODUCT(('RECUEIL DES DONNEES'!C$4:C$1996=TRUE)*(YEAR('RECUEIL DES DONNEES'!O$4:O$1996)=2022))>0,\"OUI\",\"NON\")","v":"NON"}]
["Chirurgie",{"$f":"IF(SUMPRODUCT(('RECUEIL DES DONNEES'!D$4:D$1996=TRUE)*(YEAR('RECUEIL DES DONNEES'!O$4:O$1996)=2018))>0,\"OUI\",\"NON\")","v":"NON"},null,{"$f":"IF(SUMPRODUCT(('RECUEIL DES DONNEES'!D$4:D$1996=TRUE)*(YEAR('RECUEIL DES DONNEES'!O$4:O$1996)=2019))>0,\"OUI\",\"NON\")","v":"NON"},null,{"$f":"IF(SUMPRODUCT(('RECUEIL DES DONNEES'!D$4:D$1996=TRUE)*(YEAR('RECUEIL DES DONNEES'!O$4:O$1996)=2020))>0,\"OUI\",\"NON\")","v":"NON"},null,{"$f":"IF(SUMPRODUCT(('RECUEIL DES DONNEES'!D$4:D$1996=TRUE)*(YEAR('RECUEIL DES DONNEES'!O$4:O$1996)=2021))>0,\"OUI\",\"NON\")","v":"NON"},null,{"$f":"IF(SUMPRODUCT(('RECUEIL DES DONNEES'!D$4:D$1996=TRUE)*(YEAR('RECUEIL DES DONNEES'!O$4:O$1996)=2022))>0,\"OUI\",\"NON\")","v":"NON"}]
["Obstétrique",{"$f":"IF(SUMPRODUCT(('RECUEIL DES DONNEES'!E$4:E$1996=TRUE)*(YEAR('RECUEIL DES DONNEES'!O$4:O$1996)=2018))>0,\"OUI\",\"NON\")","v":"NON"},null,{"$f":"IF(SUMPRODUCT(('RECUEIL DES DONNEES'!E$4:E$1996=TRUE)*(YEAR('RECUEIL DES DONNEES'!O$4:O$1996)=2019))>0,\"OUI\",\"NON\")","v":"NON"},null,{"$f":"IF(SUMPRODUCT(('RECUEIL DES DONNEES'!E$4:E$1996=TRUE)*(YEAR('RECUEIL DES DONNEES'!O$4:O$1996)=2020))>0,\"OUI\",\"NON\")","v":"NON"},null,{"$f":"IF(SUMPRODUCT(('RECUEIL DES DONNEES'!E$4:E$1996=TRUE)*(YEAR('RECUEIL DES DONNEES'!O$4:O$1996)=2021))>0,\"OUI\",\"NON\")","v":"NON"},null,{"$f":"IF(SUMPRODUCT(('RECUEIL DES DONNEES'!E$4:E$1996=TRUE)*(YEAR('RECUEIL DES DONNEES'!O$4:O$1996)=2022))>0,\"OUI\",\"NON\")","v":"NON"}]
["Santé Mentale",{"$f":"IF(SUMPRODUCT(('RECUEIL DES DONNEES'!F$4:F$1996=TRUE)*(YEAR('RECUEIL DES DONNEES'!O$4:O$1996)=2018))>0,\"OUI\",\"NON\")","v":"NON"},null,{"$f":"IF(SUMPRODUCT(('RECUEIL DES DONNEES'!F$4:F$1996=TRUE)*(YEAR('RECUEIL DES DONNEES'!O$4:O$1996)=2019))>0,\"OUI\",\"NON\")","v":"NON"},null,{"$f":"IF(SUMPRODUCT(('RECUEIL DES DONNEES'!F$4:F$1996=TRUE)*(YEAR('RECUEIL DES DONNEES'!O$4:O$1996)=2020))>0,\"OUI\",\"NON\")","v":"NON"},null,{"$f":"IF(SUMPRODUCT(('RECUEIL DES DONNEES'!F$4:F$1996=TRUE)*(YEAR('RECUEIL DES DONNEES'!O$4:O$1996)=2021))>0,\"OUI\",\"NON\")","v":"NON"},null,{"$f":"IF(SUMPRODUCT(('RECUEIL DES DONNEES'!F$4:F$1996=TRUE)*(YEAR('RECUEIL DES DONNEES'!O$4:O$1996)=2022))>0,\"OUI\",\"NON\")","v":"NON"}]
["HAD",{"$f":"IF(SUMPRODUCT(('RECUEIL DES DONNEES'!G$4:G$1996=TRUE)*(YEAR('RECUEIL DES DONNEES'!O$4:O$1996)=2018))>0,\"OUI\",\"NON\")","v":"NON"},null,{"$f":"IF(SUMPRODUCT(('RECUEIL DES DONNEES'!G$4:G$1996=TRUE)*(YEAR('RECUEIL DES DONNEES'!O$4:O$1996)=2019))>0,\"OUI\",\"NON\")","v":"NON"},null,{"$f":"IF(SUMPRODUCT(('RECUEIL DES DONNEES'!G$4:G$1996=TRUE)*(YEAR('RECUEIL DES DONNEES'!O$4:O$1996)=2020))>0,\"OUI\",\"NON\")","v":"NON"},null,{"$f":"IF(SUMPRODUCT(('RECUEIL DES DONNEES'!G$4:G$1996=TRUE)*(YEAR('RECUEIL DES DONNEES'!O$4:O$1996)=2021))>0,\"OUI\",\"NON\")","v":"NON"},null,{"$f":"IF(SUMPRODUCT(('RECUEIL DES DONNEES'!G$4:G$1996=TRUE)*(YEAR('RECUEIL DES DONNEES'!O$4:O$1996)=2022))>0,\"OUI\",\"NON\")","v":"NON"}]
["SSR",{"$f":"IF(SUMPRODUCT(('RECUEIL DES DONNEES'!H$4:H$1996=TRUE)*(YEAR('RECUEIL DES DONNEES'!O$4:O$1996)=2018))>0,\"OUI\",\"NON\")","v":"NON"},null,{"$f":"IF(SUMPRODUCT(('RECUEIL DES DONNEES'!H$4:H$1996=TRUE)*(YEAR('RECUEIL DES DONNEES'!O$4:O$1996)=2019))>0,\"OUI\",\"NON\")","v":"NON"},null,{"$f":"IF(SUMPRODUCT(('RECUEIL DES DONNEES'!H$4:H$1996=TRUE)*(YEAR('RECUEIL DES DONNEES'!O$4:O$1996)=2020))>0,\"OUI\",\"NON\")","v":"NON"},null,{"$f":"IF(SUMPRODUCT(('RECUEIL DES DONNEES'!H$4:H$1996=TRUE)*(YEAR('RECUEIL DES DONNEES'!O$4:O$1996)=2021))>0,\"OUI\",\"NON\")","v":"NON"},null,{"$f":"IF(SUMPRODUCT(('RECUEIL DES DONNEES'!H$4:H$1996=TRUE)*(YEAR('RECUEIL DES DONNEES'!O$4:O$1996)=2022))>0,\"OUI\",\"NON\")","v":"NON"}]
["SLD",{"$f":"IF(SUMPRODUCT(('RECUEIL DES DONNEES'!I$4:I$1996=TRUE)*(YEAR('RECUEIL DES DONNEES'!O$4:O$1996)=2018))>0,\"OUI\",\"NON\")","v":"NON"},null,{"$f":"IF(SUMPRODUCT(('RECUEIL DES DONNEES'!I$4:I$1996=TRUE)*(YEAR('RECUEIL DES DONNEES'!O$4:O$1996)=2019))>0,\"OUI\",\"NON\")","v":"NON"},null,{"$f":"IF(SUMPRODUCT(('RECUEIL DES DONNEES'!I$4:I$1996=TRUE)*(YEAR('RECUEIL DES DONNEES'!O$4:O$1996)=2020))>0,\"OUI\",\"NON\")","v":"NON"},null,{"$f":"IF(SUMPRODUCT(('RECUEIL DES DONNEES'!I$4:I$1996=TRUE)*(YEAR('RECUEIL DES DONNEES'!O$4:O$1996)=2021))>0,\"OUI\",\"NON\")","v":"NON"},null,{"$f":"IF(SUMPRODUCT(('RECUEIL DES DONNEES'!I$4:I$1996=TRUE)*(YEAR('RECUEIL DES DONNEES'!O$4:O$1996)=2022))>0,\"OUI\",\"NON\")","v":"NON"}]
["EHPAD",{"$f":"IF(SUMPRODUCT(('RECUEIL DES DONNEES'!J$4:J$1996=TRUE)*(YEAR('RECUEIL DES DONNEES'!O$4:O$1996)=2018))>0,\"OUI\",\"NON\")","v":"NON"},null,{"$f":"IF(SUMPRODUCT(('RECUEIL DES DONNEES'!J$4:J$1996=TRUE)*(YEAR('RECUEIL DES DONNEES'!O$4:O$1996)=2019))>0,\"OUI\",\"NON\")","v":"NON"},null,{"$f":"IF(SUMPRODUCT(('RECUEIL DES DONNEES'!J$4:J$1996=TRUE)*(YEAR('RECUEIL DES DONNEES'!O$4:O$1996)=2020))>0,\"OUI\",\"NON\")","v":"NON"},null,{"$f":"IF(SUMPRODUCT(('RECUEIL DES DONNEES'!J$4:J$1996=TRUE)*(YEAR('RECUEIL DES DONNEES'!O$4:O$1996)=2021))>0,\"OUI\",\"NON\")","v":"NON"},null,{"$f":"IF(SUMPRODUCT(('RECUEIL DES DONNEES'!J$4:J$1996=TRUE)*(YEAR('RECUEIL DES DONNEES'!O$4:O$1996)=2022))>0,\"OUI\",\"NON\")","v":"NON"}]
[]
["Secteur 1"]
["Type de  conciliation"]
["Proactive",{"$f":"IF(SUMPRODUCT(('RECUEIL DES DONNEES'!K$4:K$1996=TRUE)*(YEAR('RECUEIL DES DONNEES'!O$4:O$1996)=2018))>0,\"OUI\",\"NON\")","v":"NON"},null,{"$f":"IF(SUMPRODUCT(('RECUEIL DES DONNEES'!K$4:K$1996=TRUE)*(YEAR('RECUEIL DES DONNEES'!O$4:O$1996)=2019))>0,\"OUI\",\"NON\")","v":"NON"},null,{"$f":"IF(SUMPRODUCT(('RECUEIL DES DONNEES'!K$4:K$1996=TRUE)*(YEAR('RECUEIL DES DONNEES'!O$4:O$1996)=2020))>0,\"OUI\",\"NON\")","v":"NON"},null,{"$f":"IF(SUMPRODUCT(('RECUEIL DES DONNEES'!K$4:K$1996=TRUE)*(YEAR('RECUEIL DES DONNEES'!O$4:O$1996)=2021))>0,\"OUI\",\"NON\")","v":"NON"},null,{"$f":"IF(SUMPRODUCT(('RECUEIL DES DONNEES'!K$4:K$1996=TRUE)*(YEAR('RECUEIL DES DONNEES'!O$4:O$1996)=2022))>0,\"OUI\",\"NON\")","v":"NON"}]
["Rétroactive",{"$f":"IF(SUMPRODUCT(('RECUEIL DES DONNEES'!L$4:L$1996=TRUE)*(YEAR('RECUEIL DES DONNEES'!O$4:O$1996)=2018))>0,\"OUI\",\"NON\")","v":"NON"},null,{"$f":"IF(SUMPRODUCT(('RECUEIL DES DONNEES'!L$4:L$1996=TRUE)*(YEAR('RECUEIL DES DONNEES'!O$4:O$1996)=2019))>0,\"OUI\",\"NON\")","v":"NON"},null,{"$f":"IF(SUMPRODUCT(('RECUEIL DES DONNEES'!L$4:L$1996=TRUE)*(YEAR('RECUEIL DES DONNEES'!O$4:O$1996)=2020))>0,\"OUI\",\"NON\")","v":"NON"},null,{"$f":"IF(SUMPRODUCT(('RECUEIL DES DONNEES'!L$4:L$1996=TRUE)*(YEAR('RECUEIL DES DONNEES'!O$4:O$1996)=2021))>0,\"OUI\",\"NON\")","v":"NON"},null,{"$f":"IF(SUMPRODUCT(('RECUEIL DES DONNEES'!L$4:L$1996=TRUE)*(YEAR('RECUEIL DES DONNEES'!O$4:O$1996)=2022))>0,\"OUI\",\"NON\")","v":"NON"}]
["Entrée",{"$f":"IF(SUMPRODUCT(('RECUEIL DES DONNEES'!M$4:M$1996=TRUE)*(YEAR('RECUEIL DES DONNEES'!O$4:O$1996)=2018))>0,\"OUI\",\"NON\")","v":"NON"},null,{"$f":"IF(SUMPRODUCT(('RECUEIL DES DONNEES'!M$4:M$1996=TRUE)*(YEAR('RECUEIL DES DONNEES'!O$4:O$1996)=2019))>0,\"OUI\",\"NON\")","v":"NON"},null,{"$f":"IF(SUMPRODUCT(('RECUEIL DES DONNEES'!M$4:M$1996=TRUE)*(YEAR('RECUEIL DES DONNEES'!O$4:O$1996)=2020))>0,\"OUI\",\"NON\")","v":"NON"},null,{"$f":"IF(SUMPRODUCT(('RECUEIL DES DONNEES'!M$4:M$1996=TRUE)*(YEAR('RECUEIL DES DONNEES'!O$4:O$1996)=2021))>0,\"OUI\",\"NON\")","v":"NON"},null,{"$f":"IF(SUMPRODUCT(('RECUEIL DES DONNEES'!M$4:M$1996=TRUE)*(YEAR('RECUEIL DES DONNEES'!O$4:O$1996)=2022))>0,\"OUI\",\"NON\")","v":"NON"}]
["Sortie",{"$f":"IF(SUMPRODUCT(('RECUEIL DES DONNEES'!N$4:N$1996=TRUE)*(YEAR('RECUEIL DES DONNEES'!O$4:O$1996)=2018))>0,\"OUI\",\"NON\")","v":"NON"},null,{"$f":"IF(SUMPRODUCT(('RECUEIL DES DONNEES'!N$4:N$1996=TRUE)*(YEAR('RECUEIL DES DONNEES'!O$4:O$1996)=2019))>0,\"OUI\",\"NON\")","v":"NON"},null,{"$f":"IF(SUMPRODUCT(('RECUEIL DES DONNEES'!N$4:N$1996=TRUE)*(YEAR('RECUEIL DES DONNEES'!O$4:O$1996)=2020))>0,\"OUI\",\"NON\")","v":"NON"},null,{"$f":"IF(SUMPRODUCT(('RECUEIL DES DONNEES'!N$4:N$1996=TRUE)*(YEAR('RECUEIL DES DONNEES'!O$4:O$1996)=2021))>0,\"OUI\",\"NON\")","v":"NON"},null,{"$f":"IF(SUMPRODUCT(('RECUEIL DES DONNEES'!N$4:N$1996=TRUE)*(YEAR('RECUEIL DES DONNEES'!O$4:O$1996)=2022))>0,\"OUI\",\"NON\")","v":"NON"}]
[]
["Période de recueil des indicateurs en semaine",{"$f":"SUMPRODUCT((YEAR('RECUEIL DES DONNEES'!O$4:O$1996)=2018)*(('RECUEIL DES DONNEES'!P$4:P$1996-'RECUEIL DES DONNEES'!O$4:O$1996)+1)/7)","v":0},null,{"$f":"SUMPRODUCT((YEAR('RECUEIL DES DONNEES'!O$4:O$1996)=2019)*(('RECUEIL DES DONNEES'!P$4:P$1996-'RECUEIL DES DONNEES'!O$4:O$1996)+1)/7)","v":0},null,{"$f":"SUMPRODUCT((YEAR('RECUEIL DES DONNEES'!O$4:O$1996)=2020)*(('RECUEIL DES DONNEES'!P$4:P$1996-'RECUEIL DES DONNEES'!O$4:O$1996)+1)/7)","v":0},null,{"$f":"SUMPRODUCT((YEAR('RECUEIL DES DONNEES'!O$4:O$1996)=2021)*(('RECUEIL DES DONNEES'!P$4:P$1996-'RECUEIL DES DONNEES'!O$4:O$1996)+1)/7)","v":0},null,{"$f":"SUMPRODUCT((YEAR('RECUEIL DES DONNEES'!O$4:O$1996)=2022)*(('RECUEIL DES DONNEES'!P$4:P$1996-'RECUEIL DES DONNEES'!O$4:O$1996)+1)/7)","v":0}]
[]
["CAQES","Nb patient sur la période de recueil","Nb patient extrapolé sur l'année","Nb patient sur la période de recueil","ND patient extrapolé sur l'année","Nb patient sur la période de recueil","ND patient extrapolé sur l'année","Nb patient sur la période de recueil","ND patient extrapolé sur l'année","Nb patient sur la période de recueil","ND patient extrapolé sur l'année"]
["Nombre de patients priorisés conciliés en entrée et/ou sortie",{"$f":"SUMPRODUCT((YEAR('RECUEIL DES DONNEES'!O$4:O$1996)=2018)*'RECUEIL DES DONNEES'!Q$4:Q$1996)","v":0},{"$f":"B23*52/B20","v":{"$error":"#DIV/0!"}},{"$f":"SUMPRODUCT((YEAR('RECUEIL DES DONNEES'!O$4:O$1996)=2019)*'RECUEIL DES DONNEES'!Q$4:Q$1996)","v":0},{"$f":"D23*52/D20","v":{"$error":"#DIV/0!"}},{"$f":"SUMPRODUCT((YEAR('RECUEIL DES DONNEES'!O$4:O$1996)=2020)*'RECUEIL DES DONNEES'!Q$4:Q$1996)","v":0},{"$f":"F23*52/F20","v":{"$error":"#DIV/0!"}},{"$f":"SUMPRODUCT((YEAR('RECUEIL DES DONNEES'!O$4:O$1996)=2021)*'RECUEIL DES DONNEES'!Q$4:Q$1996)","v":0},{"$f":"H23*52/H20","v":{"$error":"#DIV/0!"}},{"$f":"SUMPRODUCT((YEAR('RECUEIL DES DONNEES'!O$4:O$1996)=2022)*'RECUEIL DES DONNEES'!Q$4:Q$1996)","v":0},{"$f":"J23*52/J20","v":{"$error":"#DIV/0!"}}]
["Nombre de patients priorisés hospitalisés",{"$f":"SUMPRODUCT((YEAR('RECUEIL DES DONNEES'!O$4:O$1996)=2018)*'RECUEIL DES DONNEES'!R$4:R$1996)","v":0},{"$f":"B24*52/B20","v":{"$error":"#DIV/0!"}},{"$f":"SUMPRODUCT((YEAR('RECUEIL DES DONNEES'!O$4:O$1996)=2019)*'RECUEIL DES DONNEES'!R$4:R$1996)","v":0},{"$f":"D24*52/D20","v":{"$error":"#DIV/0!"}},{"$f":"SUMPRODUCT((YEAR('RECUEIL DES DONNEES'!O$4:O$1996)=2020)*'RECUEIL DES DONNEES'!R$4:R$1996)","v":0},{"$f":"F24*52/F20","v":{"$error":"#DIV/0!"}},{"$f":"SUMPRODUCT((YEAR('RECUEIL DES DONNEES'!O$4:O$1996)=2021)*'RECUEIL DES DONNEES'!R$4:R$1996)","v":0},{"$f":"H24*52/H20","v":{"$error":"#DIV/0!"}},{"$f":"SUMPRODUCT((YEAR('RECUEIL DES DONNEES'!O$4:O$1996)=2022)*'RECUEIL DES DONNEES'!R$4:R$1996)","v":0},{"$f":"J24*52/J20","v":{"$error":"#DIV/0!"}}]
["Indicateur CAQES",{"$f":"C23/C24","v":{"$error":"#DIV/0!"}},null,{"$f":"E23/E24","v":{"$error":"#DIV/0!"}},null,{"$f":"G23/G24","v":{"$error":"#DIV/0!"}},null,{"$f":"I23/I24","v":{"$error":"#DIV/0!"}},null,{"$f":"K23/K24","v":{"$error":"#DIV/0!"}}]
[]
["ACTIVITE","Nb patient sur la période de recueil","Nb patient extrapolé sur l'année","Nb patient sur la période de recueil","ND patient extrapolé sur l'année","Nb patient sur la période de recueil","ND patient extrapolé sur l'année","Nb patient sur la période de recueil","ND patient extrapolé sur l'année","Nb patient sur la période de recueil","ND patient extrapolé sur l'année"]
["Nombre de patients entrants",{"$f":"SUMPRODUCT((YEAR('RECUEIL DES DONNEES'!O$4:O$1996)=2018)*'RECUEIL DES DONNEES'!S$4:S$1996)","v":0},{"$f":"B28*52/B$20","v":{"$error":"#DIV/0!"}},{"$f":"SUMPRODUCT((YEAR('RECUEIL DES DONNEES'!O$4:O$1996)=2019)*'RECUEIL DES DONNEES'!S$4:S$1996)","v":0},{"$f":"D28*52/D$20","v":{"$error":"#DIV/0!"}},{"$f":"SUMPRODUCT((YEAR('RECUEIL DES DONNEES'!O$4:O$1996)=2020)*'RECUEIL DES DONNEES'!S$4:S$1996)","v":0},{"$f":"F28*52/F$20","v":{"$error":"#DIV/0!"}},{"$f":"SUMPRODUCT((YEAR('RECUEIL DES DONNEES'!O$4:O$1996)=2021)*'RECUEIL DES DONNEES'!S$4:S$1996)","v":0},{"$f":"H28*52/H$20","v":{"$error":"#DIV/0!"}},{"$f":"SUMPRODUCT((YEAR('RECUEIL DES DONNEES'!O$4:O$1996)=2022)*'RECUEIL DES DONNEES'!S$4:S$1996)","v":0},{"$f":"J28*52/J$20","v":{"$error":"#DIV/0!"}}]
["Nombre d'ETP pharmaceutiques dédiés",{"$f":"SUMPRODUCT((YEAR('RECUEIL DES DONNEES'!O4:O1999)=2018)*('RECUEIL DES DONNEES'!T4:T1999)/SUMPRODUCT((YEAR('RECUEIL DES DONNEES'!O4:O1999)=2018)*1))","v":{"$error":"#DIV/0!"}},null,{"$f":"SUMPRODUCT((YEAR('RECUEIL DES DONNEES'!O4:O1999)=2019)*('RECUEIL DES DONNEES'!T4:T1999)/SUMPRODUCT((YEAR('RECUEIL DES DONNEES'!O4:O1999)=2019)*1))","v":{"$error":"#DIV/0!"}},null,{"$f":"SUMPRODUCT((YEAR('RECUEIL DES DONNEES'!O4:O1999)=2020)*('RECUEIL DES DONNEES'!T4:T1999)/SUMPRODUCT((YEAR('RECUEIL DES DONNEES'!O4:O1999)=2020)*1))","v":{"$error":"#DIV/0!"}},null,{"$f":"SUMPRODUCT((YEAR('RECUEIL DES DONNEES'!O4:O1999)=2021)*('RECUEIL DES DONNEES'!T4:T1999)/SUMPRODUCT((YEAR('RECUEIL DES DONNEES'!O4:O1999)=2021)*1))","v":{"$error":"#DIV/0!"}},null,{"$f":"SUMPRODUCT((YEAR('RECUEIL DES DONNEES'!O4:O1999)=2022)*('RECUEIL DES DONNEES'!T4:T1999)/SUMPRODUCT((YEAR('RECUEIL DES DONNEES'!O4:O1999)=2022)*1))","v":{"$error":"#DIV/0!"}}]
["Indicateur d'activité 1: \nNb patients conciliés entrants/ Nb de patients entrants",{"$f":"C23/C28","v":{"$error":"#DIV/0!"}},null,{"$f":"E23/E28","v":{"$error":"#DIV/0!"}},null,{"$f":"G23/F28","v":{"$error":"#DIV/0!"}},null,{"$f":"I23/I28","v":{"$error":"#DIV/0!"}},null,{"$f":"K23/K28","v":{"$error":"#DIV/0!"}}]
["Indicateur d'activité 2:\nNb de patients conciliés/Nb ETP pharmaceutiques dédiés",{"$f":"C23/B29","v":{"$error":"#DIV/0!"}},null,{"$f":"E23/D29","v":{"$error":"#DIV/0!"}},null,{"$f":"G23/F29","v":{"$error":"#DIV/0!"}},null,{"$f":"I23/H29","v":{"$error":"#DIV/0!"}},null,{"$f":"K23/J29","v":{"$error":"#DIV/0!"}}]
[]
["CLINIQUE","Nb patient sur la période de recueil","Nb patient extrapolé sur l'année","Nb patient sur la période de recueil","ND patient extrapolé sur l'année","Nb patient sur la période de recueil","ND patient extrapolé sur l'année","Nb patient sur la période de recueil","ND patient extrapolé sur l'année","Nb patient sur la période de recueil","ND patient extrapolé sur l'année"]
["Nombre de patients conciliés avec au moins une divergence non documentée",{"$f":"SUMPRODUCT((YEAR('RECUEIL DES DONNEES'!O$4:O$1996)=2018)*'RECUEIL DES DONNEES'!U$4:U$1996)","v":0},{"$f":"B34*52/B$20","v":{"$error":"#DIV/0!"}},{"$f":"SUMPRODUCT((YEAR('RECUEIL DES DONNEES'!O$4:O$1996)=2019)*'RECUEIL DES DONNEES'!U$4:U$1996)","v":0},{"$f":"D34*52/D$20","v":{"$error":"#DIV/0!"}},{"$f":"SUMPRODUCT((YEAR('RECUEIL DES DONNEES'!O$4:O$1996)=2020)*'RECUEIL DES DONNEES'!U$4:U$1996)","v":0},{"$f":"F34*52/F$20","v":{"$error":"#DIV/0!"}},{"$f":"SUMPRODUCT((YEAR('RECUEIL DES DONNEES'!O$4:O$1996)=2021)*'RECUEIL DES DONNEES'!U$4:U$1996)","v":0},{"$f":"H34*52/H$20","v":{"$error":"#DIV/0!"}},{"$f":"SUMPRODUCT((YEAR('RECUEIL DES DONNEES'!O$4:O$1996)=2022)*'RECUEIL DES DONNEES'!U$4:U$1996)","v":0},{"$f":"J34*52/J$20","v":{"$error":"#DIV/0!"}}]
["Nombre de patients conciliés avec au moins une divergence non documentée non intentionnelle",{"$f":"SUMPRODUCT((YEAR('RECUEIL DES DONNEES'!O$4:O$1996)=2018)*'RECUEIL DES DONNEES'!V$4:V$1996)","v":0},{"$f":"B35*52/B$20","v":{"$error":"#DIV/0!"}},{"$f":"SUMPRODUCT((YEAR('RECUEIL DES DONNEES'!O$4:O$1996)=2019)*'RECUEIL DES DONNEES'!V$4:V$1996)","v":0},{"$f":"D35*52/D$20","v":{"$error":"#DIV/0!"}},{"$f":"SUMPRODUCT((YEAR('RECUEIL DES DONNEES'!O$4:O$1996)=2020)*'RECUEIL DES DONNEES'!V$4:V$1996)","v":0},{"$f":"F35*52/F$20","v":{"$error":"#DIV/0!"}},{"$f":"SUMPRODUCT((YEAR('RECUEIL DES DONNEES'!O$4:O$1996)=2021)*'RECUEIL DES DONNEES'!V$4:V$1996)","v":0},{"$f":"H35*52/H$20","v":{"$error":"#DIV/0!"}},{"$f":"SUMPRODUCT((YEAR('RECUEIL DES DONNEES'!O$4:O$1996)=2022)*'RECUEIL DES DONNEES'!V$4:V$1996)","v":0},{"$f":"J35*52/J$20","v":{"$error":"#DIV/0!"}}]
["Nombre d'IP ayant entrainé des modifications de prescription",{"$f":"SUMPRODUCT((YEAR('RECUEIL DES DONNEES'!O$4:O$1996)=2018)*'RECUEIL DES DONNEES'!W$4:W$1996)","v":0},{"$f":"B36*52/B$20","v":{"$error":"#DIV/0!"}},{"$f":"SUMPRODUCT((YEAR('RECUEIL DES DONNEES'!O$4:O$1996)=2019)*'RECUEIL DES DONNEES'!W$4:W$1996)","v":0},{"$f":"D36*52/D$20","v":{"$error":"#DIV/0!"}},{"$f":"SUMPRODUCT((YEAR('RECUEIL DES DONNEES'!O$4:O$1996)=2020)*'RECUEIL DES DONNEES'!W$4:W$1996)","v":0},{"$f":"F36*52/F$20","v":{"$error":"#DIV/0!"}},{"$f":"SUMPRODUCT((YEAR('RECUEIL DES DONNEES'!O$4:O$1996)=2021)*'RECUEIL DES DONNEES'!W$4:W$1996)","v":0},{"$f":"H36*52/H$20","v":{"$error":"#DIV/0!"}},{"$f":"SUMPRODUCT((YEAR('RECUEIL DES DONNEES'!O$4:O$1996)=2022)*'RECUEIL DES DONNEES'!W$4:W$1996)","v":0},{"$f":"J36*52/J$20","v":{"$error":"#DIV/0!"}}]
["Nombre de patients ayant bénéficié d'une activité de pharmacie clinique de niveau 3",{"$f":"SUMPRODUCT((YEAR('RECUEIL DES DONNEES'!O$4:O$1996)=2018)*'RECUEIL DES DONNEES'!X$4:X$1996)","v":0},{"$f":"B37*52/B$20","v":{"$error":"#DIV/0!"}},{"$f":"SUMPRODUCT((YEAR('RECUEIL DES DONNEES'!O$4:O$1996)=2019)*'RECUEIL DES DONNEES'!X$4:X$1996)","v":0},{"$f":"D37*52/D$20","v":{"$error":"#DIV/0!"}},{"$f":"SUMPRODUCT((YEAR('RECUEIL DES DONNEES'!O$4:O$1996)=2020)*'RECUEIL DES DONNEES'!X$4:X$1996)","v":0},{"$f":"F37*52/F$20","v":{"$error":"#DIV/0!"}},{"$f":"SUMPRODUCT((YEAR('RECUEIL DES DONNEES'!O$4:O$1996)=2021)*'RECUEIL DES DONNEES'!X$4:X$1996)","v":0},{"$f":"H37*52/H$20","v":{"$error":"#DIV/0!"}},{"$f":"SUMPRODUCT((YEAR('RECUEIL DES DONNEES'!O$4:O$1996)=2022)*'RECUEIL DES DONNEES'!X$4:X$1996)","v":0},{"$f":"J37*52/J$20","v":{"$error":"#DIV/0!"}}]
["Indicateur clinique 1: \nNb patients conciliés avec au moins une divergencee non documentée/ Nb de patients conciliés",{"$f":"C34/C23","v":{"$error":"#DIV/0!"}},null,{"$f":"E34/E23","v":{"$error":"#DIV/0!"}},null,{"$f":"G34/G23","v":{"$error":"#DIV/0!"}},null,{"$f":"I34/I23","v":{"$error":"#DIV/0!"}},null,{"$f":"K34/K23","v":{"$error":"#DIV/0!"}}]
["Indicateur clinique 2:\nNb d'interventions pharmaceutiques ayant entrainé des modifications de prescription/ Nb de patients ayant bénéficié d'une activité de pharmacie clinique de niveau 3",{"$f":"C36/C37","v":{"$error":"#DIV/0!"}},null,{"$f":"E36/E37","v":{"$error":"#DIV/0!"}},null,{"$f":"G36/G37","v":{"$error":"#DIV/0!"}},null,{"$f":"I36/I37","v":{"$error":"#DIV/0!"}},null,{"$f":"K36/K37","v":{"$error":"#DIV/0!"}}]
[]
["Secteur 2"]
["Type de  conciliation"]
["Proactive",{"$f":"IF(SUMPRODUCT(('RECUEIL DES DONNEES'!Y$4:Y$1999=TRUE)*(YEAR('RECUEIL DES DONNEES'!AC$4:AC$1999)=2018))>0,\"OUI\",\"NON\")","v":"NON"},null,{"$f":"IF(SUMPRODUCT(('RECUEIL DES DONNEES'!Y$4:Y$1999=TRUE)*(YEAR('RECUEIL DES DONNEES'!AC$4:AC$1999)=2019))>0,\"OUI\",\"NON\")","v":"NON"},null,{"$f":"IF(SUMPRODUCT(('RECUEIL DES DONNEES'!Y$4:Y$1999=TRUE)*(YEAR('RECUEIL DES DONNEES'!AC$4:AC$1999)=2020))>0,\"OUI\",\"NON\")","v":"NON"},null,{"$f":"IF(SUMPRODUCT(('RECUEIL DES DONNEES'!Y$4:Y$1999=TRUE)*(YEAR('RECUEIL DES DONNEES'!AC$4:AC$1999)=2021))>0,\"OUI\",\"NON\")","v":"NON"},null,{"$f":"IF(SUMPRODUCT(('RECUEIL DES DONNEES'!Y$4:Y$1999=TRUE)*(YEAR('RECUEIL DES DONNEES'!AC$4:AC$1999)=2022))>0,\"OUI\",\"NON\")","v":"NON"}]
["Rétroactive",{"$f":"IF(SUMPRODUCT(('RECUEIL DES DONNEES'!Z$4:Z$1999=TRUE)*(YEAR('RECUEIL DES DONNEES'!AC$4:AC$1999)=2018))>0,\"OUI\",\"NON\")","v":"NON"},null,{"$f":"IF(SUMPRODUCT(('RECUEIL DES DONNEES'!Z$4:Z$1999=TRUE)*(YEAR('RECUEIL DES DONNEES'!AC$4:AC$1999)=2019))>0,\"OUI\",\"NON\")","v":"NON"},null,{"$f":"IF(SUMPRODUCT(('RECUEIL DES DONNEES'!Z$4:Z$1999=TRUE)*(YEAR('RECUEIL DES DONNEES'!AC$4:AC$1999)=2020))>0,\"OUI\",\"NON\")","v":"NON"},null,{"$f":"IF(SUMPRODUCT(('RECUEIL DES DONNEES'!Z$4:Z$1999=TRUE)*(YEAR('RECUEIL DES DONNEES'!AC$4:AC$1999)=2021))>0,\"OUI\",\"NON\")","v":"NON"},null,{"$f":"IF(SUMPRODUCT(('RECUEIL DES DONNEES'!Z$4:Z$1999=TRUE)*(YEAR('RECUEIL DES DONNEES'!AC$4:AC$1999)=2022))>0,\"OUI\",\"NON\")","v":"NON"}]
["Entrée",{"$f":"IF(SUMPRODUCT(('RECUEIL DES DONNEES'!AA$4:AA$1999=TRUE)*(YEAR('RECUEIL DES DONNEES'!AC$4:AC$1999)=2018))>0,\"OUI\",\"NON\")","v":"NON"},null,{"$f":"IF(SUMPRODUCT(('RECUEIL DES DONNEES'!AA$4:AA$1999=TRUE)*(YEAR('RECUEIL DES DONNEES'!AC$4:AC$1999)=2019))>0,\"OUI\",\"NON\")","v":"NON"},null,{"$f":"IF(SUMPRODUCT(('RECUEIL DES DONNEES'!AA$4:AA$1999=TRUE)*(YEAR('RECUEIL DES DONNEES'!AC$4:AC$1999)=2020))>0,\"OUI\",\"NON\")","v":"NON"},null,{"$f":"IF(SUMPRODUCT(('RECUEIL DES DONNEES'!AA$4:AA$1999=TRUE)*(YEAR('RECUEIL DES DONNEES'!AC$4:AC$1999)=2021))>0,\"OUI\",\"NON\")","v":"NON"},null,{"$f":"IF(SUMPRODUCT(('RECUEIL DES DONNEES'!AA$4:AA$1999=TRUE)*(YEAR('RECUEIL DES DONNEES'!AC$4:AC$1999)=2022))>0,\"OUI\",\"NON\")","v":"NON"}]
["Sortie",{"$f":"IF(SUMPRODUCT(('RECUEIL DES DONNEES'!AB$4:AB$1999=TRUE)*(YEAR('RECUEIL DES DONNEES'!AC$4:AC$1999)=2018))>0,\"OUI\",\"NON\")","v":"NON"},null,{"$f":"IF(SUMPRODUCT(('RECUEIL DES DONNEES'!AB$4:AB$1999=TRUE)*(YEAR('RECUEIL DES DONNEES'!AC$4:AC$1999)=2019))>0,\"OUI\",\"NON\")","v":"NON"},null,{"$f":"IF(SUMPRODUCT(('RECUEIL DES DONNEES'!AB$4:AB$1999=TRUE)*(YEAR('RECUEIL DES DONNEES'!AC$4:AC$1999)=2020))>0,\"OUI\",\"NON\")","v":"NON"},null,{"$f":"IF(SUMPRODUCT(('RECUEIL DES DONNEES'!AB$4:AB$1999=TRUE)*(YEAR('RECUEIL DES DONNEES'!AC$4:AC$1999)=2021))>0,\"OUI\",\"NON\")","v":"NON"},null,{"$f":"IF(SUMPRODUCT(('RECUEIL DES DONNEES'!AB$4:AB$1999=TRUE)*(YEAR('RECUEIL DES DONNEES'!AC$4:AC$1999)=2022))>0,\"OUI\",\"NON\")","v":"NON"}]
[]
["Période de recueil des indicateurs en semaine",{"$f":"SUMPRODUCT((YEAR('RECUEIL DES DONNEES'!AC$4:AC$1996)=2018)*(('RECUEIL DES DONNEES'!AD$4:AD$1996-'RECUEIL DES DONNEES'!AC$4:AC$1996)+1)/7)","v":0},null,{"$f":"SUMPRODUCT((YEAR('RECUEIL DES DONNEES'!AC$4:AC$1996)=2019)*(('RECUEIL DES DONNEES'!AD$4:AD$1996-'RECUEIL DES DONNEES'!AC$4:AC$1996)+1)/7)","v":0},null,{"$f":"SUMPRODUCT((YEAR('RECUEIL DES DONNEES'!AC$4:AC$1996)=2020)*(('RECUEIL DES DONNEES'!AD$4:AD$1996-'RECUEIL DES DONNEES'!AC$4:AC$1996)+1)/7)","v":0},null,{"$f":"SUMPRODUCT((YEAR('RECUEIL DES DONNEES'!AC$4:AC$1996)=2021)*(('RECUEIL DES DONNEES'!AD$4:AD$1996-'RECUEIL DES DONNEES'!AC$4:AC$1996)+1)/7)","v":0},null,{"$f":"SUMPRODUCT((YEAR('RECUEIL DES DONNEES'!AC$4:AC$1996)=2022)*(('RECUEIL DES DONNEES'!AD$4:AD$1996-'RECUEIL DES DONNEES'!AC$4:AC$1996)+1)/7)","v":0}]
[]
["CAQES","Nb patient sur la période de recueil","Nb patient extrapolé sur l'année","Nb patient sur la période de recueil","ND patient extrapolé sur l'année","Nb patient sur la période de recueil","ND patient extrapolé sur l'année","Nb patient sur la période de recueil","ND patient extrapolé sur l'année","Nb patient sur la période de recueil","ND patient extrapolé sur l'année"]
["Nombre de patients priorisés conciliés en entrée et/ou sortie",{"$f":"SUMPRODUCT((YEAR('RECUEIL DES DONNEES'!AC$4:AC$1996)=2018)*'RECUEIL DES DONNEES'!AE$4:AE$1996)","v":0},{"$f":"B51*52/B48","v":{"$error":"#DIV/0!"}},{"$f":"SUMPRODUCT((YEAR('RECUEIL DES DONNEES'!AC$4:AC$1996)=2019)*'RECUEIL DES DONNEES'!AE$4:AE$1996)","v":0},{"$f":"D51*52/D48","v":{"$error":"#DIV/0!"}},{"$f":"SUMPRODUCT((YEAR('RECUEIL DES DONNEES'!AC$4:AC$1996)=2020)*'RECUEIL DES DONNEES'!AE$4:AE$1996)","v":0},{"$f":"F51*52/F48","v":{"$error":"#DIV/0!"}},{"$f":"SUMPRODUCT((YEAR('RECUEIL DES DONNEES'!AC$4:AC$1996)=2021)*'RECUEIL DES DONNEES'!AE$4:AE$1996)","v":0},{"$f":"H51*52/H48","v":{"$error":"#DIV/0!"}},{"$f":"SUMPRODUCT((YEAR('RECUEIL DES DONNEES'!AC$4:AC$1996)=2022)*'RECUEIL DES DONNEES'!AE$4:AE$1996)","v":0},{"$f":"J51*52/J48","v":{"$error":"#DIV/0!"}}]
["Nombre de patients priorisés hospitalisés",{"$f":"SUMPRODUCT((YEAR('RECUEIL DES DONNEES'!AC$4:AC$1996)=2018)*'RECUEIL DES DONNEES'!AF$4:AF$1996)","v":0},{"$f":"B52*52/B48","v":{"$error":"#DIV/0!"}},{"$f":"SUMPRODUCT((YEAR('RECUEIL DES DONNEES'!AC$4:AC$1996)=2019)*'RECUEIL DES DONNEES'!AF$4:AF$1996)","v":0},{"$f":"D52*52/D48","v":{"$error":"#DIV/0!"}},{"$f":"SUMPRODUCT((YEAR('RECUEIL DES DONNEES'!AC$4:AC$1996)=2020)*'RECUEIL DES DONNEES'!AF$4:AF$1996)","v":0},{"$f":"F52*52/F48","v":{"$error":"#DIV/0!"}},{"$f":"SUMPRODUCT((YEAR('RECUEIL DES DONNEES'!AC$4:AC$1996)=2021)*'RECUEIL DES DONNEES'!AF$4:AF$1996)","v":0},{"$f":"H52*52/H48","v":{"$error":"#DIV/0!"}},{"$f":"SUMPRODUCT((YEAR('RECUEIL DES DONNEES'!AC$4:AC$1996)=2022)*'RECUEIL DES DONNEES'!AF$4:AF$1996)","v":0},{"$f":"J52*52/J48","v":{"$error":"#DIV/0!"}}]
["Indicateur CAQES",{"$f":"C51/C52","v":{"$error":"#DIV/0!"}},null,{"$f":"D51/D52","v":{"$error":"#DIV/0!"}},null,{"$f":"G51/G52","v":{"$error":"#DIV/0!"}},null,{"$f":"I51/I52","v":{"$error":"#DIV/0!"}},null,{"$f":"K51/K52","v":{"$error":"#DIV/0!"}}]
[]
["ACTIVITE","Nb patient sur la période de recueil","Nb patient extrapolé sur l'année","Nb patient sur la période de recueil","ND patient extrapolé sur l'année","Nb patient sur la période de recueil","ND patient extrapolé sur l'année","Nb patient sur la période de recueil","ND patient extrapolé sur l'année","Nb patient sur la période de recueil","ND patient extrapolé sur l'année"]
["Nombre de patients entrants",{"$f":"SUMPRODUCT((YEAR('RECUEIL DES DONNEES'!AC$4:AC$1996)=2018)*'RECUEIL DES DONNEES'!AG$4:AG$1996)","v":0},{"$f":"B56*52/B48","v":{"$error":"#DIV/0!"}},{"$f":"SUMPRODUCT((YEAR('RECUEIL DES DONNEES'!AC$4:AC$1996)=2019)*'RECUEIL DES DONNEES'!AG$4:AG$1996)","v":0},{"$f":"D56*52/D48","v":{"$error":"#DIV/0!"}},{"$f":"SUMPRODUCT((YEAR('RECUEIL DES DONNEES'!AC$4:AC$1996)=2020)*'RECUEIL DES DONNEES'!AG$4:AG$1996)","v":0},{"$f":"F56*52/F48","v":{"$error":"#DIV/0!"}},{"$f":"SUMPRODUCT((YEAR('RECUEIL DES DONNEES'!AC$4:AC$1996)=2021)*'RECUEIL DES DONNEES'!AG$4:AG$1996)","v":0},{"$f":"H56*52/H48","v":{"$error":"#DIV/0!"}},{"$f":"SUMPRODUCT((YEAR('RECUEIL DES DONNEES'!AC$4:AC$1996)=2022)*'RECUEIL DES DONNEES'!AG$4:AG$1996)","v":0},{"$f":"J56*52/J48","v":{"$error":"#DIV/0!"}}]
["Nombre d'ETP pharmaceutiques dédiés",{"$f":"SUMPRODUCT((YEAR('RECUEIL DES DONNEES'!AC4:AC1999)=2018)*('RECUEIL DES DONNEES'!AH4:AH1999)/SUMPRODUCT((YEAR('RECUEIL DES DONNEES'!AC4:AC1999)=2018)*1))","v":{"$error":"#DIV/0!"}},null,{"$f":"SUMPRODUCT((YEAR('RECUEIL DES DONNEES'!AC4:AC1999)=2019)*('RECUEIL DES DONNEES'!AH4:AH1999)/SUMPRODUCT((YEAR('RECUEIL DES DONNEES'!AC4:AC1999)=2019)*1))","v":{"$error":"#DIV/0!"}},null,{"$f":"SUMPRODUCT((YEAR('RECUEIL DES DONNEES'!AC4:AC1999)=2020)*('RECUEIL DES DONNEES'!AH4:AH1999)/SUMPRODUCT((YEAR('RECUEIL DES DONNEES'!AC4:AC1999)=2020)*1))","v":{"$error":"#DIV/0!"}},null,{"$f":"SUMPRODUCT((YEAR('RECUEIL DES DONNEES'!AC4:AC1999)=2021)*('RECUEIL DES DONNEES'!AH4:AH1999)/SUMPRODUCT((YEAR('RECUEIL DES DONNEES'!AC4:AC1999)=2021)*1))","v":{"$error":"#DIV/0!"}},null,{"$f":"SUMPRODUCT((YEAR('RECUEIL DES DONNEES'!AC4:AC1999)=2022)*('RECUEIL DES DONNEES'!AH4:AH1999)/SUMPRODUCT((YEAR('RECUEIL DES DONNEES'!AC4:AC1999)=2022)*1))","v":{"$error":"#DIV/0!"}}]
["Indicateur d'activité 1: \nNb patients conciliés entrants/ Nb de patients entrants",{"$f":"C51/C56","v":{"$error":"#DIV/0!"}},null,{"$f":"E51/E56","v":{"$error":"#DIV/0!"}},null,{"$f":"G51/G56","v":{"$error":"#DIV/0!"}},null,{"$f":"I51/I56","v":{"$error":"#DIV/0!"}},null,{"$f":"K51/K56","v":{"$error":"#DIV/0!"}}]
["Indicateur d'activité 2:\nNb de patients conciliés/Nb ETP pharmaceutiques dédiés",{"$f":"C51/B57","v":{"$error":"#DIV/0!"}},null,{"$f":"E51/D57","v":{"$error":"#DIV/0!"}},null,{"$f":"G51/F57","v":{"$error":"#DIV/0!"}},null,{"$f":"I51/H57","v":{"$error":"#DIV/0!"}},null,{"$f":"K51/J57","v":{"$error":"#DIV/0!"}}]
[]
["CLINIQUE","Nb patient sur la période de recueil","Nb patient extrapolé sur l'année","Nb patient sur la période de recueil","ND patient extrapolé sur l'année","Nb patient sur la période de recueil","ND patient extrapolé sur l'année","Nb patient sur la période de recueil","ND patient extrapolé sur l'année","Nb patient sur la période de recueil","ND patient extrapolé sur l'année"]
["Nombre de patients conciliés avec au moins une divergence non documentée",{"$f":"SUMPRODUCT((YEAR('RECUEIL DES DONNEES'!AC$4:AC$1996)=2018)*'RECUEIL DES DONNEES'!AI$4:AI$1996)","v":0},{"$f":"B62*52/B$48","v":{"$error":"#DIV/0!"}},{"$f":"SUMPRODUCT((YEAR('RECUEIL DES DONNEES'!AC$4:AC$1996)=2019)*'RECUEIL DES DONNEES'!AI$4:AI$1996)","v":0},{"$f":"D62*52/D$48","v":{"$error":"#DIV/0!"}},{"$f":"SUMPRODUCT((YEAR('RECUEIL DES DONNEES'!AC$4:AC$1996)=2020)*'RECUEIL DES DONNEES'!AI$4:AI$1996)","v":0},{"$f":"F62*52/F$48","v":{"$error":"#DIV/0!"}},{"$f":"SUMPRODUCT((YEAR('RECUEIL DES DONNEES'!AC$4:AC$1996)=2021)*'RECUEIL DES DONNEES'!AI$4:AI$1996)","v":0},{"$f":"H62*52/H$48","v":{"$error":"#DIV/0!"}},{"$f":"SUMPRODUCT((YEAR('RECUEIL DES DONNEES'!AC$4:AC$1996)=2022)*'RECUEIL DES DONNEES'!AI$4:AI$1996)","v":0},{"$f":"J62*52/J$48","v":{"$error":"#DIV/0!"}}]
["Nombre de patients conciliés avec au moins une divergence non documentée non intentionnelle",{"$f":"SUMPRODUCT((YEAR('RECUEIL DES DONNEES'!AC$4:AC$1996)=2018)*'RECUEIL DES DONNEES'!AJ$4:AJ$1996)","v":0},{"$f":"B63*52/B$48","v":{"$error":"#DIV/0!"}},{"$f":"SUMPRODUCT((YEAR('RECUEIL DES DONNEES'!AC$4:AC$1996)=2019)*'RECUEIL DES DONNEES'!AJ$4:AJ$1996)","v":0},{"$f":"D63*52/D$48","v":{"$error":"#DIV/0!"}},{"$f":"SUMPRODUCT((YEAR('RECUEIL DES DONNEES'!AC$4:AC$1996)=2020)*'RECUEIL DES DONNEES'!AJ$4:AJ$1996)","v":0},{"$f":"F63*52/F$48","v":{"$error":"#DIV/0!"}},{"$f":"SUMPRODUCT((YEAR('RECUEIL DES DONNEES'!AC$4:AC$1996)=2021)*'RECUEIL DES DONNEES'!AJ$4:AJ$1996)","v":0},{"$f":"H63*52/H$48","v":{"$error":"#DIV/0!"}},{"$f":"SUMPRODUCT((YEAR('RECUEIL DES DONNEES'!AC$4:AC$1996)=2022)*'RECUEIL DES DONNEES'!AJ$4:AJ$1996)","v":0},{"$f":"J63*52/J$48","v":{"$error":"#DIV/0!"}}]
["Nombre d'IP ayant entrainé des modifications de prescription",{"$f":"SUMPRODUCT((YEAR('RECUEIL DES DONNEES'!AC$4:AC$1996)=2018)*'RECUEIL DES DONNEES'!AK$4:AK$1996)","v":0},{"$f":"B64*52/B$48","v":{"$error":"#DIV/0!"}},{"$f":"SUMPRODUCT((YEAR('RECUEIL DES DONNEES'!AC$4:AC$1996)=2019)*'RECUEIL DES DONNEES'!AK$4:AK$1996)","v":0},{"$f":"D64*52/D$48","v":{"$error":"#DIV/0!"}},{"$f":"SUMPRODUCT((YEAR('RECUEIL DES DONNEES'!AC$4:AC$1996)=2020)*'RECUEIL DES DONNEES'!AK$4:AK$1996)","v":0},{"$f":"F64*52/F$48","v":{"$error":"#DIV/0!"}},{"$f":"SUMPRODUCT((YEAR('RECUEIL DES DONNEES'!AC$4:AC$1996)=2021)*'RECUEIL DES DONNEES'!AK$4:AK$1996)","v":0},{"$f":"H64*52/H$48","v":{"$error":"#DIV/0!"}},{"$f":"SUMPRODUCT((YEAR('RECUEIL DES DONNEES'!AC$4:AC$1996)=2022)*'RECUEIL DES DONNEES'!AK$4:AK$1996)","v":0},{"$f":"J64*52/J$48","v":{"$error":"#DIV/0!"}}]
["Nombre de patients ayant bénéficié d'une activité de pharmacie clinique de niveau 3",{"$f":"SUMPRODUCT((YEAR('RECUEIL DES DONNEES'!AC$4:AC$1996)=2018)*'RECUEIL DES DONNEES'!AL$4:AL$1996)","v":0},{"$f":"B65*52/B$48","v":{"$error":"#DIV/0!"}},{"$f":"SUMPRODUCT((YEAR('RECUEIL DES DONNEES'!AC$4:AC$1996)=2019)*'RECUEIL DES DONNEES'!AL$4:AL$1996)","v":0},{"$f":"D65*52/D$48","v":{"$error":"#DIV/0!"}},{"$f":"SUMPRODUCT((YEAR('RECUEIL DES DONNEES'!AC$4:AC$1996)=2020)*'RECUEIL DES DONNEES'!AL$4:AL$1996)","v":0},{"$f":"F65*52/F$48","v":{"$error":"#DIV/0!"}},{"$f":"SUMPRODUCT((YEAR('RECUEIL DES DONNEES'!AC$4:AC$1996)=2021)*'RECUEIL DES DONNEES'!AL$4:AL$1996)","v":0},{"$f":"H65*52/H$48","v":{"$error":"#DIV/0!"}},{"$f":"SUMPRODUCT((YEAR('RECUEIL DES DONNEES'!AC$4:AC$1996)=2022)*'RECUEIL DES DONNEES'!AL$4:AL$1996)","v":0},{"$f":"J65*52/J$48","v":{"$error":"#DIV/0!"}}]
["Indicateur clinique 1: \nNb patients conciliés avec au moins une divergencee non documentée/ Nb de patients conciliés",{"$f":"C62/C51","v":{"$error":"#DIV/0!"}},null,{"$f":"E62/E51","v":{"$error":"#DIV/0!"}},null,{"$f":"G62/G51","v":{"$error":"#DIV/0!"}},null,{"$f":"I62/I51","v":{"$error":"#DIV/0!"}},null,{"$f":"K62/K51","v":{"$error":"#DIV/0!"}}]
["Indicateur clinique 2:\nNb d'interventions pharmaceutiques ayant entrainé des modifications de prescription/ Nb de patients ayant bénéficié d'une activité de pharmacie clinique de niveau 3",{"$f":"C64/C65","v":{"$error":"#DIV/0!"}},null,{"$f":"E64/E65","v":{"$error":"#DIV/0!"}},null,{"$f":"G64/G65","v":{"$error":"#DIV/0!"}},null,{"$f":"I64/I65","v":{"$error":"#DIV/0!"}},null,{"$f":"K64/K65","v":{"$error":"#DIV/0!"}}]
[]
["Secteur 3"]
["Type de  conciliation"]
["Proactive",{"$f":"IF(SUMPRODUCT(('RECUEIL DES DONNEES'!AM$4:AM$1999=TRUE)*(YEAR('RECUEIL DES DONNEES'!AQ$4:AQ$1999)=2018))>0,\"OUI\",\"NON\")","v":"NON"},null,{"$f":"IF(SUMPRODUCT(('RECUEIL DES DONNEES'!AM$4:AM$1999=TRUE)*(YEAR('RECUEIL DES DONNEES'!AQ$4:AQ$1999)=2019))>0,\"OUI\",\"NON\")","v":"NON"},null,{"$f":"IF(SUMPRODUCT(('RECUEIL DES DONNEES'!AM$4:AM$1999=TRUE)*(YEAR('RECUEIL DES DONNEES'!AQ$4:AQ$1999)=2020))>0,\"OUI\",\"NON\")","v":"NON"},null,{"$f":"IF(SUMPRODUCT(('RECUEIL DES DONNEES'!AM$4:AM$1999=TRUE)*(YEAR('RECUEIL DES DONNEES'!AQ$4:AQ$1999)=2021))>0,\"OUI\",\"NON\")","v":"NON"},null,{"$f":"IF(SUMPRODUCT(('RECUEIL DES DONNEES'!AM$4:AM$1999=TRUE)*(YEAR('RECUEIL DES DONNEES'!AQ$4:AQ$1999)=2022))>0,\"OUI\",\"NON\")","v":"NON"}]
["Rétroactive",{"$f":"IF(SUMPRODUCT(('RECUEIL DES DONNEES'!AM$4:AM$1999=TRUE)*(YEAR('RECUEIL DES DONNEES'!AQ$4:AQ$1999)=2018))>0,\"OUI\",\"NON\")","v":"NON"},null,{"$f":"IF(SUMPRODUCT(('RECUEIL DES DONNEES'!AM$4:AM$1999=TRUE)*(YEAR('RECUEIL DES DONNEES'!AQ$4:AQ$1999)=2019))>0,\"OUI\",\"NON\")","v":"NON"},null,{"$f":"IF(SUMPRODUCT(('RECUEIL DES DONNEES'!AM$4:AM$1999=TRUE)*(YEAR('RECUEIL DES DONNEES'!AQ$4:AQ$1999)=2020))>0,\"OUI\",\"NON\")","v":"NON"},null,{"$f":"IF(SUMPRODUCT(('RECUEIL DES DONNEES'!AM$4:AM$1999=TRUE)*(YEAR('RECUEIL DES DONNEES'!AQ$4:AQ$1999)=2021))>0,\"OUI\",\"NON\")","v":"NON"},null,{"$f":"IF(SUMPRODUCT(('RECUEIL DES DONNEES'!AM$4:AM$1999=TRUE)*(YEAR('RECUEIL DES DONNEES'!AQ$4:AQ$1999)=2022))>0,\"OUI\",\"NON\")","v":"NON"}]
["Entrée",{"$f":"IF(SUMPRODUCT(('RECUEIL DES DONNEES'!AM$4:AM$1999=TRUE)*(YEAR('RECUEIL DES DONNEES'!AQ$4:AQ$1999)=2018))>0,\"OUI\",\"NON\")","v":"NON"},null,{"$f":"IF(SUMPRODUCT(('RECUEIL DES DONNEES'!AM$4:AM$1999=TRUE)*(YEAR('RECUEIL DES DONNEES'!AQ$4:AQ$1999)=2019))>0,\"OUI\",\"NON\")","v":"NON"},null,{"$f":"IF(SUMPRODUCT(('RECUEIL DES DONNEES'!AM$4:AM$1999=TRUE)*(YEAR('RECUEIL DES DONNEES'!AQ$4:AQ$1999)=2020))>0,\"OUI\",\"NON\")","v":"NON"},null,{"$f":"IF(SUMPRODUCT(('RECUEIL DES DONNEES'!AM$4:AM$1999=TRUE)*(YEAR('RECUEIL DES DONNEES'!AQ$4:AQ$1999)=2021))>0,\"OUI\",\"NON\")","v":"NON"},null,{"$f":"IF(SUMPRODUCT(('RECUEIL DES DONNEES'!AM$4:AM$1999=TRUE)*(YEAR('RECUEIL DES DONNEES'!AQ$4:AQ$1999)=2022))>0,\"OUI\",\"NON\")","v":"NON"}]
["Sortie",{"$f":"IF(SUMPRODUCT(('RECUEIL DES DONNEES'!AM$4:AM$1999=TRUE)*(YEAR('RECUEIL DES DONNEES'!AQ$4:AQ$1999)=2018))>0,\"OUI\",\"NON\")","v":"NON"},null,{"$f":"IF(SUMPRODUCT(('RECUEIL DES DONNEES'!AM$4:AM$1999=TRUE)*(YEAR('RECUEIL DES DONNEES'!AQ$4:AQ$1999)=2019))>0,\"OUI\",\"NON\")","v":"NON"},null,{"$f":"IF(SUMPRODUCT(('RECUEIL DES DONNEES'!AM$4:AM$1999=TRUE)*(YEAR('RECUEIL DES DONNEES'!AQ$4:AQ$1999)=2020))>0,\"OUI\",\"NON\")","v":"NON"},null,{"$f":"IF(SUMPRODUCT(('RECUEIL DES DONNEES'!AM$4:AM$1999=TRUE)*(YEAR('RECUEIL DES DONNEES'!AQ$4:AQ$1999)=2021))>0,\"OUI\",\"NON\")","v":"NON"},null,{"$f":"IF(SUMPRODUCT(('RECUEIL DES DONNEES'!AM$4:AM$1999=TRUE)*(YEAR('RECUEIL DES DONNEES'!AQ$4:AQ$1999)=2022))>0,\"OUI\",\"NON\")","v":"NON"}]
[]
["Période de recueil des indicateurs en semaine",{"$f":"SUMPRODUCT((YEAR('RECUEIL DES DONNEES'!AQ$4:AQ$1996)=2018)*(('RECUEIL DES DONNEES'!AR$4:AR$1996-'RECUEIL DES DONNEES'!AQ$4:AQ$1996)+1)/7)","v":0},null,{"$f":"SUMPRODUCT((YEAR('RECUEIL DES DONNEES'!AQ$4:AQ$1996)=2019)*(('RECUEIL DES DONNEES'!AR$4:AR$1996-'RECUEIL DES DONNEES'!AQ$4:AQ$1996)+1)/7)","v":0},null,{"$f":"SUMPRODUCT((YEAR('RECUEIL DES DONNEES'!AQ$4:AQ$1996)=2020)*(('RECUEIL DES DONNEES'!AR$4:AR$1996-'RECUEIL DES DONNEES'!AQ$4:AQ$1996)+1)/7)","v":0},null,{"$f":"SUMPRODUCT((YEAR('RECUEIL DES DONNEES'!AQ$4:AQ$1996)=2021)*(('RECUEIL DES DONNEES'!AR$4:AR$1996-'RECUEIL DES DONNEES'!AQ$4:AQ$1996)+1)/7)","v":0},null,{"$f":"SUMPRODUCT((YEAR('RECUEIL DES DONNEES'!AQ$4:AQ$1996)=2022)*(('RECUEIL DES DONNEES'!AR$4:AR$1996-'RECUEIL DES DONNEES'!AQ$4:AQ$1996)+1)/7)","v":0}]
[]
["CAQES","Nb patient sur la période de recueil","Nb patient extrapolé sur l'année","Nb patient sur la période de recueil","ND patient extrapolé sur l'année","Nb patient sur la période de recueil","ND patient extrapolé sur l'année","Nb patient sur la période de recueil","ND patient extrapolé sur l'année","Nb patient sur la période de recueil","ND patient extrapolé sur l'année"]
["Nombre de patients priorisés conciliés en entrée et/ou sortie",{"$f":"SUMPRODUCT((YEAR('RECUEIL DES DONNEES'!AQ$4:AQ$1996)=2018)*'RECUEIL DES DONNEES'!AS$4:AS$1996)","v":0},{"$f":"B79*52/B76","v":{"$error":"#DIV/0!"}},{"$f":"SUMPRODUCT((YEAR('RECUEIL DES DONNEES'!AQ$4:AQ$1996)=2019)*'RECUEIL DES DONNEES'!AS$4:AS$1996)","v":0},{"$f":"D79*52/D76","v":{"$error":"#DIV/0!"}},{"$f":"SUMPRODUCT((YEAR('RECUEIL DES DONNEES'!AQ$4:AQ$1996)=2020)*'RECUEIL DES DONNEES'!AS$4:AS$1996)","v":0},{"$f":"F79*52/F76","v":{"$error":"#DIV/0!"}},{"$f":"SUMPRODUCT((YEAR('RECUEIL DES DONNEES'!AQ$4:AQ$1996)=2021)*'RECUEIL DES DONNEES'!AS$4:AS$1996)","v":0},{"$f":"H79*52/H76","v":{"$error":"#DIV/0!"}},{"$f":"SUMPRODUCT((YEAR('RECUEIL DES DONNEES'!AQ$4:AQ$1996)=2022)*'RECUEIL DES DONNEES'!AS$4:AS$1996)","v":0},{"$f":"J79*52/J76","v":{"$error":"#DIV/0!"}}]
["Nombre de patients priorisés hospitalisés",{"$f":"SUMPRODUCT((YEAR('RECUEIL DES DONNEES'!AQ$4:AQ$1996)=2018)*'RECUEIL DES DONNEES'!AT$4:AT$1996)","v":0},{"$f":"B80*52/B76","v":{"$error":"#DIV/0!"}},{"$f":"SUMPRODUCT((YEAR('RECUEIL DES DONNEES'!AQ$4:AQ$1996)=2019)*'RECUEIL DES DONNEES'!AT$4:AT$1996)","v":0},{"$f":"D80*52/D76","v":{"$error":"#DIV/0!"}},{"$f":"SUMPRODUCT((YEAR('RECUEIL DES DONNEES'!AQ$4:AQ$1996)=2020)*'RECUEIL DES DONNEES'!AT$4:AT$1996)","v":0},{"$f":"F80*52/F76","v":{"$error":"#DIV/0!"}},{"$f":"SUMPRODUCT((YEAR('RECUEIL DES DONNEES'!AQ$4:AQ$1996)=2021)*'RECUEIL DES DONNEES'!AT$4:AT$1996)","v":0},{"$f":"H80*52/H76","v":{"$error":"#DIV/0!"}},{"$f":"SUMPRODUCT((YEAR('RECUEIL DES DONNEES'!AQ$4:AQ$1996)=2022)*'RECUEIL DES DONNEES'!AT$4:AT$1996)","v":0},{"$f":"J80*52/J76","v":{"$error":"#DIV/0!"}}]
["Indicateur CAQES",{"$f":"C79/C80","v":{"$error":"#DIV/0!"}},null,{"$f":"E79/E80","v":{"$error":"#DIV/0!"}},null,{"$f":"G79/G80","v":{"$error":"#DIV/0!"}},null,{"$f":"I79/I80","v":{"$error":"#DIV/0!"}},null,{"$f":"K79/K80","v":{"$error":"#DIV/0!"}}]
[]
["ACTIVITE","Nb patient sur la période de recueil","Nb patient extrapolé sur l'année","Nb patient sur la période de recueil","Nb patient extrapolé sur l'année","Nb patient sur la période de recueil","Nb patient extrapolé sur l'année","Nb patient sur la période de recueil","Nb patient extrapolé sur l'année","Nb patient sur la période de recueil","Nb patient extrapolé sur l'année"]
["Nombre de patients entrants",{"$f":"SUMPRODUCT((YEAR('RECUEIL DES DONNEES'!AQ$4:AQ$1996)=2018)*'RECUEIL DES DONNEES'!AU$4:AU$1996)","v":0},{"$f":"B84*52/B76","v":{"$error":"#DIV/0!"}},{"$f":"SUMPRODUCT((YEAR('RECUEIL DES DONNEES'!AQ$4:AQ$1996)=2019)*'RECUEIL DES DONNEES'!AU$4:AU$1996)","v":0},{"$f":"D84*52/D76","v":{"$error":"#DIV/0!"}},{"$f":"SUMPRODUCT((YEAR('RECUEIL DES DONNEES'!AQ$4:AQ$1996)=2020)*'RECUEIL DES DONNEES'!AU$4:AU$1996)","v":0},{"$f":"F84*52/F76","v":{"$error":"#DIV/0!"}},{"$f":"SUMPRODUCT((YEAR('RECUEIL DES DONNEES'!AQ$4:AQ$1996)=2021)*'RECUEIL DES DONNEES'!AU$4:AU$1996)","v":0},{"$f":"H84*52/H76","v":{"$error":"#DIV/0!"}},{"$f":"SUMPRODUCT((YEAR('RECUEIL DES DONNEES'!AQ$4:AQ$1996)=2022)*'RECUEIL DES DONNEES'!AU$4:AU$1996)","v":0},{"$f":"J84*52/J76","v":{"$error":"#DIV/0!"}}]
["Nombre d'ETP pharmaceutiques dédiés",{"$f":"SUMPRODUCT((YEAR('RECUEIL DES DONNEES'!AQ4:AQ1999)=2018)*('RECUEIL DES DONNEES'!AV4:AV1999)/SUMPRODUCT((YEAR('RECUEIL DES DONNEES'!AQ4:AQ1999)=2018)*1))","v":{"$error":"#DIV/0!"}},null,{"$f":"SUMPRODUCT((YEAR('RECUEIL DES DONNEES'!AQ4:AQ1999)=2019)*('RECUEIL DES DONNEES'!AV4:AV1999)/SUMPRODUCT((YEAR('RECUEIL DES DONNEES'!AQ4:AQ1999)=2019)*1))","v":{"$error":"#DIV/0!"}},null,{"$f":"SUMPRODUCT((YEAR('RECUEIL DES DONNEES'!AQ4:AQ1999)=2020)*('RECUEIL DES DONNEES'!AV4:AV1999)/SUMPRODUCT((YEAR('RECUEIL DES DONNEES'!AQ4:AQ1999)=2020)*1))","v":{"$error":"#DIV/0!"}},null,{"$f":"SUMPRODUCT((YEAR('RECUEIL DES DONNEES'!AQ4:AQ1999)=2021)*('RECUEIL DES DONNEES'!AV4:AV1999)/SUMPRODUCT((YEAR('RECUEIL DES DONNEES'!AQ4:AQ1999)=2021)*1))","v":{"$error":"#DIV/0!"}},null,{"$f":"SUMPRODUCT((YEAR('RECUEIL DES DONNEES'!AQ4:AQ1999)=2022)*('RECUEIL DES DONNEES'!AV4:AV1999)/SUMPRODUCT((YEAR('RECUEIL DES DONNEES'!AQ4:AQ1999)=2022)*1))","v":{"$error":"#DIV/0!"}}]
["Indicateur d'activité 1: \nNb patients conciliés entrants/ Nb de patients entrants",{"$f":"C79/C84","v":{"$error":"#DIV/0!"}},null,{"$f":"E79/E84","v":{"$error":"#DIV/0!"}},null,{"$f":"G79/G84","v":{"$error":"#DIV/0!"}},null,{"$f":"I79/I84","v":{"$error":"#DIV/0!"}},null,{"$f":"K79/K84","v":{"$error":"#DIV/0!"}}]
["Indicateur d'activité 2:\nNb de patients conciliés/Nb ETP pharmaceutiques dédiés",{"$f":"C79/B85","v":{"$error":"#DIV/0!"}},null,{"$f":"E79/D85","v":{"$error":"#DIV/0!"}},null,{"$f":"G79/F85","v":{"$error":"#DIV/0!"}},null,{"$f":"I79/H85","v":{"$error":"#DIV/0!"}},null,{"$f":"K79/J85","v":{"$error":"#DIV/0!"}}]
[]
["CLINIQUE","Nb patient sur la période de recueil","Nb patient extrapolé sur l'année","Nb patient sur la période de recueil","Nb patient extrapolé sur l'année","Nb patient sur la période de recueil","Nb patient extrapolé sur l'année","Nb patient sur la période de recueil","Nb patient extrapolé sur l'année","Nb patient sur la période de recueil","Nb patient extrapolé sur l'année"]
["Nombre de patients conciliés avec au moins une divergence non documentée",{"$f":"SUMPRODUCT((YEAR('RECUEIL DES DONNEES'!AQ$4:AQ$1996)=2018)*'RECUEIL DES DONNEES'!AW$4:AW$1996)","v":0},{"$f":"B90*52/B$76","v":{"$error":"#DIV/0!"}},{"$f":"SUMPRODUCT((YEAR('RECUEIL DES DONNEES'!AQ$4:AQ$1996)=2019)*'RECUEIL DES DONNEES'!AW$4:AW$1996)","v":0},{"$f":"D90*52/D$76","v":{"$error":"#DIV/0!"}},{"$f":"SUMPRODUCT((YEAR('RECUEIL DES DONNEES'!AQ$4:AQ$1996)=2020)*'RECUEIL DES DONNEES'!AW$4:AW$1996)","v":0},{"$f":"F90*52/F$76","v":{"$error":"#DIV/0!"}},{"$f":"SUMPRODUCT((YEAR('RECUEIL DES DONNEES'!AQ$4:AQ$1996)=2021)*'RECUEIL DES DONNEES'!AW$4:AW$1996)","v":0},{"$f":"H90*52/H$76","v":{"$error":"#DIV/0!"}},{"$f":"SUMPRODUCT((YEAR('RECUEIL DES DONNEES'!AQ$4:AQ$1996)=2022)*'RECUEIL DES DONNEES'!AW$4:AW$1996)","v":0},{"$f":"J90*52/J$76","v":{"$error":"#DIV/0!"}}]
["Nombre de patients conciliés avec au moins une divergence non documentée non intentionnelle",{"$f":"SUMPRODUCT((YEAR('RECUEIL DES DONNEES'!AQ$4:AQ$1996)=2018)*'RECUEIL DES DONNEES'!AX$4:AX$1996)","v":0},{"$f":"B91*52/B$76","v":{"$error":"#DIV/0!"}},{"$f":"SUMPRODUCT((YEAR('RECUEIL DES DONNEES'!AQ$4:AQ$1996)=2019)*'RECUEIL DES DONNEES'!AX$4:AX$1996)","v":0},{"$f":"D91*52/D$76","v":{"$error":"#DIV/0!"}},{"$f":"SUMPRODUCT((YEAR('RECUEIL DES DONNEES'!AQ$4:AQ$1996)=2020)*'RECUEIL DES DONNEES'!AX$4:AX$1996)","v":0},{"$f":"F91*52/F$76","v":{"$error":"#DIV/0!"}},{"$f":"SUMPRODUCT((YEAR('RECUEIL DES DONNEES'!AQ$4:AQ$1996)=2021)*'RECUEIL DES DONNEES'!AX$4:AX$1996)","v":0},{"$f":"H91*52/H$76","v":{"$error":"#DIV/0!"}},{"$f":"SUMPRODUCT((YEAR('RECUEIL DES DONNEES'!AQ$4:AQ$1996)=2022)*'RECUEIL DES DONNEES'!AX$4:AX$1996)","v":0},{"$f":"J91*52/J$76","v":{"$error":"#DIV/0!"}}]
["Nombre d'IP ayant entrainé des modifications de prescription",{"$f":"SUMPRODUCT((YEAR('RECUEIL DES DONNEES'!AQ$4:AQ$1996)=2018)*'RECUEIL DES DONNEES'!AY$4:AY$1996)","v":0},{"$f":"B92*52/B$76","v":{"$error":"#DIV/0!"}},{"$f":"SUMPRODUCT((YEAR('RECUEIL DES DONNEES'!AQ$4:AQ$1996)=2019)*'RECUEIL DES DONNEES'!AY$4:AY$1996)","v":0},{"$f":"D92*52/D$76","v":{"$error":"#DIV/0!"}},{"$f":"SUMPRODUCT((YEAR('RECUEIL DES DONNEES'!AQ$4:AQ$1996)=2020)*'RECUEIL DES DONNEES'!AY$4:AY$1996)","v":0},{"$f":"F92*52/F$76","v":{"$error":"#DIV/0!"}},{"$f":"SUMPRODUCT((YEAR('RECUEIL DES DONNEES'!AQ$4:AQ$1996)=2021)*'RECUEIL DES DONNEES'!AY$4:AY$1996)","v":0},{"$f":"H92*52/H$76","v":{"$error":"#DIV/0!"}},{"$f":"SUMPRODUCT((YEAR('RECUEIL DES DONNEES'!AQ$4:AQ$1996)=2022)*'RECUEIL DES DONNEES'!AY$4:AY$1996)","v":0},{"$f":"J92*52/J$76","v":{"$error":"#DIV/0!"}}]
["Nombre de patients ayant bénéficié d'une activité de pharmacie clinique de niveau 3",{"$f":"SUMPRODUCT((YEAR('RECUEIL DES DONNEES'!AQ$4:AQ$1996)=2018)*'RECUEIL DES DONNEES'!AZ$4:AZ$1996)","v":0},{"$f":"B93*52/B$76","v":{"$error":"#DIV/0!"}},{"$f":"SUMPRODUCT((YEAR('RECUEIL DES DONNEES'!AQ$4:AQ$1996)=2019)*'RECUEIL DES DONNEES'!AZ$4:AZ$1996)","v":0},{"$f":"D93*52/D$76","v":{"$error":"#DIV/0!"}},{"$f":"SUMPRODUCT((YEAR('RECUEIL DES DONNEES'!AQ$4:AQ$1996)=2020)*'RECUEIL DES DONNEES'!AZ$4:AZ$1996)","v":0},{"$f":"F93*52/F$76","v":{"$error":"#DIV/0!"}},{"$f":"SUMPRODUCT((YEAR('RECUEIL DES DONNEES'!AQ$4:AQ$1996)=2021)*'RECUEIL DES DONNEES'!AZ$4:AZ$1996)","v":0},{"$f":"H93*52/H$76","v":{"$error":"#DIV/0!"}},{"$f":"SUMPRODUCT((YEAR('RECUEIL DES DONNEES'!AQ$4:AQ$1996)=2022)*'RECUEIL DES DONNEES'!AZ$4:AZ$1996)","v":0},{"$f":"J93*52/J$76","v":{"$error":"#DIV/0!"}}]
["Indicateur clinique 1: \nNb patients conciliés avec au moins une divergencee non documentée/ Nb de patients conciliés",{"$f":"C90/C79","v":{"$error":"#DIV/0!"}},null,{"$f":"E90/E79","v":{"$error":"#DIV/0!"}},null,{"$f":"G90/G79","v":{"$error":"#DIV/0!"}},null,{"$f":"I90/I79","v":{"$error":"#DIV/0!"}},null,{"$f":"K90/K79","v":{"$error":"#DIV/0!"}}]
["Indicateur clinique 2:\nNb d'interventions pharmaceutiques ayant entrainé des modifications de prescription/ Nb de patients ayant bénéficié d'une activité de pharmacie clinique de niveau 3",{"$f":"B92/B93","v":{"$error":"#DIV/0!"}},null,{"$f":"E92/E93","v":{"$error":"#DIV/0!"}},null,{"$f":"G92/G93","v":{"$error":"#DIV/0!"}},null,{"$f":"I92/I93","v":{"$error":"#DIV/0!"}},null,{"$f":"K92/K93","v":{"$error":"#DIV/0!"}}]
[]
["Secteur 4"]
["Type de  conciliation"]
["Proactive",{"$f":"IF(SUMPRODUCT(('RECUEIL DES DONNEES'!BA$4:BA$1999=TRUE)*(YEAR('RECUEIL DES DONNEES'!BE$4:BE$1999)=2018))>0,\"OUI\",\"NON\")","v":"NON"},null,{"$f":"IF(SUMPRODUCT(('RECUEIL DES DONNEES'!BA$4:BA$1999=TRUE)*(YEAR('RECUEIL DES DONNEES'!BE$4:BE$1999)=2019))>0,\"OUI\",\"NON\")","v":"NON"},null,{"$f":"IF(SUMPRODUCT(('RECUEIL DES DONNEES'!BA$4:BA$1999=TRUE)*(YEAR('RECUEIL DES DONNEES'!BE$4:BE$1999)=2020))>0,\"OUI\",\"NON\")","v":"NON"},null,{"$f":"IF(SUMPRODUCT(('RECUEIL DES DONNEES'!BA$4:BA$1999=TRUE)*(YEAR('RECUEIL DES DONNEES'!BE$4:BE$1999)=2021))>0,\"OUI\",\"NON\")","v":"NON"},null,{"$f":"IF(SUMPRODUCT(('RECUEIL DES DONNEES'!BA$4:BA$1999=TRUE)*(YEAR('RECUEIL DES DONNEES'!BE$4:BE$1999)=2022))>0,\"OUI\",\"NON\")","v":"NON"}]
["Rétroactive",{"$f":"IF(SUMPRODUCT(('RECUEIL DES DONNEES'!BB$4:BB$1999=TRUE)*(YEAR('RECUEIL DES DONNEES'!BE$4:BE$1999)=2018))>0,\"OUI\",\"NON\")","v":"NON"},null,{"$f":"IF(SUMPRODUCT(('RECUEIL DES DONNEES'!BB$4:BB$1999=TRUE)*(YEAR('RECUEIL DES DONNEES'!BE$4:BE$1999)=2019))>0,\"OUI\",\"NON\")","v":"NON"},null,{"$f":"IF(SUMPRODUCT(('RECUEIL DES DONNEES'!BB$4:BB$1999=TRUE)*(YEAR('RECUEIL DES DONNEES'!BE$4:BE$1999)=2020))>0,\"OUI\",\"NON\")","v":"NON"},null,{"$f":"IF(SUMPRODUCT(('RECUEIL DES DONNEES'!BB$4:BB$1999=TRUE)*(YEAR('RECUEIL DES DONNEES'!BE$4:BE$1999)=2021))>0,\"OUI\",\"NON\")","v":"NON"},null,{"$f":"IF(SUMPRODUCT(('RECUEIL DES DONNEES'!BB$4:BB$1999=TRUE)*(YEAR('RECUEIL DES DONNEES'!BE$4:BE$1999)=2022))>0,\"OUI\",\"NON\")","v":"NON"}]
["Entrée",{"$f":"IF(SUMPRODUCT(('RECUEIL DES DONNEES'!BC$4:BC$1999=TRUE)*(YEAR('RECUEIL DES DONNEES'!BE$4:BE$1999)=2018))>0,\"OUI\",\"NON\")","v":"NON"},null,{"$f":"IF(SUMPRODUCT(('RECUEIL DES DONNEES'!BC$4:BC$1999=TRUE)*(YEAR('RECUEIL DES DONNEES'!BE$4:BE$1999)=2019))>0,\"OUI\",\"NON\")","v":"NON"},null,{"$f":"IF(SUMPRODUCT(('RECUEIL DES DONNEES'!BC$4:BC$1999=TRUE)*(YEAR('RECUEIL DES DONNEES'!BE$4:BE$1999)=2020))>0,\"OUI\",\"NON\")","v":"NON"},null,{"$f":"IF(SUMPRODUCT(('RECUEIL DES DONNEES'!BC$4:BC$1999=TRUE)*(YEAR('RECUEIL DES DONNEES'!BE$4:BE$1999)=2021))>0,\"OUI\",\"NON\")","v":"NON"},null,{"$f":"IF(SUMPRODUCT(('RECUEIL DES DONNEES'!BC$4:BC$1999=TRUE)*(YEAR('RECUEIL DES DONNEES'!BE$4:BE$1999)=2022))>0,\"OUI\",\"NON\")","v":"NON"}]
["Sortie",{"$f":"IF(SUMPRODUCT(('RECUEIL DES DONNEES'!BD$4:BD$1999=TRUE)*(YEAR('RECUEIL DES DONNEES'!BE$4:BE$1999)=2018))>0,\"OUI\",\"NON\")","v":"NON"},null,{"$f":"IF(SUMPRODUCT(('RECUEIL DES DONNEES'!BD$4:BD$1999=TRUE)*(YEAR('RECUEIL DES DONNEES'!BE$4:BE$1999)=2019))>0,\"OUI\",\"NON\")","v":"NON"},null,{"$f":"IF(SUMPRODUCT(('RECUEIL DES DONNEES'!BD$4:BD$1999=TRUE)*(YEAR('RECUEIL DES DONNEES'!BE$4:BE$1999)=2020))>0,\"OUI\",\"NON\")","v":"NON"},null,{"$f":"IF(SUMPRODUCT(('RECUEIL DES DONNEES'!BD$4:BD$1999=TRUE)*(YEAR('RECUEIL DES DONNEES'!BE$4:BE$1999)=2021))>0,\"OUI\",\"NON\")","v":"NON"},null,{"$f":"IF(SUMPRODUCT(('RECUEIL DES DONNEES'!BD$4:BD$1999=TRUE)*(YEAR('RECUEIL DES DONNEES'!BE$4:BE$1999)=2022))>0,\"OUI\",\"NON\")","v":"NON"}]
[]
["Période de recueil des indicateurs en semaine",{"$f":"SUMPRODUCT((YEAR('RECUEIL DES DONNEES'!BE$4:BE$1996)=2018)*(('RECUEIL DES DONNEES'!BF$4:BF$1996-'RECUEIL DES DONNEES'!BE$4:BE$1996)+1)/7)","v":0},null,{"$f":"SUMPRODUCT((YEAR('RECUEIL DES DONNEES'!BE$4:BE$1996)=2019)*(('RECUEIL DES DONNEES'!BF$4:BF$1996-'RECUEIL DES DONNEES'!BE$4:BE$1996)+1)/7)","v":0},null,{"$f":"SUMPRODUCT((YEAR('RECUEIL DES DONNEES'!BE$4:BE$1996)=2020)*(('RECUEIL DES DONNEES'!BF$4:BF$1996-'RECUEIL DES DONNEES'!BE$4:BE$1996)+1)/7)","v":0},null,{"$f":"SUMPRODUCT((YEAR('RECUEIL DES DONNEES'!BE$4:BE$1996)=2021)*(('RECUEIL DES DONNEES'!BF$4:BF$1996-'RECUEIL DES DONNEES'!BE$4:BE$1996)+1)/7)","v":0},null,{"$f":"SUMPRODUCT((YEAR('RECUEIL DES DONNEES'!BE$4:BE$1996)=2022)*(('RECUEIL DES DONNEES'!BF$4:BF$1996-'RECUEIL DES DONNEES'!BE$4:BE$1996)+1)/7)","v":0}]
[]
["CAQES","Nb patient sur la période de recueil","Nb patient extrapolé sur l'année","Nb patient sur la période de recueil","ND patient extrapolé sur l'année","Nb patient sur la période de recueil","ND patient extrapolé sur l'année","Nb patient sur la période de recueil","ND patient extrapolé sur l'année","Nb patient sur la période de recueil","ND patient extrapolé sur l'année"]
["Nombre de patients priorisés conciliés en entrée et/ou sortie",{"$f":"SUMPRODUCT((YEAR('RECUEIL DES DONNEES'!BE$4:BE$1996)=2018)*'RECUEIL DES DONNEES'!BG$4:BG$1996)","v":0},{"$f":"B107*52/B104","v":{"$error":"#DIV/0!"}},{"$f":"SUMPRODUCT((YEAR('RECUEIL DES DONNEES'!BE$4:BE$1996)=2019)*'RECUEIL DES DONNEES'!BG$4:BG$1996)","v":0},{"$f":"D107*52/D104","v":{"$error":"#DIV/0!"}},{"$f":"SUMPRODUCT((YEAR('RECUEIL DES DONNEES'!BE$4:BE$1996)=2020)*'RECUEIL DES DONNEES'!BG$4:BG$1996)","v":0},{"$f":"F107*52/F104","v":{"$error":"#DIV/0!"}},{"$f":"SUMPRODUCT((YEAR('RECUEIL DES DONNEES'!BE$4:BE$1996)=2021)*'RECUEIL DES DONNEES'!BG$4:BG$1996)","v":0},{"$f":"H107*52/H104","v":{"$error":"#DIV/0!"}},{"$f":"SUMPRODUCT((YEAR('RECUEIL DES DONNEES'!BE$4:BE$1996)=2022)*'RECUEIL DES DONNEES'!BG$4:BG$1996)","v":0},{"$f":"J107*52/J104","v":{"$error":"#DIV/0!"}}]
["Nombre de patients priorisés hospitalisés",{"$f":"SUMPRODUCT((YEAR('RECUEIL DES DONNEES'!BE$4:BE$1996)=2018)*'RECUEIL DES DONNEES'!BH$4:BH$1996)","v":0},{"$f":"B108*52/B104","v":{"$error":"#DIV/0!"}},{"$f":"SUMPRODUCT((YEAR('RECUEIL DES DONNEES'!BE$4:BE$1996)=2019)*'RECUEIL DES DONNEES'!BH$4:BH$1996)","v":0},{"$f":"D108*52/D104","v":{"$error":"#DIV/0!"}},{"$f":"SUMPRODUCT((YEAR('RECUEIL DES DONNEES'!BE$4:BE$1996)=2020)*'RECUEIL DES DONNEES'!BH$4:BH$1996)","v":0},{"$f":"F108*52/F104","v":{"$error":"#DIV/0!"}},{"$f":"SUMPRODUCT((YEAR('RECUEIL DES DONNEES'!BE$4:BE$1996)=2021)*'RECUEIL DES DONNEES'!BH$4:BH$1996)","v":0},{"$f":"H108*52/H104","v":{"$error":"#DIV/0!"}},{"$f":"SUMPRODUCT((YEAR('RECUEIL DES DONNEES'!BE$4:BE$1996)=2022)*'RECUEIL DES DONNEES'!BH$4:BH$1996)","v":0},{"$f":"J108*52/J104","v":{"$error":"#DIV/0!"}}]
["Indicateur CAQES",{"$f":"C107/C108","v":{"$error":"#DIV/0!"}},null,{"$f":"E107/E108","v":{"$error":"#DIV/0!"}},null,{"$f":"G107/G108","v":{"$error":"#DIV/0!"}},null,{"$f":"I107/I108","v":{"$error":"#DIV/0!"}},null,{"$f":"K107/K108","v":{"$error":"#DIV/0!"}}]
[]
["ACTIVITE","Nb patient sur la période de recueil","Nb patient extrapolé sur l'année","Nb patient sur la période de recueil","ND patient extrapolé sur l'année","Nb patient sur la période de recueil","ND patient extrapolé sur l'année","Nb patient sur la période de recueil","ND patient extrapolé sur l'année","Nb patient sur la période de recueil","ND patient extrapolé sur l'année"]
["Nombre de patients entrants",{"$f":"SUMPRODUCT((YEAR('RECUEIL DES DONNEES'!BE$4:BE$1996)=2018)*'RECUEIL DES DONNEES'!BI$4:BI$1996)","v":0},{"$f":"B112*52/B104","v":{"$error":"#DIV/0!"}},{"$f":"SUMPRODUCT((YEAR('RECUEIL DES DONNEES'!BE$4:BE$1996)=2019)*'RECUEIL DES DONNEES'!BI$4:BI$1996)","v":0},{"$f":"D112*52/D104","v":{"$error":"#DIV/0!"}},{"$f":"SUMPRODUCT((YEAR('RECUEIL DES DONNEES'!BE$4:BE$1996)=2020)*'RECUEIL DES DONNEES'!BI$4:BI$1996)","v":0},{"$f":"F112*52/F104","v":{"$error":"#DIV/0!"}},{"$f":"SUMPRODUCT((YEAR('RECUEIL DES DONNEES'!BE$4:BE$1996)=2021)*'RECUEIL DES DONNEES'!BI$4:BI$1996)","v":0},{"$f":"H112*52/H104","v":{"$error":"#DIV/0!"}},{"$f":"SUMPRODUCT((YEAR('RECUEIL DES DONNEES'!BE$4:BE$1996)=2022)*'RECUEIL DES DONNEES'!BI$4:BI$1996)","v":0},{"$f":"J112*52/J104","v":{"$error":"#DIV/0!"}}]
["Nombre d'ETP pharmaceutiques dédiés",{"$f":"SUMPRODUCT((YEAR('RECUEIL DES DONNEES'!BE4:BE1999)=2018)*('RECUEIL DES DONNEES'!BJ4:BJ1999)/SUMPRODUCT((YEAR('RECUEIL DES DONNEES'!BE4:BE1999)=2018)*1))","v":{"$error":"#DIV/0!"}},null,{"$f":"SUMPRODUCT((YEAR('RECUEIL DES DONNEES'!BE4:BE1999)=2019)*('RECUEIL DES DONNEES'!BJ4:BJ1999)/SUMPRODUCT((YEAR('RECUEIL DES DONNEES'!BE4:BE1999)=2019)*1))","v":{"$error":"#DIV/0!"}},null,{"$f":"SUMPRODUCT((YEAR('RECUEIL DES DONNEES'!BE4:BE1999)=2020)*('RECUEIL DES DONNEES'!BJ4:BJ1999)/SUMPRODUCT((YEAR('RECUEIL DES DONNEES'!BE4:BE1999)=2020)*1))","v":{"$error":"#DIV/0!"}},null,{"$f":"SUMPRODUCT((YEAR('RECUEIL DES DONNEES'!BE4:BE1999)=2021)*('RECUEIL DES DONNEES'!BJ4:BJ1999)/SUMPRODUCT((YEAR('RECUEIL DES DONNEES'!BE4:BE1999)=2021)*1))","v":{"$error":"#DIV/0!"}},null,{"$f":"SUMPRODUCT((YEAR('RECUEIL DES DONNEES'!BE4:BE1999)=2022)*('RECUEIL DES DONNEES'!BJ4:BJ1999)/SUMPRODUCT((YEAR('RECUEIL DES DONNEES'!BE4:BE1999)=2022)*1))","v":{"$error":"#DIV/0!"}}]
["Indicateur d'activité 1: \nNb patients conciliés entrants/ Nb de patients entrants",{"$f":"C107/C112","v":{"$error":"#DIV/0!"}},null,{"$f":"E107/E112","v":{"$error":"#DIV/0!"}},null,{"$f":"G107/G112","v":{"$error":"#DIV/0!"}},null,{"$f":"I107/I112","v":{"$error":"#DIV/0!"}},null,{"$f":"K107/K112","v":{"$error":"#DIV/0!"}}]
["Indicateur d'activité 2:\nNb de patients conciliés/Nb ETP pharmaceutiques dédiés",{"$f":"C107/B113","v":{"$error":"#DIV/0!"}},null,{"$f":"E107/D113","v":{"$error":"#DIV/0!"}},null,{"$f":"G107/F113","v":{"$error":"#DIV/0!"}},null,{"$f":"I107/H113","v":{"$error":"#DIV/0!"}},null,{"$f":"K107/J113","v":{"$error":"#DIV/0!"}}]
[]
["CLINIQUE","Nb patient sur la période de recueil","Nb patient extrapolé sur l'année","Nb patient sur la période de recueil","ND patient extrapolé sur l'année","Nb patient sur la période de recueil","ND patient extrapolé sur l'année","Nb patient sur la période de recueil","ND patient extrapolé sur l'année","Nb patient sur la période de recueil","ND patient extrapolé sur l'année"]
["Nombre de patients conciliés avec au moins une divergence non documentée",{"$f":"SUMPRODUCT((YEAR('RECUEIL DES DONNEES'!BE$4:BE$1996)=2018)*'RECUEIL DES DONNEES'!BK$4:BK$1996)","v":0},{"$f":"B118*52/B$104","v":{"$error":"#DIV/0!"}},{"$f":"SUMPRODUCT((YEAR('RECUEIL DES DONNEES'!BE$4:BE$1996)=2019)*'RECUEIL DES DONNEES'!BK$4:BK$1996)","v":0},{"$f":"D118*52/D$104","v":{"$error":"#DIV/0!"}},{"$f":"SUMPRODUCT((YEAR('RECUEIL DES DONNEES'!BE$4:BE$1996)=2020)*'RECUEIL DES DONNEES'!BK$4:BK$1996)","v":0},{"$f":"F118*52/F$104","v":{"$error":"#DIV/0!"}},{"$f":"SUMPRODUCT((YEAR('RECUEIL DES DONNEES'!BE$4:BE$1996)=2021)*'RECUEIL DES DONNEES'!BK$4:BK$1996)","v":0},{"$f":"H118*52/H$104","v":{"$error":"#DIV/0!"}},{"$f":"SUMPRODUCT((YEAR('RECUEIL DES DONNEES'!BE$4:BE$1996)=2022)*'RECUEIL DES DONNEES'!BK$4:BK$1996)","v":0},{"$f":"J118*52/J$104","v":{"$error":"#DIV/0!"}}]
["Nombre de patients conciliés avec au moins une divergence non documentée non intentionnelle",{"$f":"SUMPRODUCT((YEAR('RECUEIL DES DONNEES'!BE$4:BE$1996)=2018)*'RECUEIL DES DONNEES'!BL$4:BL$1996)","v":0},{"$f":"B119*52/B$104","v":{"$error":"#DIV/0!"}},{"$f":"SUMPRODUCT((YEAR('RECUEIL DES DONNEES'!BE$4:BE$1996)=2019)*'RECUEIL DES DONNEES'!BL$4:BL$1996)","v":0},{"$f":"D119*52/D$104","v":{"$error":"#DIV/0!"}},{"$f":"SUMPRODUCT((YEAR('RECUEIL DES DONNEES'!BE$4:BE$1996)=2020)*'RECUEIL DES DONNEES'!BL$4:BL$1996)","v":0},{"$f":"F119*52/F$104","v":{"$error":"#DIV/0!"}},{"$f":"SUMPRODUCT((YEAR('RECUEIL DES DONNEES'!BE$4:BE$1996)=2021)*'RECUEIL DES DONNEES'!BL$4:BL$1996)","v":0},{"$f":"H119*52/H$104","v":{"$error":"#DIV/0!"}},{"$f":"SUMPRODUCT((YEAR('RECUEIL DES DONNEES'!BE$4:BE$1996)=2022)*'RECUEIL DES DONNEES'!BL$4:BL$1996)","v":0},{"$f":"J119*52/J$104","v":{"$error":"#DIV/0!"}}]
["Nombre d'IP ayant entrainé des modifications de prescription",{"$f":"SUMPRODUCT((YEAR('RECUEIL DES DONNEES'!BE$4:BE$1996)=2018)*'RECUEIL DES DONNEES'!BM$4:BM$1996)","v":0},{"$f":"B120*52/B$104","v":{"$error":"#DIV/0!"}},{"$f":"SUMPRODUCT((YEAR('RECUEIL DES DONNEES'!BE$4:BE$1996)=2019)*'RECUEIL DES DONNEES'!BM$4:BM$1996)","v":0},{"$f":"D120*52/D$104","v":{"$error":"#DIV/0!"}},{"$f":"SUMPRODUCT((YEAR('RECUEIL DES DONNEES'!BE$4:BE$1996)=2020)*'RECUEIL DES DONNEES'!BM$4:BM$1996)","v":0},{"$f":"F120*52/F$104","v":{"$error":"#DIV/0!"}},{"$f":"SUMPRODUCT((YEAR('RECUEIL DES DONNEES'!BE$4:BE$1996)=2021)*'RECUEIL DES DONNEES'!BM$4:BM$1996)","v":0},{"$f":"H120*52/H$104","v":{"$error":"#DIV/0!"}},{"$f":"SUMPRODUCT((YEAR('RECUEIL DES DONNEES'!BE$4:BE$1996)=2022)*'RECUEIL DES DONNEES'!BM$4:BM$1996)","v":0},{"$f":"J120*52/J$104","v":{"$error":"#DIV/0!"}}]
["Nombre de patients ayant bénéficié d'une activité de pharmacie clinique de niveau 3",{"$f":"SUMPRODUCT((YEAR('RECUEIL DES DONNEES'!BE$4:BE$1996)=2018)*'RECUEIL DES DONNEES'!BN$4:BN$1996)","v":0},{"$f":"B121*52/B$104","v":{"$error":"#DIV/0!"}},{"$f":"SUMPRODUCT((YEAR('RECUEIL DES DONNEES'!BE$4:BE$1996)=2019)*'RECUEIL DES DONNEES'!BN$4:BN$1996)","v":0},{"$f":"D121*52/D$104","v":{"$error":"#DIV/0!"}},{"$f":"SUMPRODUCT((YEAR('RECUEIL DES DONNEES'!BE$4:BE$1996)=2020)*'RECUEIL DES DONNEES'!BN$4:BN$1996)","v":0},{"$f":"F121*52/F$104","v":{"$error":"#DIV/0!"}},{"$f":"SUMPRODUCT((YEAR('RECUEIL DES DONNEES'!BE$4:BE$1996)=2021)*'RECUEIL DES DONNEES'!BN$4:BN$1996)","v":0},{"$f":"H121*52/H$104","v":{"$error":"#DIV/0!"}},{"$f":"SUMPRODUCT((YEAR('RECUEIL DES DONNEES'!BE$4:BE$1996)=2022)*'RECUEIL DES DONNEES'!BN$4:BN$1996)","v":0},{"$f":"J121*52/J$104","v":{"$error":"#DIV/0!"}}]
["Indicateur clinique 1: \nNb patients conciliés avec au moins une divergencee non documentée/ Nb de patients conciliés",{"$f":"C118/C107","v":{"$error":"#DIV/0!"}},null,{"$f":"E118/E107","v":{"$error":"#DIV/0!"}},null,{"$f":"G118/G107","v":{"$error":"#DIV/0!"}},null,{"$f":"I118/I107","v":{"$error":"#DIV/0!"}},null,{"$f":"K118/K107","v":{"$error":"#DIV/0!"}}]
["Indicateur clinique 2:\nNb d'interventions pharmaceutiques ayant entrainé des modifications de prescription/ Nb de patients ayant bénéficié d'une activité de pharmacie clinique de niveau 3",{"$f":"B120/B121","v":{"$error":"#DIV/0!"}},null,{"$f":"E120/E121","v":{"$error":"#DIV/0!"}},null,{"$f":"G120/G121","v":{"$error":"#DIV/0!"}},null,{"$f":"I120/I121","v":{"$error":"#DIV/0!"}},null,{"$f":"K120/K121","v":{"$error":"#DIV/0!"}}]
[]
["Secteur 5"]
["Type de  conciliation"]
["Proactive",{"$f":"IF(SUMPRODUCT(('RECUEIL DES DONNEES'!BO$4:BO$1999=TRUE)*(YEAR('RECUEIL DES DONNEES'!BS$4:BS$1999)=2018))>0,\"OUI\",\"NON\")","v":"NON"},null,{"$f":"IF(SUMPRODUCT(('RECUEIL DES DONNEES'!BO$4:BO$1999=TRUE)*(YEAR('RECUEIL DES DONNEES'!BS$4:BS$1999)=2019))>0,\"OUI\",\"NON\")","v":"NON"},null,{"$f":"IF(SUMPRODUCT(('RECUEIL DES DONNEES'!BO$4:BO$1999=TRUE)*(YEAR('RECUEIL DES DONNEES'!BS$4:BS$1999)=2020))>0,\"OUI\",\"NON\")","v":"NON"},null,{"$f":"IF(SUMPRODUCT(('RECUEIL DES DONNEES'!BO$4:BO$1999=TRUE)*(YEAR('RECUEIL DES DONNEES'!BS$4:BS$1999)=2021))>0,\"OUI\",\"NON\")","v":"NON"},null,{"$f":"IF(SUMPRODUCT(('RECUEIL DES DONNEES'!BO$4:BO$1999=TRUE)*(YEAR('RECUEIL DES DONNEES'!BS$4:BS$1999)=2022))>0,\"OUI\",\"NON\")","v":"NON"}]
["Rétroactive",{"$f":"IF(SUMPRODUCT(('RECUEIL DES DONNEES'!BP$4:BP$1999=TRUE)*(YEAR('RECUEIL DES DONNEES'!BS$4:BS$1999)=2018))>0,\"OUI\",\"NON\")","v":"NON"},null,{"$f":"IF(SUMPRODUCT(('RECUEIL DES DONNEES'!BP$4:BP$1999=TRUE)*(YEAR('RECUEIL DES DONNEES'!BS$4:BS$1999)=2019))>0,\"OUI\",\"NON\")","v":"NON"},null,{"$f":"IF(SUMPRODUCT(('RECUEIL DES DONNEES'!BP$4:BP$1999=TRUE)*(YEAR('RECUEIL DES DONNEES'!BS$4:BS$1999)=2020))>0,\"OUI\",\"NON\")","v":"NON"},null,{"$f":"IF(SUMPRODUCT(('RECUEIL DES DONNEES'!BP$4:BP$1999=TRUE)*(YEAR('RECUEIL DES DONNEES'!BS$4:BS$1999)=2021))>0,\"OUI\",\"NON\")","v":"NON"},null,{"$f":"IF(SUMPRODUCT(('RECUEIL DES DONNEES'!BP$4:BP$1999=TRUE)*(YEAR('RECUEIL DES DONNEES'!BS$4:BS$1999)=2022))>0,\"OUI\",\"NON\")","v":"NON"}]
["Entrée",{"$f":"IF(SUMPRODUCT(('RECUEIL DES DONNEES'!BQ$4:BQ$1999=TRUE)*(YEAR('RECUEIL DES DONNEES'!BS$4:BS$1999)=2018))>0,\"OUI\",\"NON\")","v":"NON"},null,{"$f":"IF(SUMPRODUCT(('RECUEIL DES DONNEES'!BQ$4:BQ$1999=TRUE)*(YEAR('RECUEIL DES DONNEES'!BS$4:BS$1999)=2019))>0,\"OUI\",\"NON\")","v":"NON"},null,{"$f":"IF(SUMPRODUCT(('RECUEIL DES DONNEES'!BQ$4:BQ$1999=TRUE)*(YEAR('RECUEIL DES DONNEES'!BS$4:BS$1999)=2020))>0,\"OUI\",\"NON\")","v":"NON"},null,{"$f":"IF(SUMPRODUCT(('RECUEIL DES DONNEES'!BQ$4:BQ$1999=TRUE)*(YEAR('RECUEIL DES DONNEES'!BS$4:BS$1999)=2021))>0,\"OUI\",\"NON\")","v":"NON"},null,{"$f":"IF(SUMPRODUCT(('RECUEIL DES DONNEES'!BQ$4:BQ$1999=TRUE)*(YEAR('RECUEIL DES DONNEES'!BS$4:BS$1999)=2022))>0,\"OUI\",\"NON\")","v":"NON"}]
["Sortie",{"$f":"IF(SUMPRODUCT(('RECUEIL DES DONNEES'!BR$4:BR$1999=TRUE)*(YEAR('RECUEIL DES DONNEES'!BS$4:BS$1999)=2018))>0,\"OUI\",\"NON\")","v":"NON"},null,{"$f":"IF(SUMPRODUCT(('RECUEIL DES DONNEES'!BR$4:BR$1999=TRUE)*(YEAR('RECUEIL DES DONNEES'!BS$4:BS$1999)=2019))>0,\"OUI\",\"NON\")","v":"NON"},null,{"$f":"IF(SUMPRODUCT(('RECUEIL DES DONNEES'!BR$4:BR$1999=TRUE)*(YEAR('RECUEIL DES DONNEES'!BS$4:BS$1999)=2020))>0,\"OUI\",\"NON\")","v":"NON"},null,{"$f":"IF(SUMPRODUCT(('RECUEIL DES DONNEES'!BR$4:BR$1999=TRUE)*(YEAR('RECUEIL DES DONNEES'!BS$4:BS$1999)=2021))>0,\"OUI\",\"NON\")","v":"NON"},null,{"$f":"IF(SUMPRODUCT(('RECUEIL DES DONNEES'!BR$4:BR$1999=TRUE)*(YEAR('RECUEIL DES DONNEES'!BS$4:BS$1999)=2022))>0,\"OUI\",\"NON\")","v":"NON"}]
[]
["Période de recueil des indicateurs en semaine",{"$f":"SUMPRODUCT((YEAR('RECUEIL DES DONNEES'!BS$4:BS$1996)=2018)*(('RECUEIL DES DONNEES'!BT$4:BT$1996-'RECUEIL DES DONNEES'!BS$4:BS$1996)+1)/7)","v":0},null,{"$f":"SUMPRODUCT((YEAR('RECUEIL DES DONNEES'!BS$4:BS$1996)=2019)*(('RECUEIL DES DONNEES'!BT$4:BT$1996-'RECUEIL DES DONNEES'!BS$4:BS$1996)+1)/7)","v":0},null,{"$f":"SUMPRODUCT((YEAR('RECUEIL DES DONNEES'!BS$4:BS$1996)=2020)*(('RECUEIL DES DONNEES'!BT$4:BT$1996-'RECUEIL DES DONNEES'!BS$4:BS$1996)+1)/7)","v":0},null,{"$f":"SUMPRODUCT((YEAR('RECUEIL DES DONNEES'!BS$4:BS$1996)=2021)*(('RECUEIL DES DONNEES'!BT$4:BT$1996-'RECUEIL DES DONNEES'!BS$4:BS$1996)+1)/7)","v":0},null,{"$f":"SUMPRODUCT((YEAR('RECUEIL DES DONNEES'!BS$4:BS$1996)=2022)*(('RECUEIL DES DONNEES'!BT$4:BT$1996-'RECUEIL DES DONNEES'!BS$4:BS$1996)+1)/7)","v":0}]
[]
["CAQES","Nb patient sur la période de recueil","Nb patient extrapolé sur l'année","Nb patient sur la période de recueil","ND patient extrapolé sur l'année","Nb patient sur la période de recueil","ND patient extrapolé sur l'année","Nb patient sur la période de recueil","ND patient extrapolé sur l'année","Nb patient sur la période de recueil","ND patient extrapolé sur l'année"]
["Nombre de patients priorisés conciliés en entrée et/ou sortie",{"$f":"SUMPRODUCT((YEAR('RECUEIL DES DONNEES'!BS$4:BS$1996)=2018)*'RECUEIL DES DONNEES'!BU$4:BU$1996)","v":0},{"$f":"B135*52/B132","v":{"$error":"#DIV/0!"}},{"$f":"SUMPRODUCT((YEAR('RECUEIL DES DONNEES'!BS$4:BS$1996)=2019)*'RECUEIL DES DONNEES'!BU$4:BU$1996)","v":0},{"$f":"D135*52/D132","v":{"$error":"#DIV/0!"}},{"$f":"SUMPRODUCT((YEAR('RECUEIL DES DONNEES'!BS$4:BS$1996)=2020)*'RECUEIL DES DONNEES'!BU$4:BU$1996)","v":0},{"$f":"F135*52/F132","v":{"$error":"#DIV/0!"}},{"$f":"SUMPRODUCT((YEAR('RECUEIL DES DONNEES'!BS$4:BS$1996)=2021)*'RECUEIL DES DONNEES'!BU$4:BU$1996)","v":0},{"$f":"H135*52/H132","v":{"$error":"#DIV/0!"}},{"$f":"SUMPRODUCT((YEAR('RECUEIL DES DONNEES'!BS$4:BS$1996)=2022)*'RECUEIL DES DONNEES'!BU$4:BU$1996)","v":0},{"$f":"J135*52/J132","v":{"$error":"#DIV/0!"}}]
["Nombre de patients priorisés hospitalisés",{"$f":"SUMPRODUCT((YEAR('RECUEIL DES DONNEES'!BS$4:BS$1996)=2018)*'RECUEIL DES DONNEES'!BV$4:BV$1996)","v":0},{"$f":"B136*52/B132","v":{"$error":"#DIV/0!"}},{"$f":"SUMPRODUCT((YEAR('RECUEIL DES DONNEES'!BS$4:BS$1996)=2019)*'RECUEIL DES DONNEES'!BV$4:BV$1996)","v":0},{"$f":"D136*52/D132","v":{"$error":"#DIV/0!"}},{"$f":"SUMPRODUCT((YEAR('RECUEIL DES DONNEES'!BS$4:BS$1996)=2020)*'RECUEIL DES DONNEES'!BV$4:BV$1996)","v":0},{"$f":"F136*52/F132","v":{"$error":"#DIV/0!"}},{"$f":"SUMPRODUCT((YEAR('RECUEIL DES DONNEES'!BS$4:BS$1996)=2021)*'RECUEIL DES DONNEES'!BV$4:BV$1996)","v":0},{"$f":"H136*52/H132","v":{"$error":"#DIV/0!"}},{"$f":"SUMPRODUCT((YEAR('RECUEIL DES DONNEES'!BS$4:BS$1996)=2022)*'RECUEIL DES DONNEES'!BV$4:BV$1996)","v":0},{"$f":"J136*52/J132","v":{"$error":"#DIV/0!"}}]
["Indicateur CAQES",{"$f":"C135/C136","v":{"$error":"#DIV/0!"}},null,{"$f":"E135/E136","v":{"$error":"#DIV/0!"}},null,{"$f":"G135/G136","v":{"$error":"#DIV/0!"}},null,{"$f":"I135/I136","v":{"$error":"#DIV/0!"}},null,{"$f":"K135/K136","v":{"$error":"#DIV/0!"}}]
[]
["ACTIVITE","Nb patient sur la période de recueil","Nb patient extrapolé sur l'année","Nb patient sur la période de recueil","ND patient extrapolé sur l'année","Nb patient sur la période de recueil","ND patient extrapolé sur l'année","Nb patient sur la période de recueil","ND patient extrapolé sur l'année","Nb patient sur la période de recueil","ND patient extrapolé sur l'année"]
["Nombre de patients entrants",{"$f":"SUMPRODUCT((YEAR('RECUEIL DES DONNEES'!BS$4:BS$1996)=2018)*'RECUEIL DES DONNEES'!BW$4:BW$1996)","v":0},{"$f":"B140*52/B132","v":{"$error":"#DIV/0!"}},{"$f":"SUMPRODUCT((YEAR('RECUEIL DES DONNEES'!BS$4:BS$1996)=2019)*'RECUEIL DES DONNEES'!BW$4:BW$1996)","v":0},{"$f":"D140*52/D132","v":{"$error":"#DIV/0!"}},{"$f":"SUMPRODUCT((YEAR('RECUEIL DES DONNEES'!BS$4:BS$1996)=2020)*'RECUEIL DES DONNEES'!BW$4:BW$1996)","v":0},{"$f":"F140*52/F132","v":{"$error":"#DIV/0!"}},{"$f":"SUMPRODUCT((YEAR('RECUEIL DES DONNEES'!BS$4:BS$1996)=2021)*'RECUEIL DES DONNEES'!BW$4:BW$1996)","v":0},{"$f":"H140*52/H132","v":{"$error":"#DIV/0!"}},{"$f":"SUMPRODUCT((YEAR('RECUEIL DES DONNEES'!BS$4:BS$1996)=2022)*'RECUEIL DES DONNEES'!BW$4:BW$1996)","v":0},{"$f":"J140*52/J132","v":{"$error":"#DIV/0!"}}]
["Nombre d'ETP pharmaceutiques dédiés",{"$f":"SUMPRODUCT((YEAR('RECUEIL DES DONNEES'!BS4:BS1999)=2018)*('RECUEIL DES DONNEES'!BX4:BX1999)/SUMPRODUCT((YEAR('RECUEIL DES DONNEES'!BS4:BS1999)=2018)*1))","v":{"$error":"#DIV/0!"}},null,{"$f":"SUMPRODUCT((YEAR('RECUEIL DES DONNEES'!BS4:BS1999)=2019)*('RECUEIL DES DONNEES'!BX4:BX1999)/SUMPRODUCT((YEAR('RECUEIL DES DONNEES'!BS4:BS1999)=2019)*1))","v":{"$error":"#DIV/0!"}},null,{"$f":"SUMPRODUCT((YEAR('RECUEIL DES DONNEES'!BS4:BS1999)=2020)*('RECUEIL DES DONNEES'!BX4:BX1999)/SUMPRODUCT((YEAR('RECUEIL DES DONNEES'!BS4:BS1999)=2020)*1))","v":{"$error":"#DIV/0!"}},null,{"$f":"SUMPRODUCT((YEAR('RECUEIL DES DONNEES'!BS4:BS1999)=2021)*('RECUEIL DES DONNEES'!BX4:BX1999)/SUMPRODUCT((YEAR('RECUEIL DES DONNEES'!BS4:BS1999)=2021)*1))","v":{"$error":"#DIV/0!"}},null,{"$f":"SUMPRODUCT((YEAR('RECUEIL DES DONNEES'!BS4:BS1999)=2022)*('RECUEIL DES DONNEES'!BX4:BX1999)/SUMPRODUCT((YEAR('RECUEIL DES DONNEES'!BS4:BS1999)=2022)*1))","v":{"$error":"#DIV/0!"}}]
["Indicateur d'activité 1: \nNb patients conciliés entrants/ Nb de patients entrants",{"$f":"C135/C140","v":{"$error":"#DIV/0!"}},null,{"$f":"E135/E140","v":{"$error":"#DIV/0!"}},null,{"$f":"G135/G140","v":{"$error":"#DIV/0!"}},null,{"$f":"I135/I140","v":{"$error":"#DIV/0!"}},null,{"$f":"K135/K140","v":{"$error":"#DIV/0!"}}]
["Indicateur d'activité 2:\nNb de patients conciliés/Nb ETP pharmaceutiques dédiés",{"$f":"C135/B141","v":{"$error":"#DIV/0!"}},null,{"$f":"E135/D141","v":{"$error":"#DIV/0!"}},null,{"$f":"G135/F141","v":{"$error":"#DIV/0!"}},null,{"$f":"I135/H141","v":{"$error":"#DIV/0!"}},null,{"$f":"K135/J141","v":{"$error":"#DIV/0!"}}]
[]
["CLINIQUE","Nb patient sur la période de recueil","Nb patient extrapolé sur l'année","Nb patient sur la période de recueil","ND patient extrapolé sur l'année","Nb patient sur la période de recueil","ND patient extrapolé sur l'année","Nb patient sur la période de recueil","ND patient extrapolé sur l'année","Nb patient sur la période de recueil","ND patient extrapolé sur l'année"]
["Nombre de patients conciliés avec au moins une divergence non documentée",{"$f":"SUMPRODUCT((YEAR('RECUEIL DES DONNEES'!BS$4:BS$1996)=2018)*'RECUEIL DES DONNEES'!BY$4:BY$1996)","v":0},{"$f":"B146*52/B$132","v":{"$error":"#DIV/0!"}},{"$f":"SUMPRODUCT((YEAR('RECUEIL DES DONNEES'!BS$4:BS$1996)=2019)*'RECUEIL DES DONNEES'!BY$4:BY$1996)","v":0},{"$f":"D146*52/D$132","v":{"$error":"#DIV/0!"}},{"$f":"SUMPRODUCT((YEAR('RECUEIL DES DONNEES'!BS$4:BS$1996)=2020)*'RECUEIL DES DONNEES'!BY$4:BY$1996)","v":0},{"$f":"F146*52/F$132","v":{"$error":"#DIV/0!"}},{"$f":"SUMPRODUCT((YEAR('RECUEIL DES DONNEES'!BS$4:BS$1996)=2021)*'RECUEIL DES DONNEES'!BY$4:BY$1996)","v":0},{"$f":"H146*52/H$132","v":{"$error":"#DIV/0!"}},{"$f":"SUMPRODUCT((YEAR('RECUEIL DES DONNEES'!BS$4:BS$1996)=2022)*'RECUEIL DES DONNEES'!BY$4:BY$1996)","v":0},{"$f":"J146*52/J$132","v":{"$error":"#DIV/0!"}}]
["Nombre de patients conciliés avec au moins une divergence non documentée non intentionnelle",{"$f":"SUMPRODUCT((YEAR('RECUEIL DES DONNEES'!BS$4:BS$1996)=2018)*'RECUEIL DES DONNEES'!BZ$4:BZ$1996)","v":0},{"$f":"B147*52/B$132","v":{"$error":"#DIV/0!"}},{"$f":"SUMPRODUCT((YEAR('RECUEIL DES DONNEES'!BS$4:BS$1996)=2019)*'RECUEIL DES DONNEES'!BZ$4:BZ$1996)","v":0},{"$f":"D147*52/D$132","v":{"$error":"#DIV/0!"}},{"$f":"SUMPRODUCT((YEAR('RECUEIL DES DONNEES'!BS$4:BS$1996)=2020)*'RECUEIL DES DONNEES'!BZ$4:BZ$1996)","v":0},{"$f":"F147*52/F$132","v":{"$error":"#DIV/0!"}},{"$f":"SUMPRODUCT((YEAR('RECUEIL DES DONNEES'!BS$4:BS$1996)=2021)*'RECUEIL DES DONNEES'!BZ$4:BZ$1996)","v":0},{"$f":"H147*52/H$132","v":{"$error":"#DIV/0!"}},{"$f":"SUMPRODUCT((YEAR('RECUEIL DES DONNEES'!BS$4:BS$1996)=2022)*'RECUEIL DES DONNEES'!BZ$4:BZ$1996)","v":0},{"$f":"J147*52/J$132","v":{"$error":"#DIV/0!"}}]
["Nombre d'IP ayant entrainé des modifications de prescription",{"$f":"SUMPRODUCT((YEAR('RECUEIL DES DONNEES'!BS$4:BS$1996)=2018)*'RECUEIL DES DONNEES'!CA$4:CA$1996)","v":0},{"$f":"B148*52/B$132","v":{"$error":"#DIV/0!"}},{"$f":"SUMPRODUCT((YEAR('RECUEIL DES DONNEES'!BS$4:BS$1996)=2019)*'RECUEIL DES DONNEES'!CA$4:CA$1996)","v":0},{"$f":"D148*52/D$132","v":{"$error":"#DIV/0!"}},{"$f":"SUMPRODUCT((YEAR('RECUEIL DES DONNEES'!BS$4:BS$1996)=2020)*'RECUEIL DES DONNEES'!CA$4:CA$1996)","v":0},{"$f":"F148*52/F$132","v":{"$error":"#DIV/0!"}},{"$f":"SUMPRODUCT((YEAR('RECUEIL DES DONNEES'!BS$4:BS$1996)=2021)*'RECUEIL DES DONNEES'!CA$4:CA$1996)","v":0},{"$f":"H148*52/H$132","v":{"$error":"#DIV/0!"}},{"$f":"SUMPRODUCT((YEAR('RECUEIL DES DONNEES'!BS$4:BS$1996)=2022)*'RECUEIL DES DONNEES'!CA$4:CA$1996)","v":0},{"$f":"J148*52/J$132","v":{"$error":"#DIV/0!"}}]
["Nombre de patients ayant bénéficié d'une activité de pharmacie clinique de niveau 3",{"$f":"SUMPRODUCT((YEAR('RECUEIL DES DONNEES'!BS$4:BS$1996)=2018)*'RECUEIL DES DONNEES'!CB$4:CB$1996)","v":0},{"$f":"B149*52/B$132","v":{"$error":"#DIV/0!"}},{"$f":"SUMPRODUCT((YEAR('RECUEIL DES DONNEES'!BS$4:BS$1996)=2019)*'RECUEIL DES DONNEES'!CB$4:CB$1996)","v":0},{"$f":"D149*52/D$132","v":{"$error":"#DIV/0!"}},{"$f":"SUMPRODUCT((YEAR('RECUEIL DES DONNEES'!BS$4:BS$1996)=2020)*'RECUEIL DES DONNEES'!CB$4:CB$1996)","v":0},{"$f":"F149*52/F$132","v":{"$error":"#DIV/0!"}},{"$f":"SUMPRODUCT((YEAR('RECUEIL DES DONNEES'!BS$4:BS$1996)=2021)*'RECUEIL DES DONNEES'!CB$4:CB$1996)","v":0},{"$f":"H149*52/H$132","v":{"$error":"#DIV/0!"}},{"$f":"SUMPRODUCT((YEAR('RECUEIL DES DONNEES'!BS$4:BS$1996)=2022)*'RECUEIL DES DONNEES'!CB$4:CB$1996)","v":0},{"$f":"J149*52/J$132","v":{"$error":"#DIV/0!"}}]
["Indicateur clinique 1: \nNb patients conciliés avec au moins une divergencee non documentée/ Nb de patients conciliés",{"$f":"C146/C135","v":{"$error":"#DIV/0!"}},null,{"$f":"E146/E135","v":{"$error":"#DIV/0!"}},null,{"$f":"G146/G135","v":{"$error":"#DIV/0!"}},null,{"$f":"I146/I135","v":{"$error":"#DIV/0!"}},null,{"$f":"K146/K135","v":{"$error":"#DIV/0!"}}]
["Indicateur clinique 2:\nNb d'interventions pharmaceutiques ayant entrainé des modifications de prescription/ Nb de patients ayant bénéficié d'une activité de pharmacie clinique de niveau 3",{"$f":"B148/B149","v":{"$error":"#DIV/0!"}},null,{"$f":"E148/E149","v":{"$error":"#DIV/0!"}},null,{"$f":"G148/G149","v":{"$error":"#DIV/0!"}},null,{"$f":"I148/I149","v":{"$error":"#DIV/0!"}},null,{"$f":"K148/K149","v":{"$error":"#DIV/0!"}}]
[]
["Secteur 6"]
["Type de  conciliation"]
["Proactive",{"$f":"IF(SUMPRODUCT(('RECUEIL DES DONNEES'!CC$4:CC$1999=TRUE)*(YEAR('RECUEIL DES DONNEES'!CG$4:CG$1999)=2018))>0,\"OUI\",\"NON\")","v":"NON"},null,{"$f":"IF(SUMPRODUCT(('RECUEIL DES DONNEES'!CC$4:CC$1999=TRUE)*(YEAR('RECUEIL DES DONNEES'!CG$4:CG$1999)=2019))>0,\"OUI\",\"NON\")","v":"NON"},null,{"$f":"IF(SUMPRODUCT(('RECUEIL DES DONNEES'!CC$4:CC$1999=TRUE)*(YEAR('RECUEIL DES DONNEES'!CG$4:CG$1999)=2020))>0,\"OUI\",\"NON\")","v":"NON"},null,{"$f":"IF(SUMPRODUCT(('RECUEIL DES DONNEES'!CC$4:CC$1999=TRUE)*(YEAR('RECUEIL DES DONNEES'!CG$4:CG$1999)=2021))>0,\"OUI\",\"NON\")","v":"NON"},null,{"$f":"IF(SUMPRODUCT(('RECUEIL DES DONNEES'!CC$4:CC$1999=TRUE)*(YEAR('RECUEIL DES DONNEES'!CG$4:CG$1999)=2022))>0,\"OUI\",\"NON\")","v":"NON"}]
["Rétroactive",{"$f":"IF(SUMPRODUCT(('RECUEIL DES DONNEES'!CD$4:CD$1999=TRUE)*(YEAR('RECUEIL DES DONNEES'!CG$4:CG$1999)=2018))>0,\"OUI\",\"NON\")","v":"NON"},null,{"$f":"IF(SUMPRODUCT(('RECUEIL DES DONNEES'!CD$4:CD$1999=TRUE)*(YEAR('RECUEIL DES DONNEES'!CG$4:CG$1999)=2019))>0,\"OUI\",\"NON\")","v":"NON"},null,{"$f":"IF(SUMPRODUCT(('RECUEIL DES DONNEES'!CD$4:CD$1999=TRUE)*(YEAR('RECUEIL DES DONNEES'!CG$4:CG$1999)=2020))>0,\"OUI\",\"NON\")","v":"NON"},null,{"$f":"IF(SUMPRODUCT(('RECUEIL DES DONNEES'!CD$4:CD$1999=TRUE)*(YEAR('RECUEIL DES DONNEES'!CG$4:CG$1999)=2021))>0,\"OUI\",\"NON\")","v":"NON"},null,{"$f":"IF(SUMPRODUCT(('RECUEIL DES DONNEES'!CD$4:CD$1999=TRUE)*(YEAR('RECUEIL DES DONNEES'!CG$4:CG$1999)=2022))>0,\"OUI\",\"NON\")","v":"NON"}]
["Entrée",{"$f":"IF(SUMPRODUCT(('RECUEIL DES DONNEES'!CE$4:CE$1999=TRUE)*(YEAR('RECUEIL DES DONNEES'!CG$4:CG$1999)=2018))>0,\"OUI\",\"NON\")","v":"NON"},null,{"$f":"IF(SUMPRODUCT(('RECUEIL DES DONNEES'!CE$4:CE$1999=TRUE)*(YEAR('RECUEIL DES DONNEES'!CG$4:CG$1999)=2019))>0,\"OUI\",\"NON\")","v":"NON"},null,{"$f":"IF(SUMPRODUCT(('RECUEIL DES DONNEES'!CE$4:CE$1999=TRUE)*(YEAR('RECUEIL DES DONNEES'!CG$4:CG$1999)=2020))>0,\"OUI\",\"NON\")","v":"NON"},null,{"$f":"IF(SUMPRODUCT(('RECUEIL DES DONNEES'!CE$4:CE$1999=TRUE)*(YEAR('RECUEIL DES DONNEES'!CG$4:CG$1999)=2021))>0,\"OUI\",\"NON\")","v":"NON"},null,{"$f":"IF(SUMPRODUCT(('RECUEIL DES DONNEES'!CE$4:CE$1999=TRUE)*(YEAR('RECUEIL DES DONNEES'!CG$4:CG$1999)=2022))>0,\"OUI\",\"NON\")","v":"NON"}]
["Sortie",{"$f":"IF(SUMPRODUCT(('RECUEIL DES DONNEES'!CF$4:CF$1999=TRUE)*(YEAR('RECUEIL DES DONNEES'!CG$4:CG$1999)=2018))>0,\"OUI\",\"NON\")","v":"NON"},null,{"$f":"IF(SUMPRODUCT(('RECUEIL DES DONNEES'!CF$4:CF$1999=TRUE)*(YEAR('RECUEIL DES DONNEES'!CG$4:CG$1999)=2019))>0,\"OUI\",\"NON\")","v":"NON"},null,{"$f":"IF(SUMPRODUCT(('RECUEIL DES DONNEES'!CF$4:CF$1999=TRUE)*(YEAR('RECUEIL DES DONNEES'!CG$4:CG$1999)=2020))>0,\"OUI\",\"NON\")","v":"NON"},null,{"$f":"IF(SUMPRODUCT(('RECUEIL DES DONNEES'!CF$4:CF$1999=TRUE)*(YEAR('RECUEIL DES DONNEES'!CG$4:CG$1999)=2021))>0,\"OUI\",\"NON\")","v":"NON"},null,{"$f":"IF(SUMPRODUCT(('RECUEIL DES DONNEES'!CF$4:CF$1999=TRUE)*(YEAR('RECUEIL DES DONNEES'!CG$4:CG$1999)=2022))>0,\"OUI\",\"NON\")","v":"NON"}]
[]
["Période de recueil des indicateurs en semaine",{"$f":"SUMPRODUCT((YEAR('RECUEIL DES DONNEES'!CG$4:CG$1996)=2018)*(('RECUEIL DES DONNEES'!CH$4:CH$1996-'RECUEIL DES DONNEES'!CG$4:CG$1996)+1)/7)","v":0},null,{"$f":"SUMPRODUCT((YEAR('RECUEIL DES DONNEES'!CG$4:CG$1996)=2019)*(('RECUEIL DES DONNEES'!CH$4:CH$1996-'RECUEIL DES DONNEES'!CG$4:CG$1996)+1)/7)","v":0},null,{"$f":"SUMPRODUCT((YEAR('RECUEIL DES DONNEES'!CG$4:CG$1996)=2020)*(('RECUEIL DES DONNEES'!CH$4:CH$1996-'RECUEIL DES DONNEES'!CG$4:CG$1996)+1)/7)","v":0},null,{"$f":"SUMPRODUCT((YEAR('RECUEIL DES DONNEES'!CG$4:CG$1996)=2021)*(('RECUEIL DES DONNEES'!CH$4:CH$1996-'RECUEIL DES DONNEES'!CG$4:CG$1996)+1)/7)","v":0},null,{"$f":"SUMPRODUCT((YEAR('RECUEIL DES DONNEES'!CG$4:CG$1996)=2022)*(('RECUEIL DES DONNEES'!CH$4:CH$1996-'RECUEIL DES DONNEES'!CG$4:CG$1996)+1)/7)","v":0}]
[]
["CAQES","Nb patient sur la période de recueil","Nb patient extrapolé sur l'année","Nb patient sur la période de recueil","ND patient extrapolé sur l'année","Nb patient sur la période de recueil","ND patient extrapolé sur l'année","Nb patient sur la période de recueil","ND patient extrapolé sur l'année","Nb patient sur la période de recueil","ND patient extrapolé sur l'année"]
["Nombre de patients priorisés conciliés en entrée et/ou sortie",{"$f":"SUMPRODUCT((YEAR('RECUEIL DES DONNEES'!CG$4:CG$1996)=2018)*'RECUEIL DES DONNEES'!CI$4:CI$1996)","v":0},{"$f":"B163*52/B160","v":{"$error":"#DIV/0!"}},{"$f":"SUMPRODUCT((YEAR('RECUEIL DES DONNEES'!CG$4:CG$1996)=2019)*'RECUEIL DES DONNEES'!CI$4:CI$1996)","v":0},{"$f":"D163*52/D160","v":{"$error":"#DIV/0!"}},{"$f":"SUMPRODUCT((YEAR('RECUEIL DES DONNEES'!CG$4:CG$1996)=2020)*'RECUEIL DES DONNEES'!CI$4:CI$1996)","v":0},{"$f":"F163*52/F160","v":{"$error":"#DIV/0!"}},{"$f":"SUMPRODUCT((YEAR('RECUEIL DES DONNEES'!CG$4:CG$1996)=2021)*'RECUEIL DES DONNEES'!CI$4:CI$1996)","v":0},{"$f":"H163*52/H160","v":{"$error":"#DIV/0!"}},{"$f":"SUMPRODUCT((YEAR('RECUEIL DES DONNEES'!CG$4:CG$1996)=2022)*'RECUEIL DES DONNEES'!CI$4:CI$1996)","v":0},{"$f":"J163*52/J160","v":{"$error":"#DIV/0!"}}]
["Nombre de patients priorisés hospitalisés",{"$f":"SUMPRODUCT((YEAR('RECUEIL DES DONNEES'!CG$4:CG$1996)=2018)*'RECUEIL DES DONNEES'!CJ$4:CJ$1996)","v":0},{"$f":"B164*52/B160","v":{"$error":"#DIV/0!"}},{"$f":"SUMPRODUCT((YEAR('RECUEIL DES DONNEES'!CG$4:CG$1996)=2019)*'RECUEIL DES DONNEES'!CJ$4:CJ$1996)","v":0},{"$f":"D164*52/D160","v":{"$error":"#DIV/0!"}},{"$f":"SUMPRODUCT((YEAR('RECUEIL DES DONNEES'!CG$4:CG$1996)=2020)*'RECUEIL DES DONNEES'!CJ$4:CJ$1996)","v":0},{"$f":"F164*52/F160","v":{"$error":"#DIV/0!"}},{"$f":"SUMPRODUCT((YEAR('RECUEIL DES DONNEES'!CG$4:CG$1996)=2021)*'RECUEIL DES DONNEES'!CJ$4:CJ$1996)","v":0},{"$f":"H164*52/H160","v":{"$error":"#DIV/0!"}},{"$f":"SUMPRODUCT((YEAR('RECUEIL DES DONNEES'!CG$4:CG$1996)=2022)*'RECUEIL DES DONNEES'!CJ$4:CJ$1996)","v":0},{"$f":"J164*52/J160","v":{"$error":"#DIV/0!"}}]
["Indicateur CAQES",{"$f":"C163/C164","v":{"$error":"#DIV/0!"}},null,{"$f":"E163/E164","v":{"$error":"#DIV/0!"}},null,{"$f":"G163/G164","v":{"$error":"#DIV/0!"}},null,{"$f":"I163/I164","v":{"$error":"#DIV/0!"}},null,{"$f":"K163/K164","v":{"$error":"#DIV/0!"}}]
[]
["ACTIVITE","Nb patient sur la période de recueil","Nb patient extrapolé sur l'année","Nb patient sur la période de recueil","ND patient extrapolé sur l'année","Nb patient sur la période de recueil","ND patient extrapolé sur l'année","Nb patient sur la période de recueil","ND patient extrapolé sur l'année","Nb patient sur la période de recueil","ND patient extrapolé sur l'année"]
["Nombre de patients entrants",{"$f":"SUMPRODUCT((YEAR('RECUEIL DES DONNEES'!CG$4:CG$1996)=2018)*'RECUEIL DES DONNEES'!CK$4:CK$1996)","v":0},{"$f":"B168*52/B160","v":{"$error":"#DIV/0!"}},{"$f":"SUMPRODUCT((YEAR('RECUEIL DES DONNEES'!CG$4:CG$1996)=2019)*'RECUEIL DES DONNEES'!CK$4:CK$1996)","v":0},{"$f":"D168*52/D160","v":{"$error":"#DIV/0!"}},{"$f":"SUMPRODUCT((YEAR('RECUEIL DES DONNEES'!CG$4:CG$1996)=2020)*'RECUEIL DES DONNEES'!CK$4:CK$1996)","v":0},{"$f":"F168*52/F160","v":{"$error":"#DIV/0!"}},{"$f":"SUMPRODUCT((YEAR('RECUEIL DES DONNEES'!CG$4:CG$1996)=2021)*'RECUEIL DES DONNEES'!CK$4:CK$1996)","v":0},{"$f":"H168*52/H160","v":{"$error":"#DIV/0!"}},{"$f":"SUMPRODUCT((YEAR('RECUEIL DES DONNEES'!CG$4:CG$1996)=2022)*'RECUEIL DES DONNEES'!CK$4:CK$1996)","v":0},{"$f":"J168*52/J160","v":{"$error":"#DIV/0!"}}]
["Nombre d'ETP pharmaceutiques dédiés",{"$f":"SUMPRODUCT((YEAR('RECUEIL DES DONNEES'!CG4:CG1999)=2018)*('RECUEIL DES DONNEES'!CL4:CL1999)/SUMPRODUCT((YEAR('RECUEIL DES DONNEES'!CG4:CG1999)=2018)*1))","v":{"$error":"#DIV/0!"}},null,{"$f":"SUMPRODUCT((YEAR('RECUEIL DES DONNEES'!CG4:CG1999)=2019)*('RECUEIL DES DONNEES'!CL4:CL1999)/SUMPRODUCT((YEAR('RECUEIL DES DONNEES'!CG4:CG1999)=2019)*1))","v":{"$error":"#DIV/0!"}},null,{"$f":"SUMPRODUCT((YEAR('RECUEIL DES DONNEES'!CG4:CG1999)=2020)*('RECUEIL DES DONNEES'!CL4:CL1999)/SUMPRODUCT((YEAR('RECUEIL DES DONNEES'!CG4:CG1999)=2020)*1))","v":{"$error":"#DIV/0!"}},null,{"$f":"SUMPRODUCT((YEAR('RECUEIL DES DONNEES'!CG4:CG1999)=2021)*('RECUEIL DES DONNEES'!CL4:CL1999)/SUMPRODUCT((YEAR('RECUEIL DES DONNEES'!CG4:CG1999)=2021)*1))","v":{"$error":"#DIV/0!"}},null,{"$f":"SUMPRODUCT((YEAR('RECUEIL DES DONNEES'!CG4:CG1999)=2022)*('RECUEIL DES DONNEES'!CL4:CL1999)/SUMPRODUCT((YEAR('RECUEIL DES DONNEES'!CG4:CG1999)=2022)*1))","v":{"$error":"#DIV/0!"}}]
["Indicateur d'activité 1: \nNb patients conciliés entrants/ Nb de patients entrants",{"$f":"C163/C168","v":{"$error":"#DIV/0!"}},null,{"$f":"E163/E168","v":{"$error":"#DIV/0!"}},null,{"$f":"G163/G168","v":{"$error":"#DIV/0!"}},null,{"$f":"I163/I168","v":{"$error":"#DIV/0!"}},null,{"$f":"K163/K168","v":{"$error":"#DIV/0!"}}]
["Indicateur d'activité 2:\nNb de patients conciliés/Nb ETP pharmaceutiques dédiés",{"$f":"C163/B169","v":{"$error":"#DIV/0!"}},null,{"$f":"E163/D169","v":{"$error":"#DIV/0!"}},null,{"$f":"G163/F169","v":{"$error":"#DIV/0!"}},null,{"$f":"I163/H169","v":{"$error":"#DIV/0!"}},null,{"$f":"K163/J169","v":{"$error":"#DIV/0!"}}]
[]
["CLINIQUE","Nb patient sur la période de recueil","Nb patient extrapolé sur l'année","Nb patient sur la période de recueil","ND patient extrapolé sur l'année","Nb patient sur la période de recueil","ND patient extrapolé sur l'année","Nb patient sur la période de recueil","ND patient extrapolé sur l'année","Nb patient sur la période de recueil","ND patient extrapolé sur l'année"]
["Nombre de patients conciliés avec au moins une divergence non documentée",{"$f":"SUMPRODUCT((YEAR('RECUEIL DES DONNEES'!CG$4:CG$1996)=2018)*'RECUEIL DES DONNEES'!CM$4:CM$1996)","v":0},{"$f":"B174*52/B$160","v":{"$error":"#DIV/0!"}},{"$f":"SUMPRODUCT((YEAR('RECUEIL DES DONNEES'!CG$4:CG$1996)=2019)*'RECUEIL DES DONNEES'!CM$4:CM$1996)","v":0},{"$f":"D174*52/D$160","v":{"$error":"#DIV/0!"}},{"$f":"SUMPRODUCT((YEAR('RECUEIL DES DONNEES'!CG$4:CG$1996)=2020)*'RECUEIL DES DONNEES'!CM$4:CM$1996)","v":0},{"$f":"F174*52/F$160","v":{"$error":"#DIV/0!"}},{"$f":"SUMPRODUCT((YEAR('RECUEIL DES DONNEES'!CG$4:CG$1996)=2021)*'RECUEIL DES DONNEES'!CM$4:CM$1996)","v":0},{"$f":"H174*52/H$160","v":{"$error":"#DIV/0!"}},{"$f":"SUMPRODUCT((YEAR('RECUEIL DES DONNEES'!CG$4:CG$1996)=2022)*'RECUEIL DES DONNEES'!CM$4:CM$1996)","v":0},{"$f":"J174*52/J$160","v":{"$error":"#DIV/0!"}}]
["Nombre de patients conciliés avec au moins une divergence non documentée non intentionnelle",{"$f":"SUMPRODUCT((YEAR('RECUEIL DES DONNEES'!CG$4:CG$1996)=2018)*'RECUEIL DES DONNEES'!CN$4:CN$1996)","v":0},{"$f":"B175*52/B$160","v":{"$error":"#DIV/0!"}},{"$f":"SUMPRODUCT((YEAR('RECUEIL DES DONNEES'!CG$4:CG$1996)=2019)*'RECUEIL DES DONNEES'!CN$4:CN$1996)","v":0},{"$f":"D175*52/D$160","v":{"$error":"#DIV/0!"}},{"$f":"SUMPRODUCT((YEAR('RECUEIL DES DONNEES'!CG$4:CG$1996)=2020)*'RECUEIL DES DONNEES'!CN$4:CN$1996)","v":0},{"$f":"F175*52/F$160","v":{"$error":"#DIV/0!"}},{"$f":"SUMPRODUCT((YEAR('RECUEIL DES DONNEES'!CG$4:CG$1996)=2021)*'RECUEIL DES DONNEES'!CN$4:CN$1996)","v":0},{"$f":"H175*52/H$160","v":{"$error":"#DIV/0!"}},{"$f":"SUMPRODUCT((YEAR('RECUEIL DES DONNEES'!CG$4:CG$1996)=2022)*'RECUEIL DES DONNEES'!CN$4:CN$1996)","v":0},{"$f":"J175*52/J$160","v":{"$error":"#DIV/0!"}}]
["Nombre d'IP ayant entrainé des modifications de prescription",{"$f":"SUMPRODUCT((YEAR('RECUEIL DES DONNEES'!CG$4:CG$1996)=2018)*'RECUEIL DES DONNEES'!CO$4:CO$1996)","v":0},{"$f":"B176*52/B$160","v":{"$error":"#DIV/0!"}},{"$f":"SUMPRODUCT((YEAR('RECUEIL DES DONNEES'!CG$4:CG$1996)=2019)*'RECUEIL DES DONNEES'!CO$4:CO$1996)","v":0},{"$f":"D176*52/D$160","v":{"$error":"#DIV/0!"}},{"$f":"SUMPRODUCT((YEAR('RECUEIL DES DONNEES'!CG$4:CG$1996)=2020)*'RECUEIL DES DONNEES'!CO$4:CO$1996)","v":0},{"$f":"F176*52/F$160","v":{"$error":"#DIV/0!"}},{"$f":"SUMPRODUCT((YEAR('RECUEIL DES DONNEES'!CG$4:CG$1996)=2021)*'RECUEIL DES DONNEES'!CO$4:CO$1996)","v":0},{"$f":"H176*52/H$160","v":{"$error":"#DIV/0!"}},{"$f":"SUMPRODUCT((YEAR('RECUEIL DES DONNEES'!CG$4:CG$1996)=2022)*'RECUEIL DES DONNEES'!CO$4:CO$1996)","v":0},{"$f":"J176*52/J$160","v":{"$error":"#DIV/0!"}}]
["Nombre de patients ayant bénéficié d'une activité de pharmacie clinique de niveau 3",{"$f":"SUMPRODUCT((YEAR('RECUEIL DES DONNEES'!CG$4:CG$1996)=2018)*'RECUEIL DES DONNEES'!CP$4:CP$1996)","v":0},{"$f":"B177*52/B$160","v":{"$error":"#DIV/0!"}},{"$f":"SUMPRODUCT((YEAR('RECUEIL DES DONNEES'!CG$4:CG$1996)=2019)*'RECUEIL DES DONNEES'!CP$4:CP$1996)","v":0},{"$f":"D177*52/D$160","v":{"$error":"#DIV/0!"}},{"$f":"SUMPRODUCT((YEAR('RECUEIL DES DONNEES'!CG$4:CG$1996)=2020)*'RECUEIL DES DONNEES'!CP$4:CP$1996)","v":0},{"$f":"F177*52/F$160","v":{"$error":"#DIV/0!"}},{"$f":"SUMPRODUCT((YEAR('RECUEIL DES DONNEES'!CG$4:CG$1996)=2021)*'RECUEIL DES DONNEES'!CP$4:CP$1996)","v":0},{"$f":"H177*52/H$160","v":{"$error":"#DIV/0!"}},{"$f":"SUMPRODUCT((YEAR('RECUEIL DES DONNEES'!CG$4:CG$1996)=2022)*'RECUEIL DES DONNEES'!CP$4:CP$1996)","v":0},{"$f":"J177*52/J$160","v":{"$error":"#DIV/0!"}}]
["Indicateur clinique 1: \nNb patients conciliés avec au moins une divergencee non documentée/ Nb de patients conciliés",{"$f":"C174/C163","v":{"$error":"#DIV/0!"}},null,{"$f":"E174/E163","v":{"$error":"#DIV/0!"}},null,{"$f":"G174/G163","v":{"$error":"#DIV/0!"}},null,{"$f":"I174/I163","v":{"$error":"#DIV/0!"}},null,{"$f":"K174/K163","v":{"$error":"#DIV/0!"}}]
["Indicateur clinique 2:\nNb d'interventions pharmaceutiques ayant entrainé des modifications de prescription/ Nb de patients ayant bénéficié d'une activité de pharmacie clinique de niveau 3",{"$f":"C176/C177","v":{"$error":"#DIV/0!"}},null,{"$f":"E176/E177","v":{"$error":"#DIV/0!"}},null,{"$f":"G176/G177","v":{"$error":"#DIV/0!"}},null,{"$f":"I176/I177","v":{"$error":"#DIV/0!"}},null,{"$f":"K176/K177","v":{"$error":"#DIV/0!"}}]
[]
["Secteur 7"]
["Type de  conciliation"]
["Proactive",{"$f":"IF(SUMPRODUCT(('RECUEIL DES DONNEES'!CQ$4:CQ$1999=TRUE)*(YEAR('RECUEIL DES DONNEES'!CU$4:CU$1999)=2018))>0,\"OUI\",\"NON\")","v":"NON"},null,{"$f":"IF(SUMPRODUCT(('RECUEIL DES DONNEES'!CQ$4:CQ$1999=TRUE)*(YEAR('RECUEIL DES DONNEES'!CU$4:CU$1999)=2019))>0,\"OUI\",\"NON\")","v":"NON"},null,{"$f":"IF(SUMPRODUCT(('RECUEIL DES DONNEES'!CQ$4:CQ$1999=TRUE)*(YEAR('RECUEIL DES DONNEES'!CU$4:CU$1999)=2020))>0,\"OUI\",\"NON\")","v":"NON"},null,{"$f":"IF(SUMPRODUCT(('RECUEIL DES DONNEES'!CQ$4:CQ$1999=TRUE)*(YEAR('RECUEIL DES DONNEES'!CU$4:CU$1999)=2021))>0,\"OUI\",\"NON\")","v":"NON"},null,{"$f":"IF(SUMPRODUCT(('RECUEIL DES DONNEES'!CQ$4:CQ$1999=TRUE)*(YEAR('RECUEIL DES DONNEES'!CU$4:CU$1999)=2022))>0,\"OUI\",\"NON\")","v":"NON"}]
["Rétroactive",{"$f":"IF(SUMPRODUCT(('RECUEIL DES DONNEES'!CR$4:CR$1999=TRUE)*(YEAR('RECUEIL DES DONNEES'!CU$4:CU$1999)=2018))>0,\"OUI\",\"NON\")","v":"NON"},null,{"$f":"IF(SUMPRODUCT(('RECUEIL DES DONNEES'!CR$4:CR$1999=TRUE)*(YEAR('RECUEIL DES DONNEES'!CU$4:CU$1999)=2019))>0,\"OUI\",\"NON\")","v":"NON"},null,{"$f":"IF(SUMPRODUCT(('RECUEIL DES DONNEES'!CR$4:CR$1999=TRUE)*(YEAR('RECUEIL DES DONNEES'!CU$4:CU$1999)=2020))>0,\"OUI\",\"NON\")","v":"NON"},null,{"$f":"IF(SUMPRODUCT(('RECUEIL DES DONNEES'!CR$4:CR$1999=TRUE)*(YEAR('RECUEIL DES DONNEES'!CU$4:CU$1999)=2021))>0,\"OUI\",\"NON\")","v":"NON"},null,{"$f":"IF(SUMPRODUCT(('RECUEIL DES DONNEES'!CR$4:CR$1999=TRUE)*(YEAR('RECUEIL DES DONNEES'!CU$4:CU$1999)=2022))>0,\"OUI\",\"NON\")","v":"NON"}]
["Entrée",{"$f":"IF(SUMPRODUCT(('RECUEIL DES DONNEES'!CS$4:CS$1999=TRUE)*(YEAR('RECUEIL DES DONNEES'!CU$4:CU$1999)=2018))>0,\"OUI\",\"NON\")","v":"NON"},null,{"$f":"IF(SUMPRODUCT(('RECUEIL DES DONNEES'!CS$4:CS$1999=TRUE)*(YEAR('RECUEIL DES DONNEES'!CU$4:CU$1999)=2019))>0,\"OUI\",\"NON\")","v":"NON"},null,{"$f":"IF(SUMPRODUCT(('RECUEIL DES DONNEES'!CS$4:CS$1999=TRUE)*(YEAR('RECUEIL DES DONNEES'!CU$4:CU$1999)=2020))>0,\"OUI\",\"NON\")","v":"NON"},null,{"$f":"IF(SUMPRODUCT(('RECUEIL DES DONNEES'!CS$4:CS$1999=TRUE)*(YEAR('RECUEIL DES DONNEES'!CU$4:CU$1999)=2021))>0,\"OUI\",\"NON\")","v":"NON"},null,{"$f":"IF(SUMPRODUCT(('RECUEIL DES DONNEES'!CS$4:CS$1999=TRUE)*(YEAR('RECUEIL DES DONNEES'!CU$4:CU$1999)=2022))>0,\"OUI\",\"NON\")","v":"NON"}]
["Sortie",{"$f":"IF(SUMPRODUCT(('RECUEIL DES DONNEES'!CT$4:CT$1999=TRUE)*(YEAR('RECUEIL DES DONNEES'!CU$4:CU$1999)=2018))>0,\"OUI\",\"NON\")","v":"NON"},null,{"$f":"IF(SUMPRODUCT(('RECUEIL DES DONNEES'!CT$4:CT$1999=TRUE)*(YEAR('RECUEIL DES DONNEES'!CU$4:CU$1999)=2019))>0,\"OUI\",\"NON\")","v":"NON"},null,{"$f":"IF(SUMPRODUCT(('RECUEIL DES DONNEES'!CT$4:CT$1999=TRUE)*(YEAR('RECUEIL DES DONNEES'!CU$4:CU$1999)=2020))>0,\"OUI\",\"NON\")","v":"NON"},null,{"$f":"IF(SUMPRODUCT(('RECUEIL DES DONNEES'!CT$4:CT$1999=TRUE)*(YEAR('RECUEIL DES DONNEES'!CU$4:CU$1999)=2021))>0,\"OUI\",\"NON\")","v":"NON"},null,{"$f":"IF(SUMPRODUCT(('RECUEIL DES DONNEES'!CT$4:CT$1999=TRUE)*(YEAR('RECUEIL DES DONNEES'!CU$4:CU$1999)=2022))>0,\"OUI\",\"NON\")","v":"NON"}]
[]
["Période de recueil des indicateurs en semaine",{"$f":"SUMPRODUCT((YEAR('RECUEIL DES DONNEES'!CU$4:CU$1996)=2018)*(('RECUEIL DES DONNEES'!CV$4:CV$1996-'RECUEIL DES DONNEES'!CU4:CU$1996)+1)/7)","v":0},null,{"$f":"SUMPRODUCT((YEAR('RECUEIL DES DONNEES'!CU$4:CU$1996)=2019)*(('RECUEIL DES DONNEES'!CV$4:CV$1996-'RECUEIL DES DONNEES'!CU4:CU$1996)+1)/7)","v":0},null,{"$f":"SUMPRODUCT((YEAR('RECUEIL DES DONNEES'!CU$4:CU$1996)=2020)*(('RECUEIL DES DONNEES'!CV$4:CV$1996-'RECUEIL DES DONNEES'!CU4:CU$1996)+1)/7)","v":0},null,{"$f":"SUMPRODUCT((YEAR('RECUEIL DES DONNEES'!CU$4:CU$1996)=2021)*(('RECUEIL DES DONNEES'!CV$4:CV$1996-'RECUEIL DES DONNEES'!CU4:CU$1996)+1)/7)","v":0},null,{"$f":"SUMPRODUCT((YEAR('RECUEIL DES DONNEES'!CU$4:CU$1996)=2022)*(('RECUEIL DES DONNEES'!CV$4:CV$1996-'RECUEIL DES DONNEES'!CU4:CU$1996)+1)/7)","v":0}]
[]
["CAQES","Nb patient sur la période de recueil","Nb patient extrapolé sur l'année","Nb patient sur la période de recueil","ND patient extrapolé sur l'année","Nb patient sur la période de recueil","ND patient extrapolé sur l'année","Nb patient sur la période de recueil","ND patient extrapolé sur l'année","Nb patient sur la période de recueil","ND patient extrapolé sur l'année"]
["Nombre de patients priorisés conciliés en entrée et/ou sortie",{"$f":"SUMPRODUCT((YEAR('RECUEIL DES DONNEES'!CU$4:CU$1996)=2018)*'RECUEIL DES DONNEES'!CW$4:CW$1996)","v":0},{"$f":"B191*52/B188","v":{"$error":"#DIV/0!"}},{"$f":"SUMPRODUCT((YEAR('RECUEIL DES DONNEES'!CU$4:CU$1996)=2019)*'RECUEIL DES DONNEES'!CW$4:CW$1996)","v":0},{"$f":"D191*52/D188","v":{"$error":"#DIV/0!"}},{"$f":"SUMPRODUCT((YEAR('RECUEIL DES DONNEES'!CU$4:CU$1996)=2020)*'RECUEIL DES DONNEES'!CW$4:CW$1996)","v":0},{"$f":"F191*52/F188","v":{"$error":"#DIV/0!"}},{"$f":"SUMPRODUCT((YEAR('RECUEIL DES DONNEES'!CU$4:CU$1996)=2021)*'RECUEIL DES DONNEES'!CW$4:CW$1996)","v":0},{"$f":"H191*52/H188","v":{"$error":"#DIV/0!"}},{"$f":"SUMPRODUCT((YEAR('RECUEIL DES DONNEES'!CU$4:CU$1996)=2022)*'RECUEIL DES DONNEES'!CW$4:CW$1996)","v":0},{"$f":"J191*52/J188","v":{"$error":"#DIV/0!"}}]
["Nombre de patients priorisés hospitalisés",{"$f":"SUMPRODUCT((YEAR('RECUEIL DES DONNEES'!CU$4:CU$1996)=2018)*'RECUEIL DES DONNEES'!CX$4:CX$1996)","v":0},{"$f":"B192*52/B188","v":{"$error":"#DIV/0!"}},{"$f":"SUMPRODUCT((YEAR('RECUEIL DES DONNEES'!CU$4:CU$1996)=2019)*'RECUEIL DES DONNEES'!CX$4:CX$1996)","v":0},{"$f":"D192*52/D188","v":{"$error":"#DIV/0!"}},{"$f":"SUMPRODUCT((YEAR('RECUEIL DES DONNEES'!CU$4:CU$1996)=2020)*'RECUEIL DES DONNEES'!CX$4:CX$1996)","v":0},{"$f":"F192*52/F188","v":{"$error":"#DIV/0!"}},{"$f":"SUMPRODUCT((YEAR('RECUEIL DES DONNEES'!CU$4:CU$1996)=2021)*'RECUEIL DES DONNEES'!CX$4:CX$1996)","v":0},{"$f":"H192*52/H188","v":{"$error":"#DIV/0!"}},{"$f":"SUMPRODUCT((YEAR('RECUEIL DES DONNEES'!CU$4:CU$1996)=2022)*'RECUEIL DES DONNEES'!CX$4:CX$1996)","v":0},{"$f":"J192*52/J188","v":{"$error":"#DIV/0!"}}]
["Indicateur CAQES",{"$f":"C191/C192","v":{"$error":"#DIV/0!"}},null,{"$f":"D191/D192","v":{"$error":"#DIV/0!"}},null,{"$f":"G191/G192","v":{"$error":"#DIV/0!"}},null,{"$f":"I191/I192","v":{"$error":"#DIV/0!"}},null,{"$f":"K191/K192","v":{"$error":"#DIV/0!"}}]
[]
["ACTIVITE","Nb patient sur la période de recueil","Nb patient extrapolé sur l'année","Nb patient sur la période de recueil","ND patient extrapolé sur l'année","Nb patient sur la période de recueil","ND patient extrapolé sur l'année","Nb patient sur la période de recueil","ND patient extrapolé sur l'année","Nb patient sur la période de recueil","ND patient extrapolé sur l'année"]
["Nombre de patients entrants",{"$f":"SUMPRODUCT((YEAR('RECUEIL DES DONNEES'!CU$4:CU$1996)=2018)*'RECUEIL DES DONNEES'!CY$4:CY$1996)","v":0},{"$f":"B196*52/B188","v":{"$error":"#DIV/0!"}},{"$f":"SUMPRODUCT((YEAR('RECUEIL DES DONNEES'!CU$4:CU$1996)=2019)*'RECUEIL DES DONNEES'!CY$4:CY$1996)","v":0},{"$f":"D196*52/D188","v":{"$error":"#DIV/0!"}},{"$f":"SUMPRODUCT((YEAR('RECUEIL DES DONNEES'!CU$4:CU$1996)=2020)*'RECUEIL DES DONNEES'!CY$4:CY$1996)","v":0},{"$f":"F196*52/F188","v":{"$error":"#DIV/0!"}},{"$f":"SUMPRODUCT((YEAR('RECUEIL DES DONNEES'!CU$4:CU$1996)=2021)*'RECUEIL DES DONNEES'!CY$4:CY$1996)","v":0},{"$f":"H196*52/H188","v":{"$error":"#DIV/0!"}},{"$f":"SUMPRODUCT((YEAR('RECUEIL DES DONNEES'!CU$4:CU$1996)=2022)*'RECUEIL DES DONNEES'!CY$4:CY$1996)","v":0},{"$f":"J196*52/J188","v":{"$error":"#DIV/0!"}}]
["Nombre d'ETP pharmaceutiques dédiés",{"$f":"SUMPRODUCT((YEAR('RECUEIL DES DONNEES'!CU4:CU1999)=2018)*('RECUEIL DES DONNEES'!CZ4:CZ1999)/SUMPRODUCT((YEAR('RECUEIL DES DONNEES'!CU4:CU1999)=2018)*1))","v":{"$error":"#DIV/0!"}},null,{"$f":"SUMPRODUCT((YEAR('RECUEIL DES DONNEES'!CU4:CU1999)=2019)*('RECUEIL DES DONNEES'!CZ4:CZ1999)/SUMPRODUCT((YEAR('RECUEIL DES DONNEES'!CU4:CU1999)=2019)*1))","v":{"$error":"#DIV/0!"}},null,{"$f":"SUMPRODUCT((YEAR('RECUEIL DES DONNEES'!CU4:CU1999)=2020)*('RECUEIL DES DONNEES'!CZ4:CZ1999)/SUMPRODUCT((YEAR('RECUEIL DES DONNEES'!CU4:CU1999)=2020)*1))","v":{"$error":"#DIV/0!"}},null,{"$f":"SUMPRODUCT((YEAR('RECUEIL DES DONNEES'!CU4:CU1999)=2021)*('RECUEIL DES DONNEES'!CZ4:CZ1999)/SUMPRODUCT((YEAR('RECUEIL DES DONNEES'!CU4:CU1999)=2021)*1))","v":{"$error":"#DIV/0!"}},null,{"$f":"SUMPRODUCT((YEAR('RECUEIL DES DONNEES'!CU4:CU1999)=2022)*('RECUEIL DES DONNEES'!CZ4:CZ1999)/SUMPRODUCT((YEAR('RECUEIL DES DONNEES'!CU4:CU1999)=2022)*1))","v":{"$error":"#DIV/0!"}}]
["Indicateur d'activité 1: \nNb patients conciliés entrants/ Nb de patients entrants",{"$f":"C191/B196","v":{"$error":"#DIV/0!"}},null,{"$f":"E191/E196","v":{"$error":"#DIV/0!"}},null,{"$f":"G191/G196","v":{"$error":"#DIV/0!"}},null,{"$f":"I191/I196","v":{"$error":"#DIV/0!"}},null,{"$f":"K191/K196","v":{"$error":"#DIV/0!"}}]
["Indicateur d'activité 2:\nNb de patients conciliés/Nb ETP pharmaceutiques dédiés",{"$f":"C191/B197","v":{"$error":"#DIV/0!"}},null,{"$f":"E191/D197","v":{"$error":"#DIV/0!"}},null,{"$f":"G191/F197","v":{"$error":"#DIV/0!"}},null,{"$f":"I191/H197","v":{"$error":"#DIV/0!"}},null,{"$f":"K191/J197","v":{"$error":"#DIV/0!"}}]
[]
["CLINIQUE","Nb patient sur la période de recueil","Nb patient extrapolé sur l'année","Nb patient sur la période de recueil","ND patient extrapolé sur l'année","Nb patient sur la période de recueil","ND patient extrapolé sur l'année","Nb patient sur la période de recueil","ND patient extrapolé sur l'année","Nb patient sur la période de recueil","ND patient extrapolé sur l'année"]
["Nombre de patients conciliés avec au moins une divergence non documentée",{"$f":"SUMPRODUCT((YEAR('RECUEIL DES DONNEES'!CU$4:CU$1996)=2018)*'RECUEIL DES DONNEES'!DA$4:DA$1996)","v":0},{"$f":"B202*52/B$188","v":{"$error":"#DIV/0!"}},{"$f":"SUMPRODUCT((YEAR('RECUEIL DES DONNEES'!CU$4:CU$1996)=2019)*'RECUEIL DES DONNEES'!DA$4:DA$1996)","v":0},{"$f":"D202*52/D$188","v":{"$error":"#DIV/0!"}},{"$f":"SUMPRODUCT((YEAR('RECUEIL DES DONNEES'!CU$4:CU$1996)=2020)*'RECUEIL DES DONNEES'!DA$4:DA$1996)","v":0},{"$f":"F202*52/F$188","v":{"$error":"#DIV/0!"}},{"$f":"SUMPRODUCT((YEAR('RECUEIL DES DONNEES'!CU$4:CU$1996)=2021)*'RECUEIL DES DONNEES'!DA$4:DA$1996)","v":0},{"$f":"H202*52/H$188","v":{"$error":"#DIV/0!"}},{"$f":"SUMPRODUCT((YEAR('RECUEIL DES DONNEES'!CU$4:CU$1996)=2022)*'RECUEIL DES DONNEES'!DA$4:DA$1996)","v":0},{"$f":"J202*52/J$188","v":{"$error":"#DIV/0!"}}]
["Nombre de patients conciliés avec au moins une divergence non documentée non intentionnelle",{"$f":"SUMPRODUCT((YEAR('RECUEIL DES DONNEES'!CU$4:CU$1996)=2018)*'RECUEIL DES DONNEES'!DB$4:DB$1996)","v":0},{"$f":"B203*52/B$188","v":{"$error":"#DIV/0!"}},{"$f":"SUMPRODUCT((YEAR('RECUEIL DES DONNEES'!CU$4:CU$1996)=2019)*'RECUEIL DES DONNEES'!DB$4:DB$1996)","v":0},{"$f":"D203*52/D$188","v":{"$error":"#DIV/0!"}},{"$f":"SUMPRODUCT((YEAR('RECUEIL DES DONNEES'!CU$4:CU$1996)=2020)*'RECUEIL DES DONNEES'!DB$4:DB$1996)","v":0},{"$f":"F203*52/F$188","v":{"$error":"#DIV/0!"}},{"$f":"SUMPRODUCT((YEAR('RECUEIL DES DONNEES'!CU$4:CU$1996)=2021)*'RECUEIL DES DONNEES'!DB$4:DB$1996)","v":0},{"$f":"H203*52/H$188","v":{"$error":"#DIV/0!"}},{"$f":"SUMPRODUCT((YEAR('RECUEIL DES DONNEES'!CU$4:CU$1996)=2022)*'RECUEIL DES DONNEES'!DB$4:DB$1996)","v":0},{"$f":"J203*52/J$188","v":{"$error":"#DIV/0!"}}]
["Nombre d'IP ayant entrainé des modifications de prescription",{"$f":"SUMPRODUCT((YEAR('RECUEIL DES DONNEES'!CU$4:CU$1996)=2018)*'RECUEIL DES DONNEES'!DC$4:DC$1996)","v":0},{"$f":"B204*52/B$188","v":{"$error":"#DIV/0!"}},{"$f":"SUMPRODUCT((YEAR('RECUEIL DES DONNEES'!CU$4:CU$1996)=2019)*'RECUEIL DES DONNEES'!DC$4:DC$1996)","v":0},{"$f":"D204*52/D$188","v":{"$error":"#DIV/0!"}},{"$f":"SUMPRODUCT((YEAR('RECUEIL DES DONNEES'!CU$4:CU$1996)=2020)*'RECUEIL DES DONNEES'!DC$4:DC$1996)","v":0},{"$f":"F204*52/F$188","v":{"$error":"#DIV/0!"}},{"$f":"SUMPRODUCT((YEAR('RECUEIL DES DONNEES'!CU$4:CU$1996)=2021)*'RECUEIL DES DONNEES'!DC$4:DC$1996)","v":0},{"$f":"H204*52/H$188","v":{"$error":"#DIV/0!"}},{"$f":"SUMPRODUCT((YEAR('RECUEIL DES DONNEES'!CU$4:CU$1996)=2022)*'RECUEIL DES DONNEES'!DC$4:DC$1996)","v":0},{"$f":"J204*52/J$188","v":{"$error":"#DIV/0!"}}]
["Nombre de patients ayant bénéficié d'une activité de pharmacie clinique de niveau 3",{"$f":"SUMPRODUCT((YEAR('RECUEIL DES DONNEES'!CU$4:CU$1996)=2018)*'RECUEIL DES DONNEES'!DD$4:DD$1996)","v":0},{"$f":"B205*52/B$188","v":{"$error":"#DIV/0!"}},{"$f":"SUMPRODUCT((YEAR('RECUEIL DES DONNEES'!CU$4:CU$1996)=2019)*'RECUEIL DES DONNEES'!DD$4:DD$1996)","v":0},{"$f":"D205*52/D$188","v":{"$error":"#DIV/0!"}},{"$f":"SUMPRODUCT((YEAR('RECUEIL DES DONNEES'!CU$4:CU$1996)=2020)*'RECUEIL DES DONNEES'!DD$4:DD$1996)","v":0},{"$f":"F205*52/F$188","v":{"$error":"#DIV/0!"}},{"$f":"SUMPRODUCT((YEAR('RECUEIL DES DONNEES'!CU$4:CU$1996)=2021)*'RECUEIL DES DONNEES'!DD$4:DD$1996)","v":0},{"$f":"H205*52/H$188","v":{"$error":"#DIV/0!"}},{"$f":"SUMPRODUCT((YEAR('RECUEIL DES DONNEES'!CU$4:CU$1996)=2022)*'RECUEIL DES DONNEES'!DD$4:DD$1996)","v":0},{"$f":"J205*52/J$188","v":{"$error":"#DIV/0!"}}]
["Indicateur clinique 1: \nNb patients conciliés avec au moins une divergencee non documentée/ Nb de patients conciliés",{"$f":"C202/C191","v":{"$error":"#DIV/0!"}},null,{"$f":"E202/E191","v":{"$error":"#DIV/0!"}},null,{"$f":"G202/G191","v":{"$error":"#DIV/0!"}},null,{"$f":"I202/I191","v":{"$error":"#DIV/0!"}},null,{"$f":"K202/K191","v":{"$error":"#DIV/0!"}}]
["Indicateur clinique 2:\nNb d'interventions pharmaceutiques ayant entrainé des modifications de prescription/ Nb de patients ayant bénéficié d'une activité de pharmacie clinique de niveau 3",{"$f":"B204/B205","v":{"$error":"#DIV/0!"}},null,{"$f":"E204/E205","v":{"$error":"#DIV/0!"}},null,{"$f":"G204/G205","v":{"$error":"#DIV/0!"}},null,{"$f":"I204/I205","v":{"$error":"#DIV/0!"}},null,{"$f":"J204/J205","v":{"$error":"#DIV/0!"}}]
[]
["Secteur 8"]
["Type de  conciliation"]
["Proactive",{"$f":"IF(SUMPRODUCT(('RECUEIL DES DONNEES'!DE$4:DE$1999=TRUE)*(YEAR('RECUEIL DES DONNEES'!DI$4:DI$1999)=2018))>0,\"OUI\",\"NON\")","v":"NON"},null,{"$f":"IF(SUMPRODUCT(('RECUEIL DES DONNEES'!DE$4:DE$1999=TRUE)*(YEAR('RECUEIL DES DONNEES'!DI$4:DI$1999)=2019))>0,\"OUI\",\"NON\")","v":"NON"},null,{"$f":"IF(SUMPRODUCT(('RECUEIL DES DONNEES'!DE$4:DE$1999=TRUE)*(YEAR('RECUEIL DES DONNEES'!DI$4:DI$1999)=2020))>0,\"OUI\",\"NON\")","v":"NON"},null,{"$f":"IF(SUMPRODUCT(('RECUEIL DES DONNEES'!DE$4:DE$1999=TRUE)*(YEAR('RECUEIL DES DONNEES'!DI$4:DI$1999)=2021))>0,\"OUI\",\"NON\")","v":"NON"},null,{"$f":"IF(SUMPRODUCT(('RECUEIL DES DONNEES'!DE$4:DE$1999=TRUE)*(YEAR('RECUEIL DES DONNEES'!DI$4:DI$1999)=2022))>0,\"OUI\",\"NON\")","v":"NON"}]
["Rétroactive",{"$f":"IF(SUMPRODUCT(('RECUEIL DES DONNEES'!DF$4:DF$1999=TRUE)*(YEAR('RECUEIL DES DONNEES'!DI$4:DI$1999)=2018))>0,\"OUI\",\"NON\")","v":"NON"},null,{"$f":"IF(SUMPRODUCT(('RECUEIL DES DONNEES'!DF$4:DF$1999=TRUE)*(YEAR('RECUEIL DES DONNEES'!DI$4:DI$1999)=2019))>0,\"OUI\",\"NON\")","v":"NON"},null,{"$f":"IF(SUMPRODUCT(('RECUEIL DES DONNEES'!DF$4:DF$1999=TRUE)*(YEAR('RECUEIL DES DONNEES'!DI$4:DI$1999)=2020))>0,\"OUI\",\"NON\")","v":"NON"},null,{"$f":"IF(SUMPRODUCT(('RECUEIL DES DONNEES'!DF$4:DF$1999=TRUE)*(YEAR('RECUEIL DES DONNEES'!DI$4:DI$1999)=2021))>0,\"OUI\",\"NON\")","v":"NON"},null,{"$f":"IF(SUMPRODUCT(('RECUEIL DES DONNEES'!DF$4:DF$1999=TRUE)*(YEAR('RECUEIL DES DONNEES'!DI$4:DI$1999)=2022))>0,\"OUI\",\"NON\")","v":"NON"}]
["Entrée",{"$f":"IF(SUMPRODUCT(('RECUEIL DES DONNEES'!DG$4:DG$1999=TRUE)*(YEAR('RECUEIL DES DONNEES'!DI$4:DI$1999)=2018))>0,\"OUI\",\"NON\")","v":"NON"},null,{"$f":"IF(SUMPRODUCT(('RECUEIL DES DONNEES'!DG$4:DG$1999=TRUE)*(YEAR('RECUEIL DES DONNEES'!DI$4:DI$1999)=2019))>0,\"OUI\",\"NON\")","v":"NON"},null,{"$f":"IF(SUMPRODUCT(('RECUEIL DES DONNEES'!DG$4:DG$1999=TRUE)*(YEAR('RECUEIL DES DONNEES'!DI$4:DI$1999)=2020))>0,\"OUI\",\"NON\")","v":"NON"},null,{"$f":"IF(SUMPRODUCT(('RECUEIL DES DONNEES'!DG$4:DG$1999=TRUE)*(YEAR('RECUEIL DES DONNEES'!DI$4:DI$1999)=2021))>0,\"OUI\",\"NON\")","v":"NON"},null,{"$f":"IF(SUMPRODUCT(('RECUEIL DES DONNEES'!DG$4:DG$1999=TRUE)*(YEAR('RECUEIL DES DONNEES'!DI$4:DI$1999)=2022))>0,\"OUI\",\"NON\")","v":"NON"}]
["Sortie",{"$f":"IF(SUMPRODUCT(('RECUEIL DES DONNEES'!DH$4:DH$1999=TRUE)*(YEAR('RECUEIL DES DONNEES'!DI$4:DI$1999)=2018))>0,\"OUI\",\"NON\")","v":"NON"},null,{"$f":"IF(SUMPRODUCT(('RECUEIL DES DONNEES'!DH$4:DH$1999=TRUE)*(YEAR('RECUEIL DES DONNEES'!DI$4:DI$1999)=2019))>0,\"OUI\",\"NON\")","v":"NON"},null,{"$f":"IF(SUMPRODUCT(('RECUEIL DES DONNEES'!DH$4:DH$1999=TRUE)*(YEAR('RECUEIL DES DONNEES'!DI$4:DI$1999)=2020))>0,\"OUI\",\"NON\")","v":"NON"},null,{"$f":"IF(SUMPRODUCT(('RECUEIL DES DONNEES'!DH$4:DH$1999=TRUE)*(YEAR('RECUEIL DES DONNEES'!DI$4:DI$1999)=2021))>0,\"OUI\",\"NON\")","v":"NON"},null,{"$f":"IF(SUMPRODUCT(('RECUEIL DES DONNEES'!DH$4:DH$1999=TRUE)*(YEAR('RECUEIL DES DONNEES'!DI$4:DI$1999)=2022))>0,\"OUI\",\"NON\")","v":"NON"}]
[]
["Période de recueil des indicateurs en semaine",{"$f":"SUMPRODUCT((YEAR('RECUEIL DES DONNEES'!DI$4:DI$1996)=2018)*(('RECUEIL DES DONNEES'!DJ$4:DJ$1996-'RECUEIL DES DONNEES'!DI$4:DI$1996)+1)/7)","v":0},null,{"$f":"SUMPRODUCT((YEAR('RECUEIL DES DONNEES'!DI$4:DI$1996)=2019)*(('RECUEIL DES DONNEES'!DJ$4:DJ$1996-'RECUEIL DES DONNEES'!DI$4:DI$1996)+1)/7)","v":0},null,{"$f":"SUMPRODUCT((YEAR('RECUEIL DES DONNEES'!DI$4:DI$1996)=2020)*(('RECUEIL DES DONNEES'!DJ$4:DJ$1996-'RECUEIL DES DONNEES'!DI$4:DI$1996)+1)/7)","v":0},null,{"$f":"SUMPRODUCT((YEAR('RECUEIL DES DONNEES'!DI$4:DI$1996)=2021)*(('RECUEIL DES DONNEES'!DJ$4:DJ$1996-'RECUEIL DES DONNEES'!DI$4:DI$1996)+1)/7)","v":0},null,{"$f":"SUMPRODUCT((YEAR('RECUEIL DES DONNEES'!DI$4:DI$1996)=2022)*(('RECUEIL DES DONNEES'!DJ$4:DJ$1996-'RECUEIL DES DONNEES'!DI$4:DI$1996)+1)/7)","v":0}]
[]
["CAQES","Nb patient sur la période de recueil","Nb patient extrapolé sur l'année","Nb patient sur la période de recueil","ND patient extrapolé sur l'année","Nb patient sur la période de recueil","ND patient extrapolé sur l'année","Nb patient sur la période de recueil","ND patient extrapolé sur l'année","Nb patient sur la période de recueil","ND patient extrapolé sur l'année"]
["Nombre de patients priorisés conciliés en entrée et/ou sortie",{"$f":"SUMPRODUCT((YEAR('RECUEIL DES DONNEES'!DI$4:DI$1996)=2018)*'RECUEIL DES DONNEES'!DK$4:DK$1996)","v":0},{"$f":"B219*52/B216","v":{"$error":"#DIV/0!"}},{"$f":"SUMPRODUCT((YEAR('RECUEIL DES DONNEES'!DI$4:DI$1996)=2019)*'RECUEIL DES DONNEES'!DK$4:DK$1996)","v":0},{"$f":"D219*52/D216","v":{"$error":"#DIV/0!"}},{"$f":"SUMPRODUCT((YEAR('RECUEIL DES DONNEES'!DI$4:DI$1996)=2020)*'RECUEIL DES DONNEES'!DK$4:DK$1996)","v":0},{"$f":"F219*52/F216","v":{"$error":"#DIV/0!"}},{"$f":"SUMPRODUCT((YEAR('RECUEIL DES DONNEES'!DI$4:DI$1996)=2021)*'RECUEIL DES DONNEES'!DK$4:DK$1996)","v":0},{"$f":"H219*52/H216","v":{"$error":"#DIV/0!"}},{"$f":"SUMPRODUCT((YEAR('RECUEIL DES DONNEES'!DI$4:DI$1996)=2022)*'RECUEIL DES DONNEES'!DK$4:DK$1996)","v":0},{"$f":"J219*52/J216","v":{"$error":"#DIV/0!"}}]
["Nombre de patients priorisés hospitalisés",{"$f":"SUMPRODUCT((YEAR('RECUEIL DES DONNEES'!DI$4:DI$1996)=2018)*'RECUEIL DES DONNEES'!DL$4:DL$1996)","v":0},{"$f":"B220*52/B216","v":{"$error":"#DIV/0!"}},{"$f":"SUMPRODUCT((YEAR('RECUEIL DES DONNEES'!DI$4:DI$1996)=2019)*'RECUEIL DES DONNEES'!DL$4:DL$1996)","v":0},{"$f":"D220*52/D216","v":{"$error":"#DIV/0!"}},{"$f":"SUMPRODUCT((YEAR('RECUEIL DES DONNEES'!DI$4:DI$1996)=2020)*'RECUEIL DES DONNEES'!DL$4:DL$1996)","v":0},{"$f":"F220*52/F216","v":{"$error":"#DIV/0!"}},{"$f":"SUMPRODUCT((YEAR('RECUEIL DES DONNEES'!DI$4:DI$1996)=2021)*'RECUEIL DES DONNEES'!DL$4:DL$1996)","v":0},{"$f":"H220*52/H216","v":{"$error":"#DIV/0!"}},{"$f":"SUMPRODUCT((YEAR('RECUEIL DES DONNEES'!DI$4:DI$1996)=2022)*'RECUEIL DES DONNEES'!DL$4:DL$1996)","v":0},{"$f":"J220*52/J216","v":{"$error":"#DIV/0!"}}]
["Indicateur CAQES",{"$f":"B219/B220","v":{"$error":"#DIV/0!"}},null,{"$f":"E219/E220","v":{"$error":"#DIV/0!"}},null,{"$f":"G219/G220","v":{"$error":"#DIV/0!"}},null,{"$f":"I219/I220","v":{"$error":"#DIV/0!"}},null,{"$f":"K219/K220","v":{"$error":"#DIV/0!"}}]
[]
["ACTIVITE","Nb patient sur la période de recueil","Nb patient extrapolé sur l'année","Nb patient sur la période de recueil","ND patient extrapolé sur l'année","Nb patient sur la période de recueil","ND patient extrapolé sur l'année","Nb patient sur la période de recueil","ND patient extrapolé sur l'année","Nb patient sur la période de recueil","ND patient extrapolé sur l'année"]
["Nombre de patients entrants",{"$f":"SUMPRODUCT((YEAR('RECUEIL DES DONNEES'!DI$4:DI$1996)=2018)*'RECUEIL DES DONNEES'!DM$4:DM$1996)","v":0},{"$f":"B224*52/B216","v":{"$error":"#DIV/0!"}},{"$f":"SUMPRODUCT((YEAR('RECUEIL DES DONNEES'!DI$4:DI$1996)=2019)*'RECUEIL DES DONNEES'!DM$4:DM$1996)","v":0},{"$f":"D224*52/D216","v":{"$error":"#DIV/0!"}},{"$f":"SUMPRODUCT((YEAR('RECUEIL DES DONNEES'!DI$4:DI$1996)=2020)*'RECUEIL DES DONNEES'!DM$4:DM$1996)","v":0},{"$f":"F224*52/F216","v":{"$error":"#DIV/0!"}},{"$f":"SUMPRODUCT((YEAR('RECUEIL DES DONNEES'!DI$4:DI$1996)=2021)*'RECUEIL DES DONNEES'!DM$4:DM$1996)","v":0},{"$f":"H224*52/H216","v":{"$error":"#DIV/0!"}},{"$f":"SUMPRODUCT((YEAR('RECUEIL DES DONNEES'!DI$4:DI$1996)=2022)*'RECUEIL DES DONNEES'!DM$4:DM$1996)","v":0},{"$f":"J224*52/J216","v":{"$error":"#DIV/0!"}}]
["Nombre d'ETP pharmaceutiques dédiés",{"$f":"SUMPRODUCT((YEAR('RECUEIL DES DONNEES'!DI4:DI1999)=2018)*('RECUEIL DES DONNEES'!DN4:DN1999)/SUMPRODUCT((YEAR('RECUEIL DES DONNEES'!DI4:DI1999)=2018)*1))","v":{"$error":"#DIV/0!"}},null,{"$f":"SUMPRODUCT((YEAR('RECUEIL DES DONNEES'!DI4:DI1999)=2019)*('RECUEIL DES DONNEES'!DN4:DN1999)/SUMPRODUCT((YEAR('RECUEIL DES DONNEES'!DI4:DI1999)=2019)*1))","v":{"$error":"#DIV/0!"}},null,{"$f":"SUMPRODUCT((YEAR('RECUEIL DES DONNEES'!DI4:DI1999)=2020)*('RECUEIL DES DONNEES'!DN4:DN1999)/SUMPRODUCT((YEAR('RECUEIL DES DONNEES'!DI4:DI1999)=2020)*1))","v":{"$error":"#DIV/0!"}},null,{"$f":"SUMPRODUCT((YEAR('RECUEIL DES DONNEES'!DI4:DI1999)=2021)*('RECUEIL DES DONNEES'!DN4:DN1999)/SUMPRODUCT((YEAR('RECUEIL DES DONNEES'!DI4:DI1999)=2021)*1))","v":{"$error":"#DIV/0!"}},null,{"$f":"SUMPRODUCT((YEAR('RECUEIL DES DONNEES'!DI4:DI1999)=2022)*('RECUEIL DES DONNEES'!DN4:DN1999)/SUMPRODUCT((YEAR('RECUEIL DES DONNEES'!DI4:DI1999)=2022)*1))","v":{"$error":"#DIV/0!"}}]
["Indicateur d'activité 1: \nNb patients conciliés entrants/ Nb de patients entrants",{"$f":"C219/C224","v":{"$error":"#DIV/0!"}},null,{"$f":"E219/E224","v":{"$error":"#DIV/0!"}},null,{"$f":"G219/G224","v":{"$error":"#DIV/0!"}},null,{"$f":"I219/I224","v":{"$error":"#DIV/0!"}},null,{"$f":"K219/K224","v":{"$error":"#DIV/0!"}}]
["Indicateur d'activité 2:\nNb de patients conciliés/Nb ETP pharmaceutiques dédiés",{"$f":"C219/B225","v":{"$error":"#DIV/0!"}},null,{"$f":"E219/D225","v":{"$error":"#DIV/0!"}},null,{"$f":"G219/F225","v":{"$error":"#DIV/0!"}},null,{"$f":"I219/H225","v":{"$error":"#DIV/0!"}},null,{"$f":"K219/J225","v":{"$error":"#DIV/0!"}}]
[]
["CLINIQUE","Nb patient sur la période de recueil","Nb patient extrapolé sur l'année","Nb patient sur la période de recueil","ND patient extrapolé sur l'année","Nb patient sur la période de recueil","ND patient extrapolé sur l'année","Nb patient sur la période de recueil","ND patient extrapolé sur l'année","Nb patient sur la période de recueil","ND patient extrapolé sur l'année"]
["Nombre de patients conciliés avec au moins une divergence non documentée",{"$f":"SUMPRODUCT((YEAR('RECUEIL DES DONNEES'!DI$4:DI$1996)=2018)*'RECUEIL DES DONNEES'!DO$4:DO$1996)","v":0},{"$f":"B230*52/B216","v":{"$error":"#DIV/0!"}},{"$f":"SUMPRODUCT((YEAR('RECUEIL DES DONNEES'!DI$4:DI$1996)=2019)*'RECUEIL DES DONNEES'!DO$4:DO$1996)","v":0},{"$f":"D230*52/D216","v":{"$error":"#DIV/0!"}},{"$f":"SUMPRODUCT((YEAR('RECUEIL DES DONNEES'!DI$4:DI$1996)=2020)*'RECUEIL DES DONNEES'!DO$4:DO$1996)","v":0},{"$f":"F230*52/F216","v":{"$error":"#DIV/0!"}},{"$f":"SUMPRODUCT((YEAR('RECUEIL DES DONNEES'!DI$4:DI$1996)=2021)*'RECUEIL DES DONNEES'!DO$4:DO$1996)","v":0},{"$f":"H230*52/H216","v":{"$error":"#DIV/0!"}},{"$f":"SUMPRODUCT((YEAR('RECUEIL DES DONNEES'!DI$4:DI$1996)=2022)*'RECUEIL DES DONNEES'!DO$4:DO$1996)","v":0},{"$f":"J230*52/J216","v":{"$error":"#DIV/0!"}}]
["Nombre de patients conciliés avec au moins une divergence non documentée non intentionnelle",{"$f":"SUMPRODUCT((YEAR('RECUEIL DES DONNEES'!DI$4:DI$1996)=2018)*'RECUEIL DES DONNEES'!DP$4:DP$1996)","v":0},{"$f":"B231*52/B216","v":{"$error":"#DIV/0!"}},{"$f":"SUMPRODUCT((YEAR('RECUEIL DES DONNEES'!DI$4:DI$1996)=2019)*'RECUEIL DES DONNEES'!DP$4:DP$1996)","v":0},{"$f":"D231*52/D216","v":{"$error":"#DIV/0!"}},{"$f":"SUMPRODUCT((YEAR('RECUEIL DES DONNEES'!DI$4:DI$1996)=2020)*'RECUEIL DES DONNEES'!DP$4:DP$1996)","v":0},{"$f":"F231*52/F216","v":{"$error":"#DIV/0!"}},{"$f":"SUMPRODUCT((YEAR('RECUEIL DES DONNEES'!DI$4:DI$1996)=2021)*'RECUEIL DES DONNEES'!DP$4:DP$1996)","v":0},{"$f":"H231*52/H216","v":{"$error":"#DIV/0!"}},{"$f":"SUMPRODUCT((YEAR('RECUEIL DES DONNEES'!DI$4:DI$1996)=2022)*'RECUEIL DES DONNEES'!DP$4:DP$1996)","v":0},{"$f":"J231*52/J216","v":{"$error":"#DIV/0!"}}]
["Nombre d'IP ayant entrainé des modifications de prescription",{"$f":"SUMPRODUCT((YEAR('RECUEIL DES DONNEES'!DI$4:DI$1996)=2018)*'RECUEIL DES DONNEES'!DQ$4:DQ$1996)","v":0},{"$f":"B232*52/B216","v":{"$error":"#DIV/0!"}},{"$f":"SUMPRODUCT((YEAR('RECUEIL DES DONNEES'!DI$4:DI$1996)=2019)*'RECUEIL DES DONNEES'!DQ$4:DQ$1996)","v":0},{"$f":"D232*52/D216","v":{"$error":"#DIV/0!"}},{"$f":"SUMPRODUCT((YEAR('RECUEIL DES DONNEES'!DI$4:DI$1996)=2020)*'RECUEIL DES DONNEES'!DQ$4:DQ$1996)","v":0},{"$f":"F232*52/F216","v":{"$error":"#DIV/0!"}},{"$f":"SUMPRODUCT((YEAR('RECUEIL DES DONNEES'!DI$4:DI$1996)=2021)*'RECUEIL DES DONNEES'!DQ$4:DQ$1996)","v":0},{"$f":"H232*52/H216","v":{"$error":"#DIV/0!"}},{"$f":"SUMPRODUCT((YEAR('RECUEIL DES DONNEES'!DI$4:DI$1996)=2022)*'RECUEIL DES DONNEES'!DQ$4:DQ$1996)","v":0},{"$f":"J232*52/J216","v":{"$error":"#DIV/0!"}}]
["Nombre de patients ayant bénéficié d'une activité de pharmacie clinique de niveau 3",{"$f":"SUMPRODUCT((YEAR('RECUEIL DES DONNEES'!DI$4:DI$1996)=2018)*'RECUEIL DES DONNEES'!DR$4:DR$1996)","v":0},{"$f":"B233*52/B216","v":{"$error":"#DIV/0!"}},{"$f":"SUMPRODUCT((YEAR('RECUEIL DES DONNEES'!DI$4:DI$1996)=2019)*'RECUEIL DES DONNEES'!DR$4:DR$1996)","v":0},{"$f":"D233*52/D216","v":{"$error":"#DIV/0!"}},{"$f":"SUMPRODUCT((YEAR('RECUEIL DES DONNEES'!DI$4:DI$1996)=2020)*'RECUEIL DES DONNEES'!DR$4:DR$1996)","v":0},{"$f":"F233*52/F216","v":{"$error":"#DIV/0!"}},{"$f":"SUMPRODUCT((YEAR('RECUEIL DES DONNEES'!DI$4:DI$1996)=2021)*'RECUEIL DES DONNEES'!DR$4:DR$1996)","v":0},{"$f":"H233*52/H216","v":{"$error":"#DIV/0!"}},{"$f":"SUMPRODUCT((YEAR('RECUEIL DES DONNEES'!DI$4:DI$1996)=2022)*'RECUEIL DES DONNEES'!DR$4:DR$1996)","v":0},{"$f":"J233*52/J216","v":{"$error":"#DIV/0!"}}]
["Indicateur clinique 1: \nNb patients conciliés avec au moins une divergencee non documentée/ Nb de patients conciliés",{"$f":"C230/C219","v":{"$error":"#DIV/0!"}},null,{"$f":"E230/E219","v":{"$error":"#DIV/0!"}},null,{"$f":"G230/G219","v":{"$error":"#DIV/0!"}},null,{"$f":"I230/I219","v":{"$error":"#DIV/0!"}},null,{"$f":"K230/K219","v":{"$error":"#DIV/0!"}}]
["Indicateur clinique 2:\nNb d'interventions pharmaceutiques ayant entrainé des modifications de prescription/ Nb de patients ayant bénéficié d'une activité de pharmacie clinique de niveau 3",{"$f":"B232/B233","v":{"$error":"#DIV/0!"}},null,{"$f":"E232/E233","v":{"$error":"#DIV/0!"}},null,{"$f":"G232/G233","v":{"$error":"#DIV/0!"}},null,{"$f":"I232/I233","v":{"$error":"#DIV/0!"}},null,{"$f":"K232/K233","v":{"$error":"#DIV/0!"}}]

{"sheet":"Synthèse 2018","index":6,"n_rows":0,"n_cols":0,"rows_kept":0,"cut":false,"hidden":false,"merged":[],"read":"part_too_large"}

{"sheet":"Synthèse 2019","index":7,"n_rows":29,"n_cols":10,"rows_kept":29,"cut":false,"hidden":false,"merged":[[8,9,11,9],[12,1,12,9],[16,1,16,9],[21,1,21,9],[7,1,7,9]]}
[]
[]
[]
[]
[]
[]
["Secteurs d'activité","Secteur 1","Secteur 2","Secteur 3","Secteur 4","Secteur 5","Secteur 6","Secteur 7","Secteur 8","TOTAL"]
["Type de  conciliation"]
["Proactive",{"$f":"formules!D15","v":"NON"},{"$f":"formules!D43","v":"NON"},{"$f":"formules!D71","v":"NON"},{"$f":"formules!D99","v":"NON"},{"$f":"formules!D127","v":"NON"},{"$f":"formules!D155","v":"NON"},{"$f":"formules!D183","v":"NON"},{"$f":"formules!D211","v":"NON"}]
["Rétroactive",{"$f":"formules!D16","v":"NON"},{"$f":"formules!D44","v":"NON"},{"$f":"formules!D72","v":"NON"},{"$f":"formules!D100","v":"NON"},{"$f":"formules!D128","v":"NON"},{"$f":"formules!D156","v":"NON"},{"$f":"formules!D184","v":"NON"},{"$f":"formules!D212","v":"NON"}]
["Entrée",{"$f":"formules!D17","v":"NON"},{"$f":"formules!D45","v":"NON"},{"$f":"formules!D73","v":"NON"},{"$f":"formules!D101","v":"NON"},{"$f":"formules!D129","v":"NON"},{"$f":"formules!D157","v":"NON"},{"$f":"formules!D185","v":"NON"},{"$f":"formules!D213","v":"NON"}]
["Sortie",{"$f":"formules!D18","v":"NON"},{"$f":"formules!D46","v":"NON"},{"$f":"formules!D74","v":"NON"},{"$f":"formules!D102","v":"NON"},{"$f":"formules!D130","v":"NON"},{"$f":"formules!D158","v":"NON"},{"$f":"formules!D186","v":"NON"},{"$f":"formules!D214","v":"NON"}]
["CAQES"]
["Nombre de patients priorisés conciliés en entrée et/ou sortie",{"$f":"formules!E23","v":{"$error":"#DIV/0!"}},{"$f":"formules!E51","v":{"$error":"#DIV/0!"}},{"$f":"formules!E79","v":{"$error":"#DIV/0!"}},{"$f":"formules!E107","v":{"$error":"#DIV/0!"}},{"$f":"formules!E135","v":{"$error":"#DIV/0!"}},{"$f":"formules!E163","v":{"$error":"#DIV/0!"}},{"$f":"formules!E191","v":{"$error":"#DIV/0!"}},{"$f":"formules!E219","v":{"$error":"#DIV/0!"}},{"$f":"SUMIFS(B14:I14,B14:I14,\"<>#VALEUR!\",B14:I14,\"<>#DIV/0!\")","v":0}]
["Nombre de patients priorisés hospitalisés",{"$f":"formules!E24","v":{"$error":"#DIV/0!"}},{"$f":"formules!E52","v":{"$error":"#DIV/0!"}},{"$f":"formules!E80","v":{"$error":"#DIV/0!"}},{"$f":"formules!E108","v":{"$error":"#DIV/0!"}},{"$f":"formules!E136","v":{"$error":"#DIV/0!"}},{"$f":"formules!E164","v":{"$error":"#DIV/0!"}},{"$f":"formules!E192","v":{"$error":"#DIV/0!"}},{"$f":"formules!E220","v":{"$error":"#DIV/0!"}},{"$f":"SUMIFS(B15:I15,B15:I15,\"<>#VALEUR!\",B15:I15,\"<>#DIV/0!\")","v":0}]
["Indicateur CAQES",{"$f":"formules!D25","v":{"$error":"#DIV/0!"}},{"$f":"formules!D53","v":{"$error":"#DIV/0!"}},{"$f":"formules!D81","v":{"$error":"#DIV/0!"}},{"$f":"formules!D109","v":{"$error":"#DIV/0!"}},{"$f":"formules!D137","v":{"$error":"#DIV/0!"}},{"$f":"formules!D165","v":{"$error":"#DIV/0!"}},{"$f":"formules!D193","v":{"$error":"#DIV/0!"}},{"$f":"formules!D221","v":{"$error":"#DIV/0!"}},{"$f":"J14/J15","v":{"$error":"#DIV/0!"}}]
["ACTIVITE"]
["Nombre de patients entrants",{"$f":"formules!E28","v":{"$error":"#DIV/0!"}},{"$f":"formules!E56","v":{"$error":"#DIV/0!"}},{"$f":"formules!E84","v":{"$error":"#DIV/0!"}},{"$f":"formules!E112","v":{"$error":"#DIV/0!"}},{"$f":"formules!E140","v":{"$error":"#DIV/0!"}},{"$f":"formules!E168","v":{"$error":"#DIV/0!"}},{"$f":"formules!E196","v":{"$error":"#DIV/0!"}},{"$f":"formules!E224","v":{"$error":"#DIV/0!"}},{"$f":"SUMIFS(B18:I18,B18:I18,\"<>#VALEUR!\",B18:I18,\"<>#DIV/0!\")","v":0}]
["Nombre d'ETP pharmaceutiques dédiés",{"$f":"formules!D29","v":{"$error":"#DIV/0!"}},{"$f":"formules!D57","v":{"$error":"#DIV/0!"}},{"$f":"formules!D85","v":{"$error":"#DIV/0!"}},{"$f":"formules!D113","v":{"$error":"#DIV/0!"}},{"$f":"formules!D141","v":{"$error":"#DIV/0!"}},{"$f":"formules!D169","v":{"$error":"#DIV/0!"}},{"$f":"formules!D197","v":{"$error":"#DIV/0!"}},{"$f":"formules!D225","v":{"$error":"#DIV/0!"}},{"$f":"SUMIFS(B19:I19,B19:I19,\"<>#VALEUR!\",B19:I19,\"<>#DIV/0!\")","v":0}]
["IA1: Nb patients conciliés / Nb de patients entrants",{"$f":"formules!D30","v":{"$error":"#DIV/0!"}},{"$f":"formules!D58","v":{"$error":"#DIV/0!"}},{"$f":"formules!D86","v":{"$error":"#DIV/0!"}},{"$f":"formules!D114","v":{"$error":"#DIV/0!"}},{"$f":"formules!D142","v":{"$error":"#DIV/0!"}},{"$f":"formules!D170","v":{"$error":"#DIV/0!"}},{"$f":"formules!D198","v":{"$error":"#DIV/0!"}},{"$f":"formules!D226","v":{"$error":"#DIV/0!"}},{"$f":"J14/J18","v":{"$error":"#DIV/0!"}}]
["IA 2: Nb de patients conciliés/Nb d'ETP pharmaceutiques dédiés",{"$f":"formules!D31","v":{"$error":"#DIV/0!"}},{"$f":"formules!D59","v":{"$error":"#DIV/0!"}},{"$f":"formules!D87","v":{"$error":"#DIV/0!"}},{"$f":"formules!D115","v":{"$error":"#DIV/0!"}},{"$f":"formules!D143","v":{"$error":"#DIV/0!"}},{"$f":"formules!D171","v":{"$error":"#DIV/0!"}},{"$f":"formules!D199","v":{"$error":"#DIV/0!"}},{"$f":"formules!D227","v":{"$error":"#DIV/0!"}},{"$f":"J14/J19","v":{"$error":"#DIV/0!"}}]
["CLINIQUE"]
["Nombre de patients conciliés avec au moins une divergence non documentée",{"$f":"formules!E34","v":{"$error":"#DIV/0!"}},{"$f":"formules!E62","v":{"$error":"#DIV/0!"}},{"$f":"formules!E90","v":{"$error":"#DIV/0!"}},{"$f":"formules!E118","v":{"$error":"#DIV/0!"}},{"$f":"formules!E146","v":{"$error":"#DIV/0!"}},{"$f":"formules!E174","v":{"$error":"#DIV/0!"}},{"$f":"formules!E202","v":{"$error":"#DIV/0!"}},{"$f":"formules!E230","v":{"$error":"#DIV/0!"}},{"$f":"SUMIFS(B23:I23,B23:I23,\"<>#VALEUR!\",B23:I23,\"<>#DIV/0!\")","v":0}]
["Nombre de patients conciliés avec au moins une divergence non documentée non intentionnelle",{"$f":"formules!E35","v":{"$error":"#DIV/0!"}},{"$f":"formules!E63","v":{"$error":"#DIV/0!"}},{"$f":"formules!E91","v":{"$error":"#DIV/0!"}},{"$f":"formules!E119","v":{"$error":"#DIV/0!"}},{"$f":"formules!E147","v":{"$error":"#DIV/0!"}},{"$f":"formules!E175","v":{"$error":"#DIV/0!"}},{"$f":"formules!E203","v":{"$error":"#DIV/0!"}},{"$f":"formules!E231","v":{"$error":"#DIV/0!"}},{"$f":"SUMIFS(B24:I24,B24:I24,\"<>#VALEUR!\",B24:I24,\"<>#DIV/0!\")","v":0}]
["Nombre d'IP ayant entrainé des modifications de prescription",{"$f":"formules!E36","v":{"$error":"#DIV/0!"}},{"$f":"formules!E64","v":{"$error":"#DIV/0!"}},{"$f":"formules!E92","v":{"$error":"#DIV/0!"}},{"$f":"formules!E120","v":{"$error":"#DIV/0!"}},{"$f":"formules!E148","v":{"$error":"#DIV/0!"}},{"$f":"formules!E176","v":{"$error":"#DIV/0!"}},{"$f":"formules!E204","v":{"$error":"#DIV/0!"}},{"$f":"formules!E232","v":{"$error":"#DIV/0!"}},{"$f":"SUMIFS(B25:I25,B25:I25,\"<>#VALEUR!\",B25:I25,\"<>#DIV/0!\")","v":0}]
["Nombre de patients ayant bénéficié d'une activité de pharmacie clinique de niveau 3",{"$f":"formules!E37","v":{"$error":"#DIV/0!"}},{"$f":"formules!E65","v":{"$error":"#DIV/0!"}},{"$f":"formules!E93","v":{"$error":"#DIV/0!"}},{"$f":"formules!E121","v":{"$error":"#DIV/0!"}},{"$f":"formules!E149","v":{"$error":"#DIV/0!"}},{"$f":"formules!E177","v":{"$error":"#DIV/0!"}},{"$f":"formules!E205","v":{"$error":"#DIV/0!"}},{"$f":"formules!E233","v":{"$error":"#DIV/0!"}},{"$f":"SUMIFS(B26:I26,B26:I26,\"<>#VALEUR!\",B26:I26,\"<>#DIV/0!\")","v":0}]
["IC 1: Taux de patients avec au moins une divergence non intentionnelle",{"$f":"formules!D38","v":{"$error":"#DIV/0!"}},{"$f":"formules!D66","v":{"$error":"#DIV/0!"}},{"$f":"formules!D94","v":{"$error":"#DIV/0!"}},{"$f":"formules!D122","v":{"$error":"#DIV/0!"}},{"$f":"formules!D150","v":{"$error":"#DIV/0!"}},{"$f":"formules!D178","v":{"$error":"#DIV/0!"}},{"$f":"formules!D206","v":{"$error":"#DIV/0!"}},{"$f":"formules!D234","v":{"$error":"#DIV/0!"}},{"$f":"J24/J14","v":{"$error":"#DIV/0!"}}]
["IC 2: Nb moyen d'IP acceptées par patient",{"$f":"formules!D39","v":{"$error":"#DIV/0!"}},{"$f":"formules!D67","v":{"$error":"#DIV/0!"}},{"$f":"formules!D95","v":{"$error":"#DIV/0!"}},{"$f":"formules!D123","v":{"$error":"#DIV/0!"}},{"$f":"formules!D151","v":{"$error":"#DIV/0!"}},{"$f":"formules!D179","v":{"$error":"#DIV/0!"}},{"$f":"formules!D207","v":{"$error":"#DIV/0!"}},{"$f":"formules!D235","v":{"$error":"#DIV/0!"}},{"$f":"J25/J26","v":{"$error":"#DIV/0!"}}]
["Rajoutez ici vos propres données de suivi"]

{"sheet":"Synthèse 2020","index":8,"n_rows":29,"n_cols":10,"rows_kept":29,"cut":false,"hidden":false,"merged":[[21,1,21,9],[8,9,11,9],[7,1,7,9],[12,1,12,9],[16,1,16,9]]}
[]
[]
[]
[]
[]
[]
["Secteurs d'activité","Secteur 1","Secteur 2","Secteur 3","Secteur 4","Secteur 5","Secteur 6","Secteur 7","Secteur 8","TOTAL"]
["Type de  conciliation"]
["Proactive",{"$f":"formules!F15","v":"NON"},{"$f":"formules!F43","v":"NON"},{"$f":"formules!F71","v":"NON"},{"$f":"formules!F99","v":"NON"},{"$f":"formules!F127","v":"NON"},{"$f":"formules!F155","v":"NON"},{"$f":"formules!F183","v":"NON"},{"$f":"formules!F211","v":"NON"}]
["Rétroactive",{"$f":"formules!F16","v":"NON"},{"$f":"formules!F44","v":"NON"},{"$f":"formules!F72","v":"NON"},{"$f":"formules!F100","v":"NON"},{"$f":"formules!F128","v":"NON"},{"$f":"formules!F156","v":"NON"},{"$f":"formules!F184","v":"NON"},{"$f":"formules!F212","v":"NON"}]
["Entrée",{"$f":"formules!F17","v":"NON"},{"$f":"formules!F45","v":"NON"},{"$f":"formules!F73","v":"NON"},{"$f":"formules!F101","v":"NON"},{"$f":"formules!F129","v":"NON"},{"$f":"formules!F157","v":"NON"},{"$f":"formules!F185","v":"NON"},{"$f":"formules!F213","v":"NON"}]
["Sortie",{"$f":"formules!F18","v":"NON"},{"$f":"formules!F46","v":"NON"},{"$f":"formules!F74","v":"NON"},{"$f":"formules!F102","v":"NON"},{"$f":"formules!F130","v":"NON"},{"$f":"formules!F158","v":"NON"},{"$f":"formules!F186","v":"NON"},{"$f":"formules!F214","v":"NON"}]
["CAQES"]
["Nombre de patients priorisés conciliés en entrée et/ou sortie",{"$f":"formules!G23","v":{"$error":"#DIV/0!"}},{"$f":"formules!G51","v":{"$error":"#DIV/0!"}},{"$f":"formules!G79","v":{"$error":"#DIV/0!"}},{"$f":"formules!G107","v":{"$error":"#DIV/0!"}},{"$f":"formules!G135","v":{"$error":"#DIV/0!"}},{"$f":"formules!G163","v":{"$error":"#DIV/0!"}},{"$f":"formules!G191","v":{"$error":"#DIV/0!"}},{"$f":"formules!G219","v":{"$error":"#DIV/0!"}},{"$f":"SUMIFS(B14:I14,B14:I14,\"<>#VALEUR!\",B14:I14,\"<>#DIV/0!\")","v":0}]
["Nombre de patients priorisés hospitalisés",{"$f":"formules!G24","v":{"$error":"#DIV/0!"}},{"$f":"formules!G52","v":{"$error":"#DIV/0!"}},{"$f":"formules!G80","v":{"$error":"#DIV/0!"}},{"$f":"formules!G108","v":{"$error":"#DIV/0!"}},{"$f":"formules!G136","v":{"$error":"#DIV/0!"}},{"$f":"formules!G164","v":{"$error":"#DIV/0!"}},{"$f":"formules!G192","v":{"$error":"#DIV/0!"}},{"$f":"formules!G220","v":{"$error":"#DIV/0!"}},{"$f":"SUMIFS(B15:I15,B15:I15,\"<>#VALEUR!\",B15:I15,\"<>#DIV/0!\")","v":0}]
["Indicateur CAQES",{"$f":"formules!F25","v":{"$error":"#DIV/0!"}},{"$f":"formules!F53","v":{"$error":"#DIV/0!"}},{"$f":"formules!F81","v":{"$error":"#DIV/0!"}},{"$f":"formules!F109","v":{"$error":"#DIV/0!"}},{"$f":"formules!F137","v":{"$error":"#DIV/0!"}},{"$f":"formules!F165","v":{"$error":"#DIV/0!"}},{"$f":"formules!F193","v":{"$error":"#DIV/0!"}},{"$f":"formules!F221","v":{"$error":"#DIV/0!"}},{"$f":"J14/J15","v":{"$error":"#DIV/0!"}}]
["ACTIVITE"]
["Nombre de patients entrants",{"$f":"formules!G28","v":{"$error":"#DIV/0!"}},{"$f":"formules!G56","v":{"$error":"#DIV/0!"}},{"$f":"formules!G84","v":{"$error":"#DIV/0!"}},{"$f":"formules!G112","v":{"$error":"#DIV/0!"}},{"$f":"formules!G140","v":{"$error":"#DIV/0!"}},{"$f":"formules!G168","v":{"$error":"#DIV/0!"}},{"$f":"formules!G196","v":{"$error":"#DIV/0!"}},{"$f":"formules!G224","v":{"$error":"#DIV/0!"}},{"$f":"SUMIFS(B18:I18,B18:I18,\"<>#VALEUR!\",B18:I18,\"<>#DIV/0!\")","v":0}]
["Nombre d'ETP pharmaceutiques dédiés",{"$f":"formules!F29","v":{"$error":"#DIV/0!"}},{"$f":"formules!F57","v":{"$error":"#DIV/0!"}},{"$f":"formules!F85","v":{"$error":"#DIV/0!"}},{"$f":"formules!F113","v":{"$error":"#DIV/0!"}},{"$f":"formules!F141","v":{"$error":"#DIV/0!"}},{"$f":"formules!F169","v":{"$error":"#DIV/0!"}},{"$f":"formules!F197","v":{"$error":"#DIV/0!"}},{"$f":"formules!F225","v":{"$error":"#DIV/0!"}},{"$f":"SUMIFS(B19:I19,B19:I19,\"<>#VALEUR!\",B19:I19,\"<>#DIV/0!\")","v":0}]
["IA1: Nb patients conciliés / Nb de patients entrants",{"$f":"formules!F30","v":{"$error":"#DIV/0!"}},{"$f":"formules!F58","v":{"$error":"#DIV/0!"}},{"$f":"formules!F86","v":{"$error":"#DIV/0!"}},{"$f":"formules!F114","v":{"$error":"#DIV/0!"}},{"$f":"formules!F142","v":{"$error":"#DIV/0!"}},{"$f":"formules!F170","v":{"$error":"#DIV/0!"}},{"$f":"formules!F198","v":{"$error":"#DIV/0!"}},{"$f":"formules!F226","v":{"$error":"#DIV/0!"}},{"$f":"J14/J18","v":{"$error":"#DIV/0!"}}]
["IA 2: Nb de patients conciliés/Nb d'ETP pharmaceutiques dédiés",{"$f":"formules!F31","v":{"$error":"#DIV/0!"}},{"$f":"formules!F59","v":{"$error":"#DIV/0!"}},{"$f":"formules!F87","v":{"$error":"#DIV/0!"}},{"$f":"formules!F115","v":{"$error":"#DIV/0!"}},{"$f":"formules!F143","v":{"$error":"#DIV/0!"}},{"$f":"formules!F171","v":{"$error":"#DIV/0!"}},{"$f":"formules!F199","v":{"$error":"#DIV/0!"}},{"$f":"formules!F227","v":{"$error":"#DIV/0!"}},{"$f":"J14/J19","v":{"$error":"#DIV/0!"}}]
["CLINIQUE"]
["Nombre de patients conciliés avec au moins une divergence non documentée",{"$f":"formules!G34","v":{"$error":"#DIV/0!"}},{"$f":"formules!G62","v":{"$error":"#DIV/0!"}},{"$f":"formules!G90","v":{"$error":"#DIV/0!"}},{"$f":"formules!G118","v":{"$error":"#DIV/0!"}},{"$f":"formules!G146","v":{"$error":"#DIV/0!"}},{"$f":"formules!G174","v":{"$error":"#DIV/0!"}},{"$f":"formules!G202","v":{"$error":"#DIV/0!"}},{"$f":"formules!G230","v":{"$error":"#DIV/0!"}},{"$f":"SUMIFS(B23:I23,B23:I23,\"<>#VALEUR!\",B23:I23,\"<>#DIV/0!\")","v":0}]
["Nombre de patients conciliés avec au moins une divergence non documentée non intentionnelle",{"$f":"formules!G35","v":{"$error":"#DIV/0!"}},{"$f":"formules!G63","v":{"$error":"#DIV/0!"}},{"$f":"formules!G91","v":{"$error":"#DIV/0!"}},{"$f":"formules!G119","v":{"$error":"#DIV/0!"}},{"$f":"formules!G147","v":{"$error":"#DIV/0!"}},{"$f":"formules!G175","v":{"$error":"#DIV/0!"}},{"$f":"formules!G203","v":{"$error":"#DIV/0!"}},{"$f":"formules!G231","v":{"$error":"#DIV/0!"}},{"$f":"SUMIFS(B24:I24,B24:I24,\"<>#VALEUR!\",B24:I24,\"<>#DIV/0!\")","v":0}]
["Nombre d'IP ayant entrainé des modifications de prescription",{"$f":"formules!G36","v":{"$error":"#DIV/0!"}},{"$f":"formules!G64","v":{"$error":"#DIV/0!"}},{"$f":"formules!G92","v":{"$error":"#DIV/0!"}},{"$f":"formules!G120","v":{"$error":"#DIV/0!"}},{"$f":"formules!G148","v":{"$error":"#DIV/0!"}},{"$f":"formules!G176","v":{"$error":"#DIV/0!"}},{"$f":"formules!G204","v":{"$error":"#DIV/0!"}},{"$f":"formules!G232","v":{"$error":"#DIV/0!"}},{"$f":"SUMIFS(B25:I25,B25:I25,\"<>#VALEUR!\",B25:I25,\"<>#DIV/0!\")","v":0}]
["Nombre de patients ayant bénéficié d'une activité de pharmacie clinique de niveau 3",{"$f":"formules!G37","v":{"$error":"#DIV/0!"}},{"$f":"formules!G65","v":{"$error":"#DIV/0!"}},{"$f":"formules!G93","v":{"$error":"#DIV/0!"}},{"$f":"formules!G121","v":{"$error":"#DIV/0!"}},{"$f":"formules!G149","v":{"$error":"#DIV/0!"}},{"$f":"formules!G177","v":{"$error":"#DIV/0!"}},{"$f":"formules!G205","v":{"$error":"#DIV/0!"}},{"$f":"formules!G233","v":{"$error":"#DIV/0!"}},{"$f":"SUMIFS(B26:I26,B26:I26,\"<>#VALEUR!\",B26:I26,\"<>#DIV/0!\")","v":0}]
["IC 1: Taux de patients avec au moins une divergence non intentionnelle",{"$f":"formules!F38","v":{"$error":"#DIV/0!"}},{"$f":"formules!F66","v":{"$error":"#DIV/0!"}},{"$f":"formules!F94","v":{"$error":"#DIV/0!"}},{"$f":"formules!F122","v":{"$error":"#DIV/0!"}},{"$f":"formules!F150","v":{"$error":"#DIV/0!"}},{"$f":"formules!F178","v":{"$error":"#DIV/0!"}},{"$f":"formules!F206","v":{"$error":"#DIV/0!"}},{"$f":"formules!F234","v":{"$error":"#DIV/0!"}},{"$f":"J24/J14","v":{"$error":"#DIV/0!"}}]
["IC 2: Nb moyen d'IP acceptées par patient",{"$f":"formules!F39","v":{"$error":"#DIV/0!"}},{"$f":"formules!F67","v":{"$error":"#DIV/0!"}},{"$f":"formules!F95","v":{"$error":"#DIV/0!"}},{"$f":"formules!F123","v":{"$error":"#DIV/0!"}},{"$f":"formules!F151","v":{"$error":"#DIV/0!"}},{"$f":"formules!F179","v":{"$error":"#DIV/0!"}},{"$f":"formules!F207","v":{"$error":"#DIV/0!"}},{"$f":"formules!F235","v":{"$error":"#DIV/0!"}},{"$f":"J25/J26","v":{"$error":"#DIV/0!"}}]
["Rajoutez ici vos propres données de suivi"]

{"sheet":"Synthèse 2021","index":9,"n_rows":29,"n_cols":10,"rows_kept":29,"cut":false,"hidden":false,"merged":[[8,9,11,9],[12,1,12,9],[16,1,16,9],[21,1,21,9]]}
[]
[]
[]
[]
[]
[]
["Secteurs d'activité","Secteur 1","Secteur 2","Secteur 3","Secteur 4","Secteur 5","Secteur 6","Secteur 7","Secteur 8","TOTAL"]
["Type de  conciliation"]
["Proactive",{"$f":"formules!H15","v":"NON"},{"$f":"formules!H43","v":"NON"},{"$f":"formules!H71","v":"NON"},{"$f":"formules!H99","v":"NON"},{"$f":"formules!H127","v":"NON"},{"$f":"formules!H155","v":"NON"},{"$f":"formules!H183","v":"NON"},{"$f":"formules!H211","v":"NON"}]
["Rétroactive",{"$f":"formules!H16","v":"NON"},{"$f":"formules!H44","v":"NON"},{"$f":"formules!H72","v":"NON"},{"$f":"formules!H100","v":"NON"},{"$f":"formules!H128","v":"NON"},{"$f":"formules!H156","v":"NON"},{"$f":"formules!H184","v":"NON"},{"$f":"formules!H212","v":"NON"}]
["Entrée",{"$f":"formules!H17","v":"NON"},{"$f":"formules!H45","v":"NON"},{"$f":"formules!H73","v":"NON"},{"$f":"formules!H101","v":"NON"},{"$f":"formules!H129","v":"NON"},{"$f":"formules!H157","v":"NON"},{"$f":"formules!H185","v":"NON"},{"$f":"formules!H213","v":"NON"}]
["Sortie",{"$f":"formules!H18","v":"NON"},{"$f":"formules!H46","v":"NON"},{"$f":"formules!H74","v":"NON"},{"$f":"formules!H102","v":"NON"},{"$f":"formules!H130","v":"NON"},{"$f":"formules!H158","v":"NON"},{"$f":"formules!H186","v":"NON"},{"$f":"formules!H214","v":"NON"}]
["CAQES"]
["Nombre de patients priorisés conciliés en entrée et/ou sortie",{"$f":"formules!I23","v":{"$error":"#DIV/0!"}},{"$f":"formules!I51","v":{"$error":"#DIV/0!"}},{"$f":"formules!I79","v":{"$error":"#DIV/0!"}},{"$f":"formules!I107","v":{"$error":"#DIV/0!"}},{"$f":"formules!I135","v":{"$error":"#DIV/0!"}},{"$f":"formules!I163","v":{"$error":"#DIV/0!"}},{"$f":"formules!I191","v":{"$error":"#DIV/0!"}},{"$f":"formules!I219","v":{"$error":"#DIV/0!"}},{"$f":"SUMIFS(B14:I14,B14:I14,\"<>#VALEUR!\",B14:I14,\"<>#DIV/0!\")","v":0}]
["Nombre de patients priorisés hospitalisés",{"$f":"formules!I24","v":{"$error":"#DIV/0!"}},{"$f":"formules!I52","v":{"$error":"#DIV/0!"}},{"$f":"formules!I80","v":{"$error":"#DIV/0!"}},{"$f":"formules!I108","v":{"$error":"#DIV/0!"}},{"$f":"formules!I136","v":{"$error":"#DIV/0!"}},{"$f":"formules!I164","v":{"$error":"#DIV/0!"}},{"$f":"formules!I192","v":{"$error":"#DIV/0!"}},{"$f":"formules!I220","v":{"$error":"#DIV/0!"}},{"$f":"SUMIFS(B15:I15,B15:I15,\"<>#VALEUR!\",B15:I15,\"<>#DIV/0!\")","v":0}]
["Indicateur CAQES",{"$f":"formules!H25","v":{"$error":"#DIV/0!"}},{"$f":"formules!H53","v":{"$error":"#DIV/0!"}},{"$f":"formules!H81","v":{"$error":"#DIV/0!"}},{"$f":"formules!H109","v":{"$error":"#DIV/0!"}},{"$f":"formules!H137","v":{"$error":"#DIV/0!"}},{"$f":"formules!H165","v":{"$error":"#DIV/0!"}},{"$f":"formules!H193","v":{"$error":"#DIV/0!"}},{"$f":"formules!H221","v":{"$error":"#DIV/0!"}},{"$f":"J14/J15","v":{"$error":"#DIV/0!"}}]
["ACTIVITE"]
["Nombre de patients entrants",{"$f":"formules!I28","v":{"$error":"#DIV/0!"}},{"$f":"formules!I56","v":{"$error":"#DIV/0!"}},{"$f":"formules!I84","v":{"$error":"#DIV/0!"}},{"$f":"formules!I112","v":{"$error":"#DIV/0!"}},{"$f":"formules!I140","v":{"$error":"#DIV/0!"}},{"$f":"formules!I168","v":{"$error":"#DIV/0!"}},{"$f":"formules!I196","v":{"$error":"#DIV/0!"}},{"$f":"formules!I224","v":{"$error":"#DIV/0!"}},{"$f":"SUMIFS(B18:I18,B18:I18,\"<>#VALEUR!\",B18:I18,\"<>#DIV/0!\")","v":0}]
["Nombre d'ETP pharmaceutiques dédiés",{"$f":"formules!H29","v":{"$error":"#DIV/0!"}},{"$f":"formules!H57","v":{"$error":"#DIV/0!"}},{"$f":"formules!H85","v":{"$error":"#DIV/0!"}},{"$f":"formules!H113","v":{"$error":"#DIV/0!"}},{"$f":"formules!H141","v":{"$error":"#DIV/0!"}},{"$f":"formules!H169","v":{"$error":"#DIV/0!"}},{"$f":"formules!H197","v":{"$error":"#DIV/0!"}},{"$f":"formules!H225","v":{"$error":"#DIV/0!"}},{"$f":"SUMIFS(B19:I19,B19:I19,\"<>#VALEUR!\",B19:I19,\"<>#DIV/0!\")","v":0}]
["IA1: Nb patients conciliés / Nb de patients entrants",{"$f":"formules!H30","v":{"$error":"#DIV/0!"}},{"$f":"formules!H58","v":{"$error":"#DIV/0!"}},{"$f":"formules!H86","v":{"$error":"#DIV/0!"}},{"$f":"formules!H114","v":{"$error":"#DIV/0!"}},{"$f":"formules!H142","v":{"$error":"#DIV/0!"}},{"$f":"formules!H170","v":{"$error":"#DIV/0!"}},{"$f":"formules!H198","v":{"$error":"#DIV/0!"}},{"$f":"formules!H226","v":{"$error":"#DIV/0!"}},{"$f":"J14/J18","v":{"$error":"#DIV/0!"}}]
["IA 2: Nb de patients conciliés/Nb d'ETP pharmaceutiques dédiés",{"$f":"formules!H31","v":{"$error":"#DIV/0!"}},{"$f":"formules!H59","v":{"$error":"#DIV/0!"}},{"$f":"formules!H87","v":{"$error":"#DIV/0!"}},{"$f":"formules!H115","v":{"$error":"#DIV/0!"}},{"$f":"formules!H143","v":{"$error":"#DIV/0!"}},{"$f":"formules!H171","v":{"$error":"#DIV/0!"}},{"$f":"formules!H199","v":{"$error":"#DIV/0!"}},{"$f":"formules!H227","v":{"$error":"#DIV/0!"}},{"$f":"J14/J19","v":{"$error":"#DIV/0!"}}]
["CLINIQUE"]
["Nombre de patients conciliés avec au moins une divergence non documentée",{"$f":"formules!I34","v":{"$error":"#DIV/0!"}},{"$f":"formules!I62","v":{"$error":"#DIV/0!"}},{"$f":"formules!I90","v":{"$error":"#DIV/0!"}},{"$f":"formules!I118","v":{"$error":"#DIV/0!"}},{"$f":"formules!I146","v":{"$error":"#DIV/0!"}},{"$f":"formules!I174","v":{"$error":"#DIV/0!"}},{"$f":"formules!I202","v":{"$error":"#DIV/0!"}},{"$f":"formules!I230","v":{"$error":"#DIV/0!"}},{"$f":"SUMIFS(B23:I23,B23:I23,\"<>#VALEUR!\",B23:I23,\"<>#DIV/0!\")","v":0}]
["Nombre de patients conciliés avec au moins une divergence non documentée non intentionnelle",{"$f":"formules!I35","v":{"$error":"#DIV/0!"}},{"$f":"formules!I63","v":{"$error":"#DIV/0!"}},{"$f":"formules!I91","v":{"$error":"#DIV/0!"}},{"$f":"formules!I119","v":{"$error":"#DIV/0!"}},{"$f":"formules!I147","v":{"$error":"#DIV/0!"}},{"$f":"formules!I175","v":{"$error":"#DIV/0!"}},{"$f":"formules!I203","v":{"$error":"#DIV/0!"}},{"$f":"formules!I231","v":{"$error":"#DIV/0!"}},{"$f":"SUMIFS(B24:I24,B24:I24,\"<>#VALEUR!\",B24:I24,\"<>#DIV/0!\")","v":0}]
["Nombre d'IP ayant entrainé des modifications de prescription",{"$f":"formules!I36","v":{"$error":"#DIV/0!"}},{"$f":"formules!I64","v":{"$error":"#DIV/0!"}},{"$f":"formules!I92","v":{"$error":"#DIV/0!"}},{"$f":"formules!I120","v":{"$error":"#DIV/0!"}},{"$f":"formules!I148","v":{"$error":"#DIV/0!"}},{"$f":"formules!I176","v":{"$error":"#DIV/0!"}},{"$f":"formules!I204","v":{"$error":"#DIV/0!"}},{"$f":"formules!I232","v":{"$error":"#DIV/0!"}},{"$f":"SUMIFS(B25:I25,B25:I25,\"<>#VALEUR!\",B25:I25,\"<>#DIV/0!\")","v":0}]
["Nombre de patients ayant bénéficié d'une activité de pharmacie clinique de niveau 3",{"$f":"formules!I37","v":{"$error":"#DIV/0!"}},{"$f":"formules!I65","v":{"$error":"#DIV/0!"}},{"$f":"formules!I93","v":{"$error":"#DIV/0!"}},{"$f":"formules!I121","v":{"$error":"#DIV/0!"}},{"$f":"formules!I149","v":{"$error":"#DIV/0!"}},{"$f":"formules!I177","v":{"$error":"#DIV/0!"}},{"$f":"formules!I205","v":{"$error":"#DIV/0!"}},{"$f":"formules!I233","v":{"$error":"#DIV/0!"}},{"$f":"SUMIFS(B26:I26,B26:I26,\"<>#VALEUR!\",B26:I26,\"<>#DIV/0!\")","v":0}]
["IC 1: Taux de patients avec au moins une divergence non intentionnelle",{"$f":"formules!H38","v":{"$error":"#DIV/0!"}},{"$f":"formules!H66","v":{"$error":"#DIV/0!"}},{"$f":"formules!H94","v":{"$error":"#DIV/0!"}},{"$f":"formules!H122","v":{"$error":"#DIV/0!"}},{"$f":"formules!H150","v":{"$error":"#DIV/0!"}},{"$f":"formules!H178","v":{"$error":"#DIV/0!"}},{"$f":"formules!H206","v":{"$error":"#DIV/0!"}},{"$f":"formules!H234","v":{"$error":"#DIV/0!"}},{"$f":"J24/J14","v":{"$error":"#DIV/0!"}}]
["IC 2: Nb moyen d'IP acceptées par patient",{"$f":"formules!H39","v":{"$error":"#DIV/0!"}},{"$f":"formules!H67","v":{"$error":"#DIV/0!"}},{"$f":"formules!H95","v":{"$error":"#DIV/0!"}},{"$f":"formules!H123","v":{"$error":"#DIV/0!"}},{"$f":"formules!H151","v":{"$error":"#DIV/0!"}},{"$f":"formules!H179","v":{"$error":"#DIV/0!"}},{"$f":"formules!H207","v":{"$error":"#DIV/0!"}},{"$f":"formules!H235","v":{"$error":"#DIV/0!"}},{"$f":"J25/J26","v":{"$error":"#DIV/0!"}}]
["Rajoutez ici vos propres données de suivi"]

{"sheet":"Synthèse 2022","index":10,"n_rows":29,"n_cols":10,"rows_kept":29,"cut":false,"hidden":false,"merged":[[21,1,21,9],[8,9,11,9],[7,1,7,9],[12,1,12,9],[16,1,16,9]]}
[]
[]
[]
[]
[]
[]
["Secteurs d'activités","Secteur 1","Secteur 2","Secteur 3","Secteur 4","Secteur 5","Secteur 6","Secteur 7","Secteur 8","TOTAL"]
["Type de  conciliation"]
["Proactive",{"$f":"formules!J15","v":"NON"},{"$f":"formules!J43","v":"NON"},{"$f":"formules!J71","v":"NON"},{"$f":"formules!J99","v":"NON"},{"$f":"formules!J127","v":"NON"},{"$f":"formules!J155","v":"NON"},{"$f":"formules!J183","v":"NON"},{"$f":"formules!J211","v":"NON"}]
["Rétroactive",{"$f":"formules!J16","v":"NON"},{"$f":"formules!J44","v":"NON"},{"$f":"formules!J72","v":"NON"},{"$f":"formules!J100","v":"NON"},{"$f":"formules!J128","v":"NON"},{"$f":"formules!J156","v":"NON"},{"$f":"formules!J184","v":"NON"},{"$f":"formules!J212","v":"NON"}]
["Entrée",{"$f":"formules!J17","v":"NON"},{"$f":"formules!J45","v":"NON"},{"$f":"formules!J73","v":"NON"},{"$f":"formules!J101","v":"NON"},{"$f":"formules!J129","v":"NON"},{"$f":"formules!J157","v":"NON"},{"$f":"formules!J185","v":"NON"},{"$f":"formules!J213","v":"NON"}]
["Sortie",{"$f":"formules!J18","v":"NON"},{"$f":"formules!J46","v":"NON"},{"$f":"formules!J74","v":"NON"},{"$f":"formules!J102","v":"NON"},{"$f":"formules!J130","v":"NON"},{"$f":"formules!J158","v":"NON"},{"$f":"formules!J186","v":"NON"},{"$f":"formules!J214","v":"NON"}]
["CAQES"]
["Nombre de patients priorisés conciliés en entrée et/ou sortie",{"$f":"formules!K23","v":{"$error":"#DIV/0!"}},{"$f":"formules!K51","v":{"$error":"#DIV/0!"}},{"$f":"formules!K79","v":{"$error":"#DIV/0!"}},{"$f":"formules!K107","v":{"$error":"#DIV/0!"}},{"$f":"formules!K135","v":{"$error":"#DIV/0!"}},{"$f":"formules!K163","v":{"$error":"#DIV/0!"}},{"$f":"formules!K191","v":{"$error":"#DIV/0!"}},{"$f":"formules!K219","v":{"$error":"#DIV/0!"}},{"$f":"SUMIFS(B14:I14,B14:I14,\"<>#VALEUR!\",B14:I14,\"<>#DIV/0!\")","v":0}]
["Nombre de patients priorisés hospitalisés",{"$f":"formules!K24","v":{"$error":"#DIV/0!"}},{"$f":"formules!K52","v":{"$error":"#DIV/0!"}},{"$f":"formules!K80","v":{"$error":"#DIV/0!"}},{"$f":"formules!K108","v":{"$error":"#DIV/0!"}},{"$f":"formules!K136","v":{"$error":"#DIV/0!"}},{"$f":"formules!K164","v":{"$error":"#DIV/0!"}},{"$f":"formules!K192","v":{"$error":"#DIV/0!"}},{"$f":"formules!K220","v":{"$error":"#DIV/0!"}},{"$f":"SUMIFS(B15:I15,B15:I15,\"<>#VALEUR!\",B15:I15,\"<>#DIV/0!\")","v":0}]
["Indicateur CAQES",{"$f":"formules!J25","v":{"$error":"#DIV/0!"}},{"$f":"formules!J53","v":{"$error":"#DIV/0!"}},{"$f":"formules!J81","v":{"$error":"#DIV/0!"}},{"$f":"formules!J109","v":{"$error":"#DIV/0!"}},{"$f":"formules!J137","v":{"$error":"#DIV/0!"}},{"$f":"formules!J165","v":{"$error":"#DIV/0!"}},{"$f":"formules!J193","v":{"$error":"#DIV/0!"}},{"$f":"formules!J221","v":{"$error":"#DIV/0!"}},{"$f":"J14/J15","v":{"$error":"#DIV/0!"}}]
["ACTIVITE"]
["Nombre de patients entrants",{"$f":"formules!K28","v":{"$error":"#DIV/0!"}},{"$f":"formules!K56","v":{"$error":"#DIV/0!"}},{"$f":"formules!K84","v":{"$error":"#DIV/0!"}},{"$f":"formules!K112","v":{"$error":"#DIV/0!"}},{"$f":"formules!K140","v":{"$error":"#DIV/0!"}},{"$f":"formules!K168","v":{"$error":"#DIV/0!"}},{"$f":"formules!K196","v":{"$error":"#DIV/0!"}},{"$f":"formules!K224","v":{"$error":"#DIV/0!"}},{"$f":"SUMIFS(B18:I18,B18:I18,\"<>#VALEUR!\",B18:I18,\"<>#DIV/0!\")","v":0}]
["Nombre d'ETP pharmaceutiques dédiés",{"$f":"formules!J29","v":{"$error":"#DIV/0!"}},{"$f":"formules!J57","v":{"$error":"#DIV/0!"}},{"$f":"formules!J85","v":{"$error":"#DIV/0!"}},{"$f":"formules!J113","v":{"$error":"#DIV/0!"}},{"$f":"formules!J141","v":{"$error":"#DIV/0!"}},{"$f":"formules!J169","v":{"$error":"#DIV/0!"}},{"$f":"formules!J197","v":{"$error":"#DIV/0!"}},{"$f":"formules!J225","v":{"$error":"#DIV/0!"}},{"$f":"SUMIFS(B19:I19,B19:I19,\"<>#VALEUR!\",B19:I19,\"<>#DIV/0!\")","v":0}]
["IA1: Nb patients conciliés / Nb de patients entrants",{"$f":"formules!J30","v":{"$error":"#DIV/0!"}},{"$f":"formules!J58","v":{"$error":"#DIV/0!"}},{"$f":"formules!J86","v":{"$error":"#DIV/0!"}},{"$f":"formules!J114","v":{"$error":"#DIV/0!"}},{"$f":"formules!J142","v":{"$error":"#DIV/0!"}},{"$f":"formules!J170","v":{"$error":"#DIV/0!"}},{"$f":"formules!J198","v":{"$error":"#DIV/0!"}},{"$f":"formules!J226","v":{"$error":"#DIV/0!"}},{"$f":"J14/J18","v":{"$error":"#DIV/0!"}}]
["IA 2: Nb de patients conciliés/Nb d'ETP pharmaceutiques dédiés",{"$f":"formules!J31","v":{"$error":"#DIV/0!"}},{"$f":"formules!J59","v":{"$error":"#DIV/0!"}},{"$f":"formules!J87","v":{"$error":"#DIV/0!"}},{"$f":"formules!J115","v":{"$error":"#DIV/0!"}},{"$f":"formules!J143","v":{"$error":"#DIV/0!"}},{"$f":"formules!J171","v":{"$error":"#DIV/0!"}},{"$f":"formules!J199","v":{"$error":"#DIV/0!"}},{"$f":"formules!J227","v":{"$error":"#DIV/0!"}},{"$f":"J14/J19","v":{"$error":"#DIV/0!"}}]
["CLINIQUE"]
["Nombre de patients conciliés avec au moins une divergence non documentée",{"$f":"formules!K34","v":{"$error":"#DIV/0!"}},{"$f":"formules!K62","v":{"$error":"#DIV/0!"}},{"$f":"formules!K90","v":{"$error":"#DIV/0!"}},{"$f":"formules!K118","v":{"$error":"#DIV/0!"}},{"$f":"formules!K146","v":{"$error":"#DIV/0!"}},{"$f":"formules!K174","v":{"$error":"#DIV/0!"}},{"$f":"formules!K202","v":{"$error":"#DIV/0!"}},{"$f":"formules!K230","v":{"$error":"#DIV/0!"}},{"$f":"SUMIFS(B23:I23,B23:I23,\"<>#VALEUR!\",B23:I23,\"<>#DIV/0!\")","v":0}]
["Nombre de patients conciliés avec au moins une divergence non documentée non intentionnelle",{"$f":"formules!K35","v":{"$error":"#DIV/0!"}},{"$f":"formules!K63","v":{"$error":"#DIV/0!"}},{"$f":"formules!K91","v":{"$error":"#DIV/0!"}},{"$f":"formules!K119","v":{"$error":"#DIV/0!"}},{"$f":"formules!K147","v":{"$error":"#DIV/0!"}},{"$f":"formules!K175","v":{"$error":"#DIV/0!"}},{"$f":"formules!K203","v":{"$error":"#DIV/0!"}},{"$f":"formules!K231","v":{"$error":"#DIV/0!"}},{"$f":"SUMIFS(B24:I24,B24:I24,\"<>#VALEUR!\",B24:I24,\"<>#DIV/0!\")","v":0}]
["Nombre d'IP ayant entrainé des modifications de prescription",{"$f":"formules!K36","v":{"$error":"#DIV/0!"}},{"$f":"formules!K64","v":{"$error":"#DIV/0!"}},{"$f":"formules!K92","v":{"$error":"#DIV/0!"}},{"$f":"formules!K120","v":{"$error":"#DIV/0!"}},{"$f":"formules!K148","v":{"$error":"#DIV/0!"}},{"$f":"formules!K176","v":{"$error":"#DIV/0!"}},{"$f":"formules!K204","v":{"$error":"#DIV/0!"}},{"$f":"formules!K232","v":{"$error":"#DIV/0!"}},{"$f":"SUMIFS(B25:I25,B25:I25,\"<>#VALEUR!\",B25:I25,\"<>#DIV/0!\")","v":0}]
["Nombre de patients ayant bénéficié d'une activité de pharmacie clinique de niveau 3",{"$f":"formules!K37","v":{"$error":"#DIV/0!"}},{"$f":"formules!K65","v":{"$error":"#DIV/0!"}},{"$f":"formules!K93","v":{"$error":"#DIV/0!"}},{"$f":"formules!K121","v":{"$error":"#DIV/0!"}},{"$f":"formules!K149","v":{"$error":"#DIV/0!"}},{"$f":"formules!K177","v":{"$error":"#DIV/0!"}},{"$f":"formules!K205","v":{"$error":"#DIV/0!"}},{"$f":"formules!K233","v":{"$error":"#DIV/0!"}},{"$f":"SUMIFS(B26:I26,B26:I26,\"<>#VALEUR!\",B26:I26,\"<>#DIV/0!\")","v":0}]
["IC 1: Taux de patients avec au moins une divergence non intentionnelle",{"$f":"formules!J38","v":{"$error":"#DIV/0!"}},{"$f":"formules!J66","v":{"$error":"#DIV/0!"}},{"$f":"formules!J94","v":{"$error":"#DIV/0!"}},{"$f":"formules!J122","v":{"$error":"#DIV/0!"}},{"$f":"formules!J150","v":{"$error":"#DIV/0!"}},{"$f":"formules!J178","v":{"$error":"#DIV/0!"}},{"$f":"formules!J206","v":{"$error":"#DIV/0!"}},{"$f":"formules!J234","v":{"$error":"#DIV/0!"}},{"$f":"J24/J14","v":{"$error":"#DIV/0!"}}]
["IC 2: Nb moyen d'IP acceptées par patient",{"$f":"formules!J39","v":{"$error":"#DIV/0!"}},{"$f":"formules!J67","v":{"$error":"#DIV/0!"}},{"$f":"formules!J95","v":{"$error":"#DIV/0!"}},{"$f":"formules!J123","v":{"$error":"#DIV/0!"}},{"$f":"formules!J151","v":{"$error":"#DIV/0!"}},{"$f":"formules!J179","v":{"$error":"#DIV/0!"}},{"$f":"formules!J207","v":{"$error":"#DIV/0!"}},{"$f":"formules!J235","v":{"$error":"#DIV/0!"}},{"$f":"J25/J26","v":{"$error":"#DIV/0!"}}]
["Rajoutez ici vos propres données de suivi"]

{"sheet":"Synthèse générale","index":11,"n_rows":84,"n_cols":6,"rows_kept":84,"cut":false,"hidden":false,"merged":[[42,0,42,5],[75,0,75,5],[2,0,2,5]]}
[]
["ANNEE",2018,2019,2020,2021,2022]
["CAQES"]
["Nombre de patients priorisés conciliés en entrée et/ou sortie",{"$f":"'Synthèse 2018'!J14","v":0},{"$f":"'Synthèse 2019'!J14","v":0},{"$f":"'Synthèse 2020'!J14","v":0},{"$f":"'Synthèse 2021'!J14","v":0},{"$f":"'Synthèse 2022'!J14","v":0}]
["Nombre de patients priorisés hospitalisés",{"$f":"'Synthèse 2018'!J15","v":0},{"$f":"'Synthèse 2019'!J15","v":0},{"$f":"'Synthèse 2020'!J15","v":0},{"$f":"'Synthèse 2021'!J15","v":0},{"$f":"'Synthèse 2022'!J15","v":0}]
["Nombre de patients priorisées non conciliés",{"$f":"B5-B4","v":0},{"$f":"C5-C4","v":0},{"$f":"D5-D4","v":0},{"$f":"E5-E4","v":0},{"$f":"F5-F4","v":0}]
["Indicateur CAQES",{"$f":"'Synthèse 2018'!J16","v":{"$error":"#DIV/0!"}},{"$f":"'Synthèse 2019'!J16","v":{"$error":"#DIV/0!"}},{"$f":"'Synthèse 2020'!J16","v":{"$error":"#DIV/0!"}},{"$f":"'Synthèse 2021'!J16","v":{"$error":"#DIV/0!"}},{"$f":"'Synthèse 2022'!J16","v":{"$error":"#DIV/0!"}}]
["Rajoutez ici vos propres indicateurs et données de suivi"]
[]
[]
[]
[]
[]
[]
[]
[]
[]
[]
[]
[]
[]
[]
[]
[]
[]
[]
[]
[]
[]
[]
[]
[]
[]
[]
[]
[]
[]
[]
[]
[]
[]
["ANNEE",2018,2019,2020,2021,2022]
["ACTIVITE"]
["Nombre de patients entrants",{"$f":"'Synthèse 2018'!J18","v":0},{"$f":"'Synthèse 2019'!J18","v":0},{"$f":"'Synthèse 2020'!J18","v":0},{"$f":"'Synthèse 2021'!J18","v":0},{"$f":"'Synthèse 2022'!J18","v":0}]
["Nombre de patients entrants non conciliés",{"$f":"B44-B4","v":0},{"$f":"C44-C4","v":0},{"$f":"D44-D4","v":0},{"$f":"E44-E4","v":0},{"$f":"F44-F4","v":0}]
["Nombre d'ETP pharmaceutiques dédiés",{"$f":"'Synthèse 2018'!J19","v":0},{"$f":"'Synthèse 2019'!J19","v":0},{"$f":"'Synthèse 2020'!J19","v":0},{"$f":"'Synthèse 2021'!J19","v":0},{"$f":"'Synthèse 2022'!J19","v":0}]
["IA 1 : Nb patients conciliés entrants/ Nb de patients entrants",{"$f":"'Synthèse 2018'!J20","v":{"$error":"#DIV/0!"}},{"$f":"'Synthèse 2019'!J20","v":{"$error":"#DIV/0!"}},{"$f":"'Synthèse 2020'!J20","v":{"$error":"#DIV/0!"}},{"$f":"'Synthèse 2021'!J20","v":{"$error":"#DIV/0!"}},{"$f":"'Synthèse 2022'!J20","v":{"$error":"#DIV/0!"}}]
["IA 2 : Nb de patients conciliés/Nb ETP pharmaceutiques dédiés",{"$f":"'Synthèse 2018'!J21","v":{"$error":"#DIV/0!"}},{"$f":"'Synthèse 2019'!J21","v":{"$error":"#DIV/0!"}},{"$f":"'Synthèse 2020'!J21","v":{"$error":"#DIV/0!"}},{"$f":"'Synthèse 2021'!J21","v":{"$error":"#DIV/0!"}},{"$f":"'Synthèse 2022'!J21","v":{"$error":"#DIV/0!"}}]
["Rajoutez ici vos propres indicateurs et données de suivi"]
[]
[]
[]
[]
[]
[]
[]
[]
[]
[]
[]
[]
[]
[]
[]
[]
[]
[]
[]
[]
[]
[]
[]
[]
[]
["ANNEE",2018,2019,2020,2021,2022]
["CLINIQUE"]
["Nombre de patients conciliés avec au moins une divergence non documentée",{"$f":"'Synthèse 2018'!J23","v":0},{"$f":"'Synthèse 2019'!J23","v":0},{"$f":"'Synthèse 2020'!J23","v":0},{"$f":"'Synthèse 2021'!J23","v":0},{"$f":"'Synthèse 2022'!J23","v":0}]
["Nombre de patients conciliés sans divergence non documentée",{"$f":"B4-B77","v":0},{"$f":"C4-C77","v":0},{"$f":"D4-D77","v":0},{"$f":"E4-E77","v":0},{"$f":"F4-F77","v":0}]
["Nombre de patients conciliés avec au moins une divergence non documentée non intentionnelle",{"$f":"'Synthèse 2018'!J24","v":0},{"$f":"'Synthèse 2019'!J24","v":0},{"$f":"'Synthèse 2020'!J24","v":0},{"$f":"'Synthèse 2021'!J24","v":0},{"$f":"'Synthèse 2022'!J24","v":0}]
["Nombre d'IP ayant entrainé des modifications de prescription",{"$f":"'Synthèse 2018'!J25","v":0},{"$f":"'Synthèse 2019'!J25","v":0},{"$f":"'Synthèse 2020'!J25","v":0},{"$f":"'Synthèse 2021'!J25","v":0},{"$f":"'Synthèse 2022'!J25","v":0}]
["Nombre de patients ayant bénéficié d'une activité de pharmacie clinique de niveau 3",{"$f":"'Synthèse 2018'!J26","v":0},{"$f":"'Synthèse 2019'!J26","v":0},{"$f":"'Synthèse 2020'!J26","v":0},{"$f":"'Synthèse 2021'!J26","v":0},{"$f":"'Synthèse 2022'!J26","v":0}]
["IC 1:  taux de patients avec au moins une divergence non documentée",{"$f":"'Synthèse 2018'!J27","v":{"$error":"#DIV/0!"}},{"$f":"'Synthèse 2019'!J27","v":{"$error":"#DIV/0!"}},{"$f":"'Synthèse 2020'!J27","v":{"$error":"#DIV/0!"}},{"$f":"'Synthèse 2021'!J27","v":{"$error":"#DIV/0!"}},{"$f":"'Synthèse 2022'!J27","v":{"$error":"#DIV/0!"}}]
["IC 2: nombre moyen d'IP acceptées par patient",{"$f":"'Synthèse 2018'!J28","v":{"$error":"#DIV/0!"}},{"$f":"'Synthèse 2019'!J28","v":{"$error":"#DIV/0!"}},{"$f":"'Synthèse 2020'!J28","v":{"$error":"#DIV/0!"}},{"$f":"'Synthèse 2021'!J28","v":{"$error":"#DIV/0!"}},{"$f":"'Synthèse 2022'!J28","v":{"$error":"#DIV/0!"}}]
["Rajoutez ici vos propres indicateurs et données de suivi"]